Department Family,Entity,Date,Expense Type,Expense Area,Supplier,Transaction Number, Amount ,Item Description
BEIS,UKRI - AHRC,02/10/2018,Hospitality,Communications,195 Piccadilly Ltd,98298765," 12,364.20 ",Hospitality
BEIS,UKRI - AHRC,01/10/2018,Agency Staff,PSU Project Office,Agency Staff,98299578," 3,995.36 ",Agency Staff
BEIS,UKRI - AHRC,30/10/2018,Recruitment Costs,Corporate Services,Agenda Resource Management Ltd,98322225, 52.80 ,Recruitment Costs
BEIS,UKRI - AHRC,30/10/2018,Recruitment Costs,Corporate Services,Agenda Resource Management Ltd,98322225, 160.91 ,Recruitment Costs
BEIS,UKRI - AHRC,31/10/2018,Recruitment Costs,Corporate Services,Agenda Resource Management Ltd,98322218, 155.91 ,Recruitment Costs
BEIS,UKRI - AHRC,31/10/2018,Recruitment Costs,Corporate Services,Agenda Resource Management Ltd,98322221, 155.91 ,Recruitment Costs
BEIS,UKRI - AHRC,01/10/2018,Contract Staff,PSU Project Office,Alexander Mann Solutions Limited,98299585," 3,013.30 ",Contract Staff
BEIS,UKRI - AHRC,08/10/2018,Contract Staff,PSU Project Office,Alexander Mann Solutions Limited,98306154," 3,766.62 ",Contract Staff
BEIS,UKRI - AHRC,09/10/2018,Contract Staff,PSU Project Office,Alexander Mann Solutions Limited,98296619," 4,955.14 ",Contract Staff
BEIS,UKRI - AHRC,09/10/2018,Agency Staff,PSU Project Office,Alexander Mann Solutions Limited,98299531, 585.19 ,Agency Staff
BEIS,UKRI - AHRC,09/10/2018,Contract Staff,PSU Project Office,Alexander Mann Solutions Limited,98299985," 3,096.96 ",Contract Staff
BEIS,UKRI - AHRC,09/10/2018,Contract Staff,PSU Project Office,Alexander Mann Solutions Limited,98305098," 3,096.96 ",Contract Staff
BEIS,UKRI - AHRC,09/10/2018,Agency Staff,PSU Project Office,Alexander Mann Solutions Limited,98306256," 1,755.58 ",Agency Staff
BEIS,UKRI - AHRC,09/10/2018,Agency Staff,PSU Project Office,Alexander Mann Solutions Limited,98306257, 585.19 ,Agency Staff
BEIS,UKRI - AHRC,09/10/2018,Agency Staff,PSU Project Office,Alexander Mann Solutions Limited,98306258, 466.57 ,Agency Staff
BEIS,UKRI - AHRC,09/10/2018,Agency Staff,PSU Project Office,Alexander Mann Solutions Limited,98306261, 585.19 ,Agency Staff
BEIS,UKRI - AHRC,09/10/2018,Agency Staff,PSU Project Office,Alexander Mann Solutions Limited,98306262, 585.19 ,Agency Staff
BEIS,UKRI - AHRC,15/10/2018,Contract Staff,PSU Project Office,Alexander Mann Solutions Limited,98311571," 1,506.65 ",Contract Staff
BEIS,UKRI - AHRC,17/10/2018,Agency Staff,PSU Project Office,Alexander Mann Solutions Limited,98312523, 450.76 ,Agency Staff
BEIS,UKRI - AHRC,23/10/2018,Contract Staff,PSU Project Office,Alexander Mann Solutions Limited,98316670," 3,766.62 ",Contract Staff
BEIS,UKRI - AHRC,29/10/2018,Contract Staff,PSU Project Office,Alexander Mann Solutions Limited,98321471," 3,766.62 ",Contract Staff
BEIS,UKRI - AHRC,30/10/2018,Agency Staff,PSU Project Office,Alexander Mann Solutions Limited,98315144, 585.19 ,Agency Staff
BEIS,UKRI - AHRC,30/10/2018,Agency Staff,PSU Project Office,Alexander Mann Solutions Limited,98322379, 585.19 ,Agency Staff
BEIS,UKRI - AHRC,05/10/2018,Health & Safety (inc. Medicals & Opticians),Corporate Services,AM Health & Safety Ltd,98289145, 45.00 ,Health & Safety (inc. Medicals & Opticians)
BEIS,UKRI - AHRC,05/10/2018,Health & Safety (inc. Medicals & Opticians),Corporate Services,AM Health & Safety Ltd,98289160, 45.00 ,Health & Safety (inc. Medicals & Opticians)
BEIS,UKRI - AHRC,05/10/2018,Health & Safety (inc. Medicals & Opticians),Corporate Services,AM Health & Safety Ltd,98301333, 45.00 ,Health & Safety (inc. Medicals & Opticians)
BEIS,UKRI - AHRC,18/10/2018,Health & Safety (inc. Medicals & Opticians),Corporate Services,AM Health & Safety Ltd,98312780, 135.00 ,Health & Safety (inc. Medicals & Opticians)
BEIS,UKRI - AHRC,30/10/2018,Health & Safety (inc. Medicals & Opticians),Corporate Services,AM Health & Safety Ltd,98321749, 45.00 ,Health & Safety (inc. Medicals & Opticians)
BEIS,UKRI - AHRC,04/10/2018,Legal & Professional Services,HR,Avado Learning Ltd,98292146," 3,195.00 ",Legal & Professional Services
BEIS,UKRI - AHRC,09/10/2018,Health & Safety (inc. Medicals & Opticians),Corporate Services,Banner Group Ltd,98305555, 47.40 ,Health & Safety (inc. Medicals & Opticians)
BEIS,UKRI - AHRC,11/10/2018,Purchase of non capital equipment,HR,Banner Group Ltd,98301041, 23.30 ,Purchase of non capital equipment
BEIS,UKRI - AHRC,11/10/2018,Cleaning & Sterilisation,HR,Banner Group Ltd,98301042, 1.96 ,Cleaning & Sterilisation
BEIS,UKRI - AHRC,11/10/2018,Provisions ( Food etc),HR,Banner Group Ltd,98301042, 7.48 ,Provisions ( Food etc)
BEIS,UKRI - AHRC,11/10/2018,Provisions ( Food etc),HR,Banner Group Ltd,98301042, 41.18 ,Provisions ( Food etc)
BEIS,UKRI - AHRC,11/10/2018,Computing Consumables,HR,Banner Group Ltd,98308760, 321.26 ,Computing Consumables
BEIS,UKRI - AHRC,15/10/2018,Provisions ( Food etc),HR,Banner Group Ltd,98280359, 3.74 ,Provisions ( Food etc)
BEIS,UKRI - AHRC,15/10/2018,Provisions ( Food etc),HR,Banner Group Ltd,98280359, 41.18 ,Provisions ( Food etc)
BEIS,UKRI - AHRC,15/10/2018,Purchase of non capital equipment,HR,Banner Group Ltd,98280359, 23.30 ,Purchase of non capital equipment
BEIS,UKRI - AHRC,18/10/2018,Computing Consumables,HR,Banner Group Ltd,98310422, 82.30 ,Computing Consumables
BEIS,UKRI - AHRC,19/10/2018,Printing & Stationery,Corporate Services,Banner Group Ltd,98315430, 5.76 ,Printing & Stationery
BEIS,UKRI - AHRC,24/10/2018,Health & Safety (inc. Medicals & Opticians),Corporate Services,Banner Group Ltd,98317639, 37.92 ,Health & Safety (inc. Medicals & Opticians)
BEIS,UKRI - AHRC,24/10/2018,Training Awards - Postgraduates,Collabrative Doctoral Grants - Block Payment,Bath Spa University,98305342," 4,963.75 ",Training Awards - Postgraduates
BEIS,UKRI - AHRC,04/10/2018,Meetings & Catering,Creative Arts & Digital Humanities,Baxter Storey Ltd,98303523, 118.44 ,Meetings & Catering
BEIS,UKRI - AHRC,04/10/2018,Meetings & Catering,GCRF - Programme Delivery,Baxter Storey Ltd,98303523, 15.66 ,Meetings & Catering
BEIS,UKRI - AHRC,04/10/2018,Meetings & Catering,SMT,Baxter Storey Ltd,98303523, 383.10 ,Meetings & Catering
BEIS,UKRI - AHRC,31/10/2018,Meetings & Catering,GCRF - Programme Delivery,Baxter Storey Ltd,98322069, 51.86 ,Meetings & Catering
BEIS,UKRI - AHRC,31/10/2018,Meetings & Catering,GCRF - Programme Delivery,Baxter Storey Ltd,98322069, 259.30 ,Meetings & Catering
BEIS,UKRI - AHRC,31/10/2018,Meetings & Catering,"Histories,Culture & Heritage",Baxter Storey Ltd,98322069, 33.10 ,Meetings & Catering
BEIS,UKRI - AHRC,31/10/2018,Meetings & Catering,"Histories,Culture & Heritage",Baxter Storey Ltd,98322069, 165.50 ,Meetings & Catering
BEIS,UKRI - AHRC,31/10/2018,Meetings & Catering,RIN Contributions,Baxter Storey Ltd,98322069, 3.00 ,Meetings & Catering
BEIS,UKRI - AHRC,31/10/2018,Meetings & Catering,RIN Contributions,Baxter Storey Ltd,98322069, 15.00 ,Meetings & Catering
BEIS,UKRI - AHRC,31/10/2018,Meetings & Catering,SMT,Baxter Storey Ltd,98322069, 1.34 ,Meetings & Catering
BEIS,UKRI - AHRC,31/10/2018,Meetings & Catering,SMT,Baxter Storey Ltd,98322069, 6.70 ,Meetings & Catering
BEIS,UKRI - AHRC,02/10/2018,Research Grant Expenditure,Global Challenges Research Fund (GCRF),Biotechnology and Biological Sciences Research Council (BBSRC),98296521," 11,018.82 ",Research Grant Expenditure
BEIS,UKRI - AHRC,24/10/2018,Training Awards - Postgraduates,Collabrative Doctoral Grants - Block Payment,Birkbeck College,98305335," 5,463.75 ",Training Awards - Postgraduates
BEIS,UKRI - AHRC,24/10/2018,Training Awards - Postgraduates,Collabrative Doctoral Grants - Block Payment,Birkbeck College,98305369," 5,463.75 ",Training Awards - Postgraduates
BEIS,UKRI - AHRC,24/10/2018,Training Awards - Postgraduates,Collabrative Doctoral Grants - Block Payment,Birkbeck College,98305383," 5,473.00 ",Training Awards - Postgraduates
BEIS,UKRI - AHRC,24/10/2018,Training Awards - Postgraduates,Collabrative Doctoral Grants - Block Payment,Birkbeck College,98305402," 5,473.00 ",Training Awards - Postgraduates
BEIS,UKRI - AHRC,24/10/2018,Training Awards - Postgraduates,Collabrative Doctoral Grants - Block Payment,Birkbeck College,98305410," 5,473.00 ",Training Awards - Postgraduates
BEIS,UKRI - AHRC,24/10/2018,Training Awards - Postgraduates,BGP Award: Capacity Building,Buckinghamshire New University,98305458," 63,934.00 ",Training Awards - Postgraduates
BEIS,UKRI - AHRC,26/10/2018,Printing & Stationery,HR,C3 Marketing Ltd,98315092," 2,460.00 ",Printing & Stationery
BEIS,UKRI - AHRC,01/10/2018,Conferences & Seminars,Secretariat,Calder Conference Ltd,98296854, 753.75 ,Conferences & Seminars
BEIS,UKRI - AHRC,10/10/2018,Hospitality,Creative Arts & Digital Humanities,Calder Conference Ltd,98307888," 3,060.00 ",Hospitality
BEIS,UKRI - AHRC,22/10/2018,Conferences & Seminars,GCRF - Programme Delivery,Calder Conference Ltd,98316157," 1,335.00 ",Conferences & Seminars
BEIS,UKRI - AHRC,22/10/2018,Hospitality,GCRF - Programme Delivery,Calder Conference Ltd,98316157," 3,600.00 ",Hospitality
BEIS,UKRI - AHRC,24/10/2018,Training Awards - Postgraduates,Collabrative Doctoral Grants - Block Payment,Cardiff University,98305329," 4,963.75 ",Training Awards - Postgraduates
BEIS,UKRI - AHRC,24/10/2018,Training Awards - Postgraduates,Collabrative Doctoral Grants - Block Payment,Cardiff University,98305416," 4,973.00 ",Training Awards - Postgraduates
BEIS,UKRI - AHRC,24/10/2018,Training Awards - Postgraduates,BGP Award,Cardiff University,98305460,"-4,975.76 ",Training Awards - Postgraduates
BEIS,UKRI - AHRC,15/10/2018,Voluntary Deductions,Balance Sheet,Chargive,98309909, 7.00 ,Voluntary Deductions
BEIS,UKRI - AHRC,15/10/2018,Voluntary Deductions,Balance Sheet,Civil Service Benevolent Fund,98309908, 3.00 ,Voluntary Deductions
BEIS,UKRI - AHRC,19/10/2018,Non-staff travel and subsistance,Communications,Corporate Travel Management (North) Ltd,98315467, 0.50 ,Non-staff travel and subsistance
BEIS,UKRI - AHRC,19/10/2018,Non-staff travel and subsistance,Communications,Corporate Travel Management (North) Ltd,98315467, 0.10 ,Non-staff travel and subsistance
BEIS,UKRI - AHRC,19/10/2018,Non-staff travel and subsistance,GCRF - Programme Delivery,Corporate Travel Management (North) Ltd,98315467, 0.50 ,Non-staff travel and subsistance
BEIS,UKRI - AHRC,19/10/2018,Non-staff travel and subsistance,GCRF - Programme Delivery,Corporate Travel Management (North) Ltd,98315467, 145.00 ,Non-staff travel and subsistance
BEIS,UKRI - AHRC,19/10/2018,Non-staff travel and subsistance,GCRF - Programme Delivery,Corporate Travel Management (North) Ltd,98315467, 0.50 ,Non-staff travel and subsistance
BEIS,UKRI - AHRC,19/10/2018,Non-staff travel and subsistance,GCRF - Programme Delivery,Corporate Travel Management (North) Ltd,98315467, 305.00 ,Non-staff travel and subsistance
BEIS,UKRI - AHRC,19/10/2018,Non-staff travel and subsistance,GCRF - Programme Delivery,Corporate Travel Management (North) Ltd,98315467, 0.20 ,Non-staff travel and subsistance
BEIS,UKRI - AHRC,19/10/2018,T&S Overseas - Accommodation,"AHRC - Strategic Planning, Evidence & Impact",Corporate Travel Management (North) Ltd,98315467, 0.50 ,T&S Overseas - Accommodation
BEIS,UKRI - AHRC,19/10/2018,T&S Overseas - Accommodation,"AHRC - Strategic Planning, Evidence & Impact",Corporate Travel Management (North) Ltd,98315467, 0.10 ,T&S Overseas - Accommodation
BEIS,UKRI - AHRC,19/10/2018,T&S Overseas - Accommodation,Business Process & Analysis,Corporate Travel Management (North) Ltd,98315467, 0.50 ,T&S Overseas - Accommodation
BEIS,UKRI - AHRC,19/10/2018,T&S Overseas - Accommodation,Business Process & Analysis,Corporate Travel Management (North) Ltd,98315467, 1.44 ,T&S Overseas - Accommodation
BEIS,UKRI - AHRC,19/10/2018,T&S Overseas - Accommodation,Business Process & Analysis,Corporate Travel Management (North) Ltd,98315467, 0.39 ,T&S Overseas - Accommodation
BEIS,UKRI - AHRC,19/10/2018,T&S Overseas - Accommodation,"Histories,Culture & Heritage",Corporate Travel Management (North) Ltd,98315467, 0.50 ,T&S Overseas - Accommodation
BEIS,UKRI - AHRC,19/10/2018,T&S Overseas - Accommodation,"Histories,Culture & Heritage",Corporate Travel Management (North) Ltd,98315467, 0.10 ,T&S Overseas - Accommodation
BEIS,UKRI - AHRC,19/10/2018,T&S Overseas - Accommodation,SMT,Corporate Travel Management (North) Ltd,98315467, 0.50 ,T&S Overseas - Accommodation
BEIS,UKRI - AHRC,19/10/2018,T&S Overseas - Accommodation,SMT,Corporate Travel Management (North) Ltd,98315467, 0.50 ,T&S Overseas - Accommodation
BEIS,UKRI - AHRC,19/10/2018,T&S Overseas - Accommodation,SMT,Corporate Travel Management (North) Ltd,98315467, 0.50 ,T&S Overseas - Accommodation
BEIS,UKRI - AHRC,19/10/2018,T&S Overseas - Accommodation,SMT,Corporate Travel Management (North) Ltd,98315467, 0.30 ,T&S Overseas - Accommodation
BEIS,UKRI - AHRC,19/10/2018,T&S Overseas - Flights,"AHRC - Strategic Planning, Evidence & Impact",Corporate Travel Management (North) Ltd,98315467, 182.80 ,T&S Overseas - Flights
BEIS,UKRI - AHRC,19/10/2018,T&S Overseas - Flights,Creative Arts & Digital Humanities,Corporate Travel Management (North) Ltd,98315467," 1,620.91 ",T&S Overseas - Flights
BEIS,UKRI - AHRC,19/10/2018,T&S Overseas - Flights,Creative Arts & Digital Humanities,Corporate Travel Management (North) Ltd,98315467," 1,620.91 ",T&S Overseas - Flights
BEIS,UKRI - AHRC,19/10/2018,T&S Overseas - Flights,Creative Arts & Digital Humanities,Corporate Travel Management (North) Ltd,98315467, 142.18 ,T&S Overseas - Flights
BEIS,UKRI - AHRC,19/10/2018,T&S Overseas - Flights,International,Corporate Travel Management (North) Ltd,98315467," 1,620.91 ",T&S Overseas - Flights
BEIS,UKRI - AHRC,19/10/2018,T&S Overseas - Flights,International,Corporate Travel Management (North) Ltd,98315467, 625.10 ,T&S Overseas - Flights
BEIS,UKRI - AHRC,19/10/2018,T&S Overseas - Flights,Newton Programme Delivery,Corporate Travel Management (North) Ltd,98315467, 773.21 ,T&S Overseas - Flights
BEIS,UKRI - AHRC,19/10/2018,T&S Overseas - Flights,SMT,Corporate Travel Management (North) Ltd,98315467, 2.16 ,T&S Overseas - Flights
BEIS,UKRI - AHRC,19/10/2018,T&S Overseas - Flights,SMT,Corporate Travel Management (North) Ltd,98315467, 110.30 ,T&S Overseas - Flights
BEIS,UKRI - AHRC,19/10/2018,T&S Overseas - Flights,SMT,Corporate Travel Management (North) Ltd,98315467, 2.16 ,T&S Overseas - Flights
BEIS,UKRI - AHRC,19/10/2018,T&S Overseas - Flights,SMT,Corporate Travel Management (North) Ltd,98315467, 110.30 ,T&S Overseas - Flights
BEIS,UKRI - AHRC,19/10/2018,T&S Overseas - Flights,SMT,Corporate Travel Management (North) Ltd,98315467, 155.60 ,T&S Overseas - Flights
BEIS,UKRI - AHRC,19/10/2018,T&S Overseas - Flights,SMT,Corporate Travel Management (North) Ltd,98315467, 33.99 ,T&S Overseas - Flights
BEIS,UKRI - AHRC,19/10/2018,T&S Overseas - Other Charges,International,Corporate Travel Management (North) Ltd,98315467, 153.00 ,T&S Overseas - Other Charges
BEIS,UKRI - AHRC,19/10/2018,T&S Overseas - Public Transport,"AHRC - Strategic Planning, Evidence & Impact",Corporate Travel Management (North) Ltd,98315467, 85.00 ,T&S Overseas - Public Transport
BEIS,UKRI - AHRC,19/10/2018,T&S Overseas - Public Transport,PSU Project Office,Corporate Travel Management (North) Ltd,98315467, 142.00 ,T&S Overseas - Public Transport
BEIS,UKRI - AHRC,19/10/2018,T&S UK - Accommodation,Communications,Corporate Travel Management (North) Ltd,98315467, 0.50 ,T&S UK - Accommodation
BEIS,UKRI - AHRC,19/10/2018,T&S UK - Accommodation,Communications,Corporate Travel Management (North) Ltd,98315467, 140.00 ,T&S UK - Accommodation
BEIS,UKRI - AHRC,19/10/2018,T&S UK - Accommodation,Communications,Corporate Travel Management (North) Ltd,98315467, 0.10 ,T&S UK - Accommodation
BEIS,UKRI - AHRC,19/10/2018,T&S UK - Accommodation,Creative Arts & Digital Humanities,Corporate Travel Management (North) Ltd,98315467, 0.50 ,T&S UK - Accommodation
BEIS,UKRI - AHRC,19/10/2018,T&S UK - Accommodation,Creative Arts & Digital Humanities,Corporate Travel Management (North) Ltd,98315467, 155.00 ,T&S UK - Accommodation
BEIS,UKRI - AHRC,19/10/2018,T&S UK - Accommodation,Creative Arts & Digital Humanities,Corporate Travel Management (North) Ltd,98315467, 0.50 ,T&S UK - Accommodation
BEIS,UKRI - AHRC,19/10/2018,T&S UK - Accommodation,Creative Arts & Digital Humanities,Corporate Travel Management (North) Ltd,98315467, 140.00 ,T&S UK - Accommodation
BEIS,UKRI - AHRC,19/10/2018,T&S UK - Accommodation,Creative Arts & Digital Humanities,Corporate Travel Management (North) Ltd,98315467, 0.50 ,T&S UK - Accommodation
BEIS,UKRI - AHRC,19/10/2018,T&S UK - Accommodation,Creative Arts & Digital Humanities,Corporate Travel Management (North) Ltd,98315467, 155.00 ,T&S UK - Accommodation
BEIS,UKRI - AHRC,19/10/2018,T&S UK - Accommodation,Creative Arts & Digital Humanities,Corporate Travel Management (North) Ltd,98315467, 0.50 ,T&S UK - Accommodation
BEIS,UKRI - AHRC,19/10/2018,T&S UK - Accommodation,Creative Arts & Digital Humanities,Corporate Travel Management (North) Ltd,98315467, 310.00 ,T&S UK - Accommodation
BEIS,UKRI - AHRC,19/10/2018,T&S UK - Accommodation,Creative Arts & Digital Humanities,Corporate Travel Management (North) Ltd,98315467, 0.50 ,T&S UK - Accommodation
BEIS,UKRI - AHRC,19/10/2018,T&S UK - Accommodation,Creative Arts & Digital Humanities,Corporate Travel Management (North) Ltd,98315467, 78.50 ,T&S UK - Accommodation
BEIS,UKRI - AHRC,19/10/2018,T&S UK - Accommodation,Creative Arts & Digital Humanities,Corporate Travel Management (North) Ltd,98315467, 0.50 ,T&S UK - Accommodation
BEIS,UKRI - AHRC,19/10/2018,T&S UK - Accommodation,GCRF - Programme Delivery,Corporate Travel Management (North) Ltd,98315467, 0.50 ,T&S UK - Accommodation
BEIS,UKRI - AHRC,19/10/2018,T&S UK - Accommodation,GCRF - Programme Delivery,Corporate Travel Management (North) Ltd,98315467, 305.00 ,T&S UK - Accommodation
BEIS,UKRI - AHRC,19/10/2018,T&S UK - Accommodation,GCRF - Programme Delivery,Corporate Travel Management (North) Ltd,98315467, 0.50 ,T&S UK - Accommodation
BEIS,UKRI - AHRC,19/10/2018,T&S UK - Accommodation,GCRF - Programme Delivery,Corporate Travel Management (North) Ltd,98315467, 145.00 ,T&S UK - Accommodation
BEIS,UKRI - AHRC,19/10/2018,T&S UK - Accommodation,GCRF - Programme Delivery,Corporate Travel Management (North) Ltd,98315467, 0.50 ,T&S UK - Accommodation
BEIS,UKRI - AHRC,19/10/2018,T&S UK - Accommodation,GCRF - Programme Delivery,Corporate Travel Management (North) Ltd,98315467, 145.00 ,T&S UK - Accommodation
BEIS,UKRI - AHRC,19/10/2018,T&S UK - Accommodation,GCRF - Programme Delivery,Corporate Travel Management (North) Ltd,98315467, 0.30 ,T&S UK - Accommodation
BEIS,UKRI - AHRC,19/10/2018,T&S UK - Accommodation,HR,Corporate Travel Management (North) Ltd,98315467, 0.50 ,T&S UK - Accommodation
BEIS,UKRI - AHRC,19/10/2018,T&S UK - Accommodation,HR,Corporate Travel Management (North) Ltd,98315467, 212.00 ,T&S UK - Accommodation
BEIS,UKRI - AHRC,19/10/2018,T&S UK - Accommodation,HR,Corporate Travel Management (North) Ltd,98315467, 0.10 ,T&S UK - Accommodation
BEIS,UKRI - AHRC,19/10/2018,T&S UK - Accommodation,"Histories,Culture & Heritage",Corporate Travel Management (North) Ltd,98315467, 0.50 ,T&S UK - Accommodation
BEIS,UKRI - AHRC,19/10/2018,T&S UK - Accommodation,"Histories,Culture & Heritage",Corporate Travel Management (North) Ltd,98315467, 0.50 ,T&S UK - Accommodation
BEIS,UKRI - AHRC,19/10/2018,T&S UK - Accommodation,"Histories,Culture & Heritage",Corporate Travel Management (North) Ltd,98315467, 155.00 ,T&S UK - Accommodation
BEIS,UKRI - AHRC,19/10/2018,T&S UK - Accommodation,"Histories,Culture & Heritage",Corporate Travel Management (North) Ltd,98315467, 0.20 ,T&S UK - Accommodation
BEIS,UKRI - AHRC,19/10/2018,T&S UK - Accommodation,IS,Corporate Travel Management (North) Ltd,98315467, 0.50 ,T&S UK - Accommodation
BEIS,UKRI - AHRC,19/10/2018,T&S UK - Accommodation,IS,Corporate Travel Management (North) Ltd,98315467, 99.00 ,T&S UK - Accommodation
BEIS,UKRI - AHRC,19/10/2018,T&S UK - Accommodation,IS,Corporate Travel Management (North) Ltd,98315467, 0.50 ,T&S UK - Accommodation
BEIS,UKRI - AHRC,19/10/2018,T&S UK - Accommodation,IS,Corporate Travel Management (North) Ltd,98315467, 99.00 ,T&S UK - Accommodation
BEIS,UKRI - AHRC,19/10/2018,T&S UK - Accommodation,IS,Corporate Travel Management (North) Ltd,98315467, 0.50 ,T&S UK - Accommodation
BEIS,UKRI - AHRC,19/10/2018,T&S UK - Accommodation,IS,Corporate Travel Management (North) Ltd,98315467, 99.00 ,T&S UK - Accommodation
BEIS,UKRI - AHRC,19/10/2018,T&S UK - Accommodation,IS,Corporate Travel Management (North) Ltd,98315467, 0.50 ,T&S UK - Accommodation
BEIS,UKRI - AHRC,19/10/2018,T&S UK - Accommodation,IS,Corporate Travel Management (North) Ltd,98315467, 99.00 ,T&S UK - Accommodation
BEIS,UKRI - AHRC,19/10/2018,T&S UK - Accommodation,IS,Corporate Travel Management (North) Ltd,98315467, 0.40 ,T&S UK - Accommodation
BEIS,UKRI - AHRC,19/10/2018,T&S UK - Accommodation,International,Corporate Travel Management (North) Ltd,98315467, 0.50 ,T&S UK - Accommodation
BEIS,UKRI - AHRC,19/10/2018,T&S UK - Accommodation,International,Corporate Travel Management (North) Ltd,98315467, 0.10 ,T&S UK - Accommodation
BEIS,UKRI - AHRC,19/10/2018,T&S UK - Accommodation,"Languages,Literature & International Engagement",Corporate Travel Management (North) Ltd,98315467, 0.50 ,T&S UK - Accommodation
BEIS,UKRI - AHRC,19/10/2018,T&S UK - Accommodation,"Languages,Literature & International Engagement",Corporate Travel Management (North) Ltd,98315467, 75.00 ,T&S UK - Accommodation
BEIS,UKRI - AHRC,19/10/2018,T&S UK - Accommodation,"Languages,Literature & International Engagement",Corporate Travel Management (North) Ltd,98315467, 0.50 ,T&S UK - Accommodation
BEIS,UKRI - AHRC,19/10/2018,T&S UK - Accommodation,"Languages,Literature & International Engagement",Corporate Travel Management (North) Ltd,98315467, 75.00 ,T&S UK - Accommodation
BEIS,UKRI - AHRC,19/10/2018,T&S UK - Accommodation,"Languages,Literature & International Engagement",Corporate Travel Management (North) Ltd,98315467, 0.50 ,T&S UK - Accommodation
BEIS,UKRI - AHRC,19/10/2018,T&S UK - Accommodation,"Languages,Literature & International Engagement",Corporate Travel Management (North) Ltd,98315467, 75.00 ,T&S UK - Accommodation
BEIS,UKRI - AHRC,19/10/2018,T&S UK - Accommodation,"Languages,Literature & International Engagement",Corporate Travel Management (North) Ltd,98315467, 0.50 ,T&S UK - Accommodation
BEIS,UKRI - AHRC,19/10/2018,T&S UK - Accommodation,"Languages,Literature & International Engagement",Corporate Travel Management (North) Ltd,98315467, 75.00 ,T&S UK - Accommodation
BEIS,UKRI - AHRC,19/10/2018,T&S UK - Accommodation,"Languages,Literature & International Engagement",Corporate Travel Management (North) Ltd,98315467, 0.50 ,T&S UK - Accommodation
BEIS,UKRI - AHRC,19/10/2018,T&S UK - Accommodation,"Languages,Literature & International Engagement",Corporate Travel Management (North) Ltd,98315467, 75.00 ,T&S UK - Accommodation
BEIS,UKRI - AHRC,19/10/2018,T&S UK - Accommodation,"Languages,Literature & International Engagement",Corporate Travel Management (North) Ltd,98315467, 0.50 ,T&S UK - Accommodation
BEIS,UKRI - AHRC,19/10/2018,T&S UK - Accommodation,"Languages,Literature & International Engagement",Corporate Travel Management (North) Ltd,98315467, 41.50 ,T&S UK - Accommodation
BEIS,UKRI - AHRC,19/10/2018,T&S UK - Accommodation,"Languages,Literature & International Engagement",Corporate Travel Management (North) Ltd,98315467, 0.50 ,T&S UK - Accommodation
BEIS,UKRI - AHRC,19/10/2018,T&S UK - Accommodation,"Languages,Literature & International Engagement",Corporate Travel Management (North) Ltd,98315467, 75.00 ,T&S UK - Accommodation
BEIS,UKRI - AHRC,19/10/2018,T&S UK - Accommodation,"Languages,Literature & International Engagement",Corporate Travel Management (North) Ltd,98315467, 0.50 ,T&S UK - Accommodation
BEIS,UKRI - AHRC,19/10/2018,T&S UK - Accommodation,"Languages,Literature & International Engagement",Corporate Travel Management (North) Ltd,98315467, 41.50 ,T&S UK - Accommodation
BEIS,UKRI - AHRC,19/10/2018,T&S UK - Accommodation,"Languages,Literature & International Engagement",Corporate Travel Management (North) Ltd,98315467, 0.50 ,T&S UK - Accommodation
BEIS,UKRI - AHRC,19/10/2018,T&S UK - Accommodation,"Languages,Literature & International Engagement",Corporate Travel Management (North) Ltd,98315467, 75.00 ,T&S UK - Accommodation
BEIS,UKRI - AHRC,19/10/2018,T&S UK - Accommodation,"Languages,Literature & International Engagement",Corporate Travel Management (North) Ltd,98315467, 0.50 ,T&S UK - Accommodation
BEIS,UKRI - AHRC,19/10/2018,T&S UK - Accommodation,"Languages,Literature & International Engagement",Corporate Travel Management (North) Ltd,98315467, 129.70 ,T&S UK - Accommodation
BEIS,UKRI - AHRC,19/10/2018,T&S UK - Accommodation,"Languages,Literature & International Engagement",Corporate Travel Management (North) Ltd,98315467, 1.00 ,T&S UK - Accommodation
BEIS,UKRI - AHRC,19/10/2018,T&S UK - Accommodation,PSU Project Office,Corporate Travel Management (North) Ltd,98315467, 0.50 ,T&S UK - Accommodation
BEIS,UKRI - AHRC,19/10/2018,T&S UK - Accommodation,PSU Project Office,Corporate Travel Management (North) Ltd,98315467, 715.50 ,T&S UK - Accommodation
BEIS,UKRI - AHRC,19/10/2018,T&S UK - Accommodation,PSU Project Office,Corporate Travel Management (North) Ltd,98315467, 0.10 ,T&S UK - Accommodation
BEIS,UKRI - AHRC,19/10/2018,T&S UK - Accommodation,SMT,Corporate Travel Management (North) Ltd,98315467, 0.50 ,T&S UK - Accommodation
BEIS,UKRI - AHRC,19/10/2018,T&S UK - Accommodation,SMT,Corporate Travel Management (North) Ltd,98315467, 326.00 ,T&S UK - Accommodation
BEIS,UKRI - AHRC,19/10/2018,T&S UK - Accommodation,SMT,Corporate Travel Management (North) Ltd,98315467, 0.50 ,T&S UK - Accommodation
BEIS,UKRI - AHRC,19/10/2018,T&S UK - Accommodation,SMT,Corporate Travel Management (North) Ltd,98315467, 162.50 ,T&S UK - Accommodation
BEIS,UKRI - AHRC,19/10/2018,T&S UK - Accommodation,SMT,Corporate Travel Management (North) Ltd,98315467, 0.50 ,T&S UK - Accommodation
BEIS,UKRI - AHRC,19/10/2018,T&S UK - Accommodation,SMT,Corporate Travel Management (North) Ltd,98315467, 65.00 ,T&S UK - Accommodation
BEIS,UKRI - AHRC,19/10/2018,T&S UK - Accommodation,SMT,Corporate Travel Management (North) Ltd,98315467, 0.50 ,T&S UK - Accommodation
BEIS,UKRI - AHRC,19/10/2018,T&S UK - Accommodation,SMT,Corporate Travel Management (North) Ltd,98315467, 206.40 ,T&S UK - Accommodation
BEIS,UKRI - AHRC,19/10/2018,T&S UK - Accommodation,SMT,Corporate Travel Management (North) Ltd,98315467, 0.50 ,T&S UK - Accommodation
BEIS,UKRI - AHRC,19/10/2018,T&S UK - Accommodation,SMT,Corporate Travel Management (North) Ltd,98315467, 144.00 ,T&S UK - Accommodation
BEIS,UKRI - AHRC,19/10/2018,T&S UK - Accommodation,SMT,Corporate Travel Management (North) Ltd,98315467, 0.50 ,T&S UK - Accommodation
BEIS,UKRI - AHRC,19/10/2018,T&S UK - Accommodation,SMT,Corporate Travel Management (North) Ltd,98315467, 144.00 ,T&S UK - Accommodation
BEIS,UKRI - AHRC,19/10/2018,T&S UK - Accommodation,SMT,Corporate Travel Management (North) Ltd,98315467, 0.50 ,T&S UK - Accommodation
BEIS,UKRI - AHRC,19/10/2018,T&S UK - Accommodation,SMT,Corporate Travel Management (North) Ltd,98315467, 144.00 ,T&S UK - Accommodation
BEIS,UKRI - AHRC,19/10/2018,T&S UK - Accommodation,SMT,Corporate Travel Management (North) Ltd,98315467, 0.50 ,T&S UK - Accommodation
BEIS,UKRI - AHRC,19/10/2018,T&S UK - Accommodation,SMT,Corporate Travel Management (North) Ltd,98315467, 65.00 ,T&S UK - Accommodation
BEIS,UKRI - AHRC,19/10/2018,T&S UK - Accommodation,SMT,Corporate Travel Management (North) Ltd,98315467, 0.80 ,T&S UK - Accommodation
BEIS,UKRI - AHRC,19/10/2018,T&S UK - Flights,Creative Arts & Digital Humanities,Corporate Travel Management (North) Ltd,98315467," 1,714.81 ",T&S UK - Flights
BEIS,UKRI - AHRC,19/10/2018,T&S UK - Flights,SMT,Corporate Travel Management (North) Ltd,98315467, 624.91 ,T&S UK - Flights
BEIS,UKRI - AHRC,19/10/2018,T&S UK - Flights,SMT,Corporate Travel Management (North) Ltd,98315467, 624.91 ,T&S UK - Flights
BEIS,UKRI - AHRC,19/10/2018,T&S UK - Public Transport,"AHRC - Strategic Planning, Evidence & Impact",Corporate Travel Management (North) Ltd,98315467, 100.90 ,T&S UK - Public Transport
BEIS,UKRI - AHRC,19/10/2018,T&S UK - Public Transport,"AHRC - Strategic Planning, Evidence & Impact",Corporate Travel Management (North) Ltd,98315467, 172.00 ,T&S UK - Public Transport
BEIS,UKRI - AHRC,19/10/2018,T&S UK - Public Transport,"AHRC - Strategic Planning, Evidence & Impact",Corporate Travel Management (North) Ltd,98315467, 217.00 ,T&S UK - Public Transport
BEIS,UKRI - AHRC,19/10/2018,T&S UK - Public Transport,"AHRC - Strategic Planning, Evidence & Impact",Corporate Travel Management (North) Ltd,98315467, 13.50 ,T&S UK - Public Transport
BEIS,UKRI - AHRC,19/10/2018,T&S UK - Public Transport,Business Process & Analysis,Corporate Travel Management (North) Ltd,98315467, 35.60 ,T&S UK - Public Transport
BEIS,UKRI - AHRC,19/10/2018,T&S UK - Public Transport,Business Process & Analysis,Corporate Travel Management (North) Ltd,98315467, 140.30 ,T&S UK - Public Transport
BEIS,UKRI - AHRC,19/10/2018,T&S UK - Public Transport,Communications,Corporate Travel Management (North) Ltd,98315467, 98.30 ,T&S UK - Public Transport
BEIS,UKRI - AHRC,19/10/2018,T&S UK - Public Transport,Communications,Corporate Travel Management (North) Ltd,98315467, 90.30 ,T&S UK - Public Transport
BEIS,UKRI - AHRC,19/10/2018,T&S UK - Public Transport,Communications,Corporate Travel Management (North) Ltd,98315467, 96.30 ,T&S UK - Public Transport
BEIS,UKRI - AHRC,19/10/2018,T&S UK - Public Transport,Communications,Corporate Travel Management (North) Ltd,98315467, 19.00 ,T&S UK - Public Transport
BEIS,UKRI - AHRC,19/10/2018,T&S UK - Public Transport,Communications,Corporate Travel Management (North) Ltd,98315467, 23.50 ,T&S UK - Public Transport
BEIS,UKRI - AHRC,19/10/2018,T&S UK - Public Transport,Communications,Corporate Travel Management (North) Ltd,98315467, 84.50 ,T&S UK - Public Transport
BEIS,UKRI - AHRC,19/10/2018,T&S UK - Public Transport,Communications,Corporate Travel Management (North) Ltd,98315467, 196.90 ,T&S UK - Public Transport
BEIS,UKRI - AHRC,19/10/2018,T&S UK - Public Transport,Communications,Corporate Travel Management (North) Ltd,98315467, 85.80 ,T&S UK - Public Transport
BEIS,UKRI - AHRC,19/10/2018,T&S UK - Public Transport,Communications,Corporate Travel Management (North) Ltd,98315467, 139.60 ,T&S UK - Public Transport
BEIS,UKRI - AHRC,19/10/2018,T&S UK - Public Transport,Communications,Corporate Travel Management (North) Ltd,98315467, 139.60 ,T&S UK - Public Transport
BEIS,UKRI - AHRC,19/10/2018,T&S UK - Public Transport,Corporate Services,Corporate Travel Management (North) Ltd,98315467, 139.60 ,T&S UK - Public Transport
BEIS,UKRI - AHRC,19/10/2018,T&S UK - Public Transport,Corporate Services,Corporate Travel Management (North) Ltd,98315467, 139.60 ,T&S UK - Public Transport
BEIS,UKRI - AHRC,19/10/2018,T&S UK - Public Transport,Creative Arts & Digital Humanities,Corporate Travel Management (North) Ltd,98315467, 83.90 ,T&S UK - Public Transport
BEIS,UKRI - AHRC,19/10/2018,T&S UK - Public Transport,Creative Arts & Digital Humanities,Corporate Travel Management (North) Ltd,98315467, 211.40 ,T&S UK - Public Transport
BEIS,UKRI - AHRC,19/10/2018,T&S UK - Public Transport,Creative Arts & Digital Humanities,Corporate Travel Management (North) Ltd,98315467, 211.40 ,T&S UK - Public Transport
BEIS,UKRI - AHRC,19/10/2018,T&S UK - Public Transport,Creative Arts & Digital Humanities,Corporate Travel Management (North) Ltd,98315467, 160.30 ,T&S UK - Public Transport
BEIS,UKRI - AHRC,19/10/2018,T&S UK - Public Transport,Creative Arts & Digital Humanities,Corporate Travel Management (North) Ltd,98315467, 99.80 ,T&S UK - Public Transport
BEIS,UKRI - AHRC,19/10/2018,T&S UK - Public Transport,Creative Arts & Digital Humanities,Corporate Travel Management (North) Ltd,98315467, 103.20 ,T&S UK - Public Transport
BEIS,UKRI - AHRC,19/10/2018,T&S UK - Public Transport,Creative Arts & Digital Humanities,Corporate Travel Management (North) Ltd,98315467, 98.30 ,T&S UK - Public Transport
BEIS,UKRI - AHRC,19/10/2018,T&S UK - Public Transport,Creative Arts & Digital Humanities,Corporate Travel Management (North) Ltd,98315467, 69.50 ,T&S UK - Public Transport
BEIS,UKRI - AHRC,19/10/2018,T&S UK - Public Transport,Creative Arts & Digital Humanities,Corporate Travel Management (North) Ltd,98315467, 210.70 ,T&S UK - Public Transport
BEIS,UKRI - AHRC,19/10/2018,T&S UK - Public Transport,Creative Arts & Digital Humanities,Corporate Travel Management (North) Ltd,98315467, 202.80 ,T&S UK - Public Transport
BEIS,UKRI - AHRC,19/10/2018,T&S UK - Public Transport,Creative Arts & Digital Humanities,Corporate Travel Management (North) Ltd,98315467, 30.30 ,T&S UK - Public Transport
BEIS,UKRI - AHRC,19/10/2018,T&S UK - Public Transport,Creative Arts & Digital Humanities,Corporate Travel Management (North) Ltd,98315467, 51.90 ,T&S UK - Public Transport
BEIS,UKRI - AHRC,19/10/2018,T&S UK - Public Transport,Creative Arts & Digital Humanities,Corporate Travel Management (North) Ltd,98315467, 217.40 ,T&S UK - Public Transport
BEIS,UKRI - AHRC,19/10/2018,T&S UK - Public Transport,Creative Arts & Digital Humanities,Corporate Travel Management (North) Ltd,98315467, 143.50 ,T&S UK - Public Transport
BEIS,UKRI - AHRC,19/10/2018,T&S UK - Public Transport,Creative Arts & Digital Humanities,Corporate Travel Management (North) Ltd,98315467, 85.80 ,T&S UK - Public Transport
BEIS,UKRI - AHRC,19/10/2018,T&S UK - Public Transport,Creative Arts & Digital Humanities,Corporate Travel Management (North) Ltd,98315467, 69.80 ,T&S UK - Public Transport
BEIS,UKRI - AHRC,19/10/2018,T&S UK - Public Transport,Creative Arts & Digital Humanities,Corporate Travel Management (North) Ltd,98315467, 69.80 ,T&S UK - Public Transport
BEIS,UKRI - AHRC,19/10/2018,T&S UK - Public Transport,Creative Arts & Digital Humanities,Corporate Travel Management (North) Ltd,98315467, 5.00 ,T&S UK - Public Transport
BEIS,UKRI - AHRC,19/10/2018,T&S UK - Public Transport,Creative Arts & Digital Humanities,Corporate Travel Management (North) Ltd,98315467,-212.40 ,T&S UK - Public Transport
BEIS,UKRI - AHRC,19/10/2018,T&S UK - Public Transport,Creative Arts & Digital Humanities,Corporate Travel Management (North) Ltd,98315467, 156.70 ,T&S UK - Public Transport
BEIS,UKRI - AHRC,19/10/2018,T&S UK - Public Transport,Creative Arts & Digital Humanities,Corporate Travel Management (North) Ltd,98315467, 111.00 ,T&S UK - Public Transport
BEIS,UKRI - AHRC,19/10/2018,T&S UK - Public Transport,Creative Arts & Digital Humanities,Corporate Travel Management (North) Ltd,98315467, 139.60 ,T&S UK - Public Transport
BEIS,UKRI - AHRC,19/10/2018,T&S UK - Public Transport,Creative Arts & Digital Humanities,Corporate Travel Management (North) Ltd,98315467, 67.90 ,T&S UK - Public Transport
BEIS,UKRI - AHRC,19/10/2018,T&S UK - Public Transport,Creative Arts & Digital Humanities,Corporate Travel Management (North) Ltd,98315467, 27.00 ,T&S UK - Public Transport
BEIS,UKRI - AHRC,19/10/2018,T&S UK - Public Transport,Creative Arts & Digital Humanities,Corporate Travel Management (North) Ltd,98315467, 294.10 ,T&S UK - Public Transport
BEIS,UKRI - AHRC,19/10/2018,T&S UK - Public Transport,Creative Arts & Digital Humanities,Corporate Travel Management (North) Ltd,98315467, 160.30 ,T&S UK - Public Transport
BEIS,UKRI - AHRC,19/10/2018,T&S UK - Public Transport,Creative Arts & Digital Humanities,Corporate Travel Management (North) Ltd,98315467, 61.10 ,T&S UK - Public Transport
BEIS,UKRI - AHRC,19/10/2018,T&S UK - Public Transport,Creative Arts & Digital Humanities,Corporate Travel Management (North) Ltd,98315467, 67.20 ,T&S UK - Public Transport
BEIS,UKRI - AHRC,19/10/2018,T&S UK - Public Transport,GCRF - Programme Delivery,Corporate Travel Management (North) Ltd,98315467, 422.80 ,T&S UK - Public Transport
BEIS,UKRI - AHRC,19/10/2018,T&S UK - Public Transport,GCRF - Programme Delivery,Corporate Travel Management (North) Ltd,98315467, 217.40 ,T&S UK - Public Transport
BEIS,UKRI - AHRC,19/10/2018,T&S UK - Public Transport,GCRF - Programme Delivery,Corporate Travel Management (North) Ltd,98315467, 139.60 ,T&S UK - Public Transport
BEIS,UKRI - AHRC,19/10/2018,T&S UK - Public Transport,GCRF - Programme Delivery,Corporate Travel Management (North) Ltd,98315467, 2.00 ,T&S UK - Public Transport
BEIS,UKRI - AHRC,19/10/2018,T&S UK - Public Transport,GCRF - Programme Delivery,Corporate Travel Management (North) Ltd,98315467, 50.60 ,T&S UK - Public Transport
BEIS,UKRI - AHRC,19/10/2018,T&S UK - Public Transport,GCRF - Programme Delivery,Corporate Travel Management (North) Ltd,98315467, 77.30 ,T&S UK - Public Transport
BEIS,UKRI - AHRC,19/10/2018,T&S UK - Public Transport,HR,Corporate Travel Management (North) Ltd,98315467, 61.70 ,T&S UK - Public Transport
BEIS,UKRI - AHRC,19/10/2018,T&S UK - Public Transport,HR,Corporate Travel Management (North) Ltd,98315467, 23.00 ,T&S UK - Public Transport
BEIS,UKRI - AHRC,19/10/2018,T&S UK - Public Transport,HR,Corporate Travel Management (North) Ltd,98315467, 18.50 ,T&S UK - Public Transport
BEIS,UKRI - AHRC,19/10/2018,T&S UK - Public Transport,HR,Corporate Travel Management (North) Ltd,98315467, 100.70 ,T&S UK - Public Transport
BEIS,UKRI - AHRC,19/10/2018,T&S UK - Public Transport,HR,Corporate Travel Management (North) Ltd,98315467, 23.00 ,T&S UK - Public Transport
BEIS,UKRI - AHRC,19/10/2018,T&S UK - Public Transport,HR,Corporate Travel Management (North) Ltd,98315467,-18.00 ,T&S UK - Public Transport
BEIS,UKRI - AHRC,19/10/2018,T&S UK - Public Transport,HR,Corporate Travel Management (North) Ltd,98315467, 46.80 ,T&S UK - Public Transport
BEIS,UKRI - AHRC,19/10/2018,T&S UK - Public Transport,HR,Corporate Travel Management (North) Ltd,98315467, 18.80 ,T&S UK - Public Transport
BEIS,UKRI - AHRC,19/10/2018,T&S UK - Public Transport,HR,Corporate Travel Management (North) Ltd,98315467, 98.30 ,T&S UK - Public Transport
BEIS,UKRI - AHRC,19/10/2018,T&S UK - Public Transport,HR,Corporate Travel Management (North) Ltd,98315467, 243.80 ,T&S UK - Public Transport
BEIS,UKRI - AHRC,19/10/2018,T&S UK - Public Transport,HR,Corporate Travel Management (North) Ltd,98315467, 140.30 ,T&S UK - Public Transport
BEIS,UKRI - AHRC,19/10/2018,T&S UK - Public Transport,HR,Corporate Travel Management (North) Ltd,98315467, 100.70 ,T&S UK - Public Transport
BEIS,UKRI - AHRC,19/10/2018,T&S UK - Public Transport,HR,Corporate Travel Management (North) Ltd,98315467, 70.60 ,T&S UK - Public Transport
BEIS,UKRI - AHRC,19/10/2018,T&S UK - Public Transport,HR,Corporate Travel Management (North) Ltd,98315467, 18.80 ,T&S UK - Public Transport
BEIS,UKRI - AHRC,19/10/2018,T&S UK - Public Transport,HR,Corporate Travel Management (North) Ltd,98315467, 46.80 ,T&S UK - Public Transport
BEIS,UKRI - AHRC,19/10/2018,T&S UK - Public Transport,HR,Corporate Travel Management (North) Ltd,98315467,-18.00 ,T&S UK - Public Transport
BEIS,UKRI - AHRC,19/10/2018,T&S UK - Public Transport,"Histories,Culture & Heritage",Corporate Travel Management (North) Ltd,98315467, 119.40 ,T&S UK - Public Transport
BEIS,UKRI - AHRC,19/10/2018,T&S UK - Public Transport,"Histories,Culture & Heritage",Corporate Travel Management (North) Ltd,98315467, 90.30 ,T&S UK - Public Transport
BEIS,UKRI - AHRC,19/10/2018,T&S UK - Public Transport,"Histories,Culture & Heritage",Corporate Travel Management (North) Ltd,98315467, 139.60 ,T&S UK - Public Transport
BEIS,UKRI - AHRC,19/10/2018,T&S UK - Public Transport,"Histories,Culture & Heritage",Corporate Travel Management (North) Ltd,98315467, 139.60 ,T&S UK - Public Transport
BEIS,UKRI - AHRC,19/10/2018,T&S UK - Public Transport,IS,Corporate Travel Management (North) Ltd,98315467, 9.80 ,T&S UK - Public Transport
BEIS,UKRI - AHRC,19/10/2018,T&S UK - Public Transport,IS,Corporate Travel Management (North) Ltd,98315467, 94.70 ,T&S UK - Public Transport
BEIS,UKRI - AHRC,19/10/2018,T&S UK - Public Transport,IS,Corporate Travel Management (North) Ltd,98315467, 96.40 ,T&S UK - Public Transport
BEIS,UKRI - AHRC,19/10/2018,T&S UK - Public Transport,IS,Corporate Travel Management (North) Ltd,98315467, 67.90 ,T&S UK - Public Transport
BEIS,UKRI - AHRC,19/10/2018,T&S UK - Public Transport,IS,Corporate Travel Management (North) Ltd,98315467, 43.90 ,T&S UK - Public Transport
BEIS,UKRI - AHRC,19/10/2018,T&S UK - Public Transport,Industrial Strategy Challenge Fund (ISCF) - Creative Clusters,Corporate Travel Management (North) Ltd,98315467, 217.40 ,T&S UK - Public Transport
BEIS,UKRI - AHRC,19/10/2018,T&S UK - Public Transport,International,Corporate Travel Management (North) Ltd,98315467, 153.60 ,T&S UK - Public Transport
BEIS,UKRI - AHRC,19/10/2018,T&S UK - Public Transport,International,Corporate Travel Management (North) Ltd,98315467, 30.90 ,T&S UK - Public Transport
BEIS,UKRI - AHRC,19/10/2018,T&S UK - Public Transport,International,Corporate Travel Management (North) Ltd,98315467, 108.70 ,T&S UK - Public Transport
BEIS,UKRI - AHRC,19/10/2018,T&S UK - Public Transport,"Languages,Literature & International Engagement",Corporate Travel Management (North) Ltd,98315467, 139.60 ,T&S UK - Public Transport
BEIS,UKRI - AHRC,19/10/2018,T&S UK - Public Transport,"Languages,Literature & International Engagement",Corporate Travel Management (North) Ltd,98315467, 105.00 ,T&S UK - Public Transport
BEIS,UKRI - AHRC,19/10/2018,T&S UK - Public Transport,"Languages,Literature & International Engagement",Corporate Travel Management (North) Ltd,98315467, 23.00 ,T&S UK - Public Transport
BEIS,UKRI - AHRC,19/10/2018,T&S UK - Public Transport,"Languages,Literature & International Engagement",Corporate Travel Management (North) Ltd,98315467, 209.20 ,T&S UK - Public Transport
BEIS,UKRI - AHRC,19/10/2018,T&S UK - Public Transport,"Languages,Literature & International Engagement",Corporate Travel Management (North) Ltd,98315467, 139.60 ,T&S UK - Public Transport
BEIS,UKRI - AHRC,19/10/2018,T&S UK - Public Transport,"Languages,Literature & International Engagement",Corporate Travel Management (North) Ltd,98315467, 99.80 ,T&S UK - Public Transport
BEIS,UKRI - AHRC,19/10/2018,T&S UK - Public Transport,PSU Project Office,Corporate Travel Management (North) Ltd,98315467,-7.70 ,T&S UK - Public Transport
BEIS,UKRI - AHRC,19/10/2018,T&S UK - Public Transport,PSU Project Office,Corporate Travel Management (North) Ltd,98315467,-128.60 ,T&S UK - Public Transport
BEIS,UKRI - AHRC,19/10/2018,T&S UK - Public Transport,PSU Project Office,Corporate Travel Management (North) Ltd,98315467, 16.00 ,T&S UK - Public Transport
BEIS,UKRI - AHRC,19/10/2018,T&S UK - Public Transport,PSU Project Office,Corporate Travel Management (North) Ltd,98315467, 16.00 ,T&S UK - Public Transport
BEIS,UKRI - AHRC,19/10/2018,T&S UK - Public Transport,PSU Project Office,Corporate Travel Management (North) Ltd,98315467, 133.60 ,T&S UK - Public Transport
BEIS,UKRI - AHRC,19/10/2018,T&S UK - Public Transport,PSU Project Office,Corporate Travel Management (North) Ltd,98315467, 133.60 ,T&S UK - Public Transport
BEIS,UKRI - AHRC,19/10/2018,T&S UK - Public Transport,PSU Project Office,Corporate Travel Management (North) Ltd,98315467, 12.70 ,T&S UK - Public Transport
BEIS,UKRI - AHRC,19/10/2018,T&S UK - Public Transport,PSU Project Office,Corporate Travel Management (North) Ltd,98315467, 133.60 ,T&S UK - Public Transport
BEIS,UKRI - AHRC,19/10/2018,T&S UK - Public Transport,PSU Project Office,Corporate Travel Management (North) Ltd,98315467, 1.00 ,T&S UK - Public Transport
BEIS,UKRI - AHRC,19/10/2018,T&S UK - Public Transport,PSU Project Office,Corporate Travel Management (North) Ltd,98315467, 75.90 ,T&S UK - Public Transport
BEIS,UKRI - AHRC,19/10/2018,T&S UK - Public Transport,PSU Project Office,Corporate Travel Management (North) Ltd,98315467, 30.90 ,T&S UK - Public Transport
BEIS,UKRI - AHRC,19/10/2018,T&S UK - Public Transport,PSU Project Office,Corporate Travel Management (North) Ltd,98315467, 95.70 ,T&S UK - Public Transport
BEIS,UKRI - AHRC,19/10/2018,T&S UK - Public Transport,PSU Project Office,Corporate Travel Management (North) Ltd,98315467, 140.30 ,T&S UK - Public Transport
BEIS,UKRI - AHRC,19/10/2018,T&S UK - Public Transport,PSU Project Office,Corporate Travel Management (North) Ltd,98315467, 78.30 ,T&S UK - Public Transport
BEIS,UKRI - AHRC,19/10/2018,T&S UK - Public Transport,PSU Project Office,Corporate Travel Management (North) Ltd,98315467, 140.30 ,T&S UK - Public Transport
BEIS,UKRI - AHRC,19/10/2018,T&S UK - Public Transport,PSU Project Office,Corporate Travel Management (North) Ltd,98315467, 129.30 ,T&S UK - Public Transport
BEIS,UKRI - AHRC,19/10/2018,T&S UK - Public Transport,PSU Project Office,Corporate Travel Management (North) Ltd,98315467, 129.30 ,T&S UK - Public Transport
BEIS,UKRI - AHRC,19/10/2018,T&S UK - Public Transport,PSU Project Office,Corporate Travel Management (North) Ltd,98315467, 1.00 ,T&S UK - Public Transport
BEIS,UKRI - AHRC,19/10/2018,T&S UK - Public Transport,PSU Project Office,Corporate Travel Management (North) Ltd,98315467, 139.60 ,T&S UK - Public Transport
BEIS,UKRI - AHRC,19/10/2018,T&S UK - Public Transport,PSU Project Office,Corporate Travel Management (North) Ltd,98315467, 89.10 ,T&S UK - Public Transport
BEIS,UKRI - AHRC,19/10/2018,T&S UK - Public Transport,PSU Project Office,Corporate Travel Management (North) Ltd,98315467, 106.50 ,T&S UK - Public Transport
BEIS,UKRI - AHRC,19/10/2018,T&S UK - Public Transport,SMT,Corporate Travel Management (North) Ltd,98315467, 94.70 ,T&S UK - Public Transport
BEIS,UKRI - AHRC,19/10/2018,T&S UK - Public Transport,SMT,Corporate Travel Management (North) Ltd,98315467, 68.70 ,T&S UK - Public Transport
BEIS,UKRI - AHRC,19/10/2018,T&S UK - Public Transport,SMT,Corporate Travel Management (North) Ltd,98315467, 66.80 ,T&S UK - Public Transport
BEIS,UKRI - AHRC,19/10/2018,T&S UK - Public Transport,SMT,Corporate Travel Management (North) Ltd,98315467, 20.50 ,T&S UK - Public Transport
BEIS,UKRI - AHRC,19/10/2018,T&S UK - Public Transport,SMT,Corporate Travel Management (North) Ltd,98315467, 68.70 ,T&S UK - Public Transport
BEIS,UKRI - AHRC,19/10/2018,T&S UK - Public Transport,SMT,Corporate Travel Management (North) Ltd,98315467, 128.80 ,T&S UK - Public Transport
BEIS,UKRI - AHRC,19/10/2018,T&S UK - Public Transport,SMT,Corporate Travel Management (North) Ltd,98315467, 72.10 ,T&S UK - Public Transport
BEIS,UKRI - AHRC,19/10/2018,T&S UK - Public Transport,SMT,Corporate Travel Management (North) Ltd,98315467, 105.00 ,T&S UK - Public Transport
BEIS,UKRI - AHRC,19/10/2018,T&S UK - Public Transport,SMT,Corporate Travel Management (North) Ltd,98315467, 1.00 ,T&S UK - Public Transport
BEIS,UKRI - AHRC,19/10/2018,T&S UK - Public Transport,SMT,Corporate Travel Management (North) Ltd,98315467, 68.70 ,T&S UK - Public Transport
BEIS,UKRI - AHRC,19/10/2018,T&S UK - Public Transport,SMT,Corporate Travel Management (North) Ltd,98315467, 86.50 ,T&S UK - Public Transport
BEIS,UKRI - AHRC,19/10/2018,T&S UK - Public Transport,SMT,Corporate Travel Management (North) Ltd,98315467, 2.00 ,T&S UK - Public Transport
BEIS,UKRI - AHRC,19/10/2018,T&S UK - Public Transport,SMT,Corporate Travel Management (North) Ltd,98315467, 25.40 ,T&S UK - Public Transport
BEIS,UKRI - AHRC,19/10/2018,T&S UK - Public Transport,SMT,Corporate Travel Management (North) Ltd,98315467, 47.90 ,T&S UK - Public Transport
BEIS,UKRI - AHRC,19/10/2018,T&S UK - Public Transport,SMT,Corporate Travel Management (North) Ltd,98315467, 139.60 ,T&S UK - Public Transport
BEIS,UKRI - AHRC,19/10/2018,T&S UK - Public Transport,SMT,Corporate Travel Management (North) Ltd,98315467, 63.20 ,T&S UK - Public Transport
BEIS,UKRI - AHRC,19/10/2018,T&S UK - Public Transport,SMT,Corporate Travel Management (North) Ltd,98315467, 94.70 ,T&S UK - Public Transport
BEIS,UKRI - AHRC,19/10/2018,T&S UK - Public Transport,SMT,Corporate Travel Management (North) Ltd,98315467, 42.80 ,T&S UK - Public Transport
BEIS,UKRI - AHRC,19/10/2018,T&S UK - Public Transport,SMT,Corporate Travel Management (North) Ltd,98315467, 27.90 ,T&S UK - Public Transport
BEIS,UKRI - AHRC,19/10/2018,T&S UK - Public Transport,SMT,Corporate Travel Management (North) Ltd,98315467, 1.00 ,T&S UK - Public Transport
BEIS,UKRI - AHRC,19/10/2018,T&S UK - Public Transport,SMT,Corporate Travel Management (North) Ltd,98315467, 41.90 ,T&S UK - Public Transport
BEIS,UKRI - AHRC,19/10/2018,T&S UK - Public Transport,SMT,Corporate Travel Management (North) Ltd,98315467, 63.20 ,T&S UK - Public Transport
BEIS,UKRI - AHRC,19/10/2018,T&S UK - Public Transport,SMT,Corporate Travel Management (North) Ltd,98315467, 172.00 ,T&S UK - Public Transport
BEIS,UKRI - AHRC,19/10/2018,T&S UK - Public Transport,SMT,Corporate Travel Management (North) Ltd,98315467, 1.00 ,T&S UK - Public Transport
BEIS,UKRI - AHRC,19/10/2018,T&S UK - Public Transport,SMT,Corporate Travel Management (North) Ltd,98315467, 24.40 ,T&S UK - Public Transport
BEIS,UKRI - AHRC,19/10/2018,T&S UK - Public Transport,SMT,Corporate Travel Management (North) Ltd,98315467, 1.00 ,T&S UK - Public Transport
BEIS,UKRI - AHRC,19/10/2018,T&S UK - Public Transport,SMT,Corporate Travel Management (North) Ltd,98315467, 153.40 ,T&S UK - Public Transport
BEIS,UKRI - AHRC,19/10/2018,T&S UK - Public Transport,SMT,Corporate Travel Management (North) Ltd,98315467, 27.90 ,T&S UK - Public Transport
BEIS,UKRI - AHRC,19/10/2018,T&S UK - Public Transport,SMT,Corporate Travel Management (North) Ltd,98315467,-58.70 ,T&S UK - Public Transport
BEIS,UKRI - AHRC,19/10/2018,T&S UK - Public Transport,SMT,Corporate Travel Management (North) Ltd,98315467, 94.70 ,T&S UK - Public Transport
BEIS,UKRI - AHRC,19/10/2018,T&S UK - Public Transport,SMT,Corporate Travel Management (North) Ltd,98315467, 5.00 ,T&S UK - Public Transport
BEIS,UKRI - AHRC,19/10/2018,T&S UK - Public Transport,SMT,Corporate Travel Management (North) Ltd,98315467,-58.70 ,T&S UK - Public Transport
BEIS,UKRI - AHRC,19/10/2018,T&S UK - Public Transport,SMT,Corporate Travel Management (North) Ltd,98315467, 94.70 ,T&S UK - Public Transport
BEIS,UKRI - AHRC,19/10/2018,T&S UK - Public Transport,SMT,Corporate Travel Management (North) Ltd,98315467, 71.00 ,T&S UK - Public Transport
BEIS,UKRI - AHRC,19/10/2018,T&S UK - Public Transport,SMT,Corporate Travel Management (North) Ltd,98315467, 47.90 ,T&S UK - Public Transport
BEIS,UKRI - AHRC,19/10/2018,T&S UK - Public Transport,SMT,Corporate Travel Management (North) Ltd,98315467, 94.70 ,T&S UK - Public Transport
BEIS,UKRI - AHRC,19/10/2018,T&S UK - Public Transport,SMT,Corporate Travel Management (North) Ltd,98315467, 24.40 ,T&S UK - Public Transport
BEIS,UKRI - AHRC,19/10/2018,T&S UK - Public Transport,SMT,Corporate Travel Management (North) Ltd,98315467, 86.00 ,T&S UK - Public Transport
BEIS,UKRI - AHRC,19/10/2018,T&S UK - Public Transport,SMT,Corporate Travel Management (North) Ltd,98315467, 41.90 ,T&S UK - Public Transport
BEIS,UKRI - AHRC,19/10/2018,T&S UK - Public Transport,SMT,Corporate Travel Management (North) Ltd,98315467, 47.90 ,T&S UK - Public Transport
BEIS,UKRI - AHRC,19/10/2018,T&S UK - Public Transport,SMT,Corporate Travel Management (North) Ltd,98315467, 66.80 ,T&S UK - Public Transport
BEIS,UKRI - AHRC,19/10/2018,T&S UK - Public Transport,SMT,Corporate Travel Management (North) Ltd,98315467, 1.00 ,T&S UK - Public Transport
BEIS,UKRI - AHRC,19/10/2018,T&S UK - Public Transport,SMT,Corporate Travel Management (North) Ltd,98315467, 62.50 ,T&S UK - Public Transport
BEIS,UKRI - AHRC,19/10/2018,T&S UK - Public Transport,SMT,Corporate Travel Management (North) Ltd,98315467, 87.60 ,T&S UK - Public Transport
BEIS,UKRI - AHRC,19/10/2018,T&S UK - Public Transport,SMT,Corporate Travel Management (North) Ltd,98315467, 1.00 ,T&S UK - Public Transport
BEIS,UKRI - AHRC,19/10/2018,T&S UK - Public Transport,SMT,Corporate Travel Management (North) Ltd,98315467, 10.50 ,T&S UK - Public Transport
BEIS,UKRI - AHRC,19/10/2018,T&S UK - Public Transport,SMT,Corporate Travel Management (North) Ltd,98315467, 61.50 ,T&S UK - Public Transport
BEIS,UKRI - AHRC,19/10/2018,T&S UK - Public Transport,SMT,Corporate Travel Management (North) Ltd,98315467, 27.90 ,T&S UK - Public Transport
BEIS,UKRI - AHRC,19/10/2018,T&S UK - Public Transport,SMT,Corporate Travel Management (North) Ltd,98315467, 27.90 ,T&S UK - Public Transport
BEIS,UKRI - AHRC,19/10/2018,T&S UK - Public Transport,SMT,Corporate Travel Management (North) Ltd,98315467, 1.00 ,T&S UK - Public Transport
BEIS,UKRI - AHRC,19/10/2018,T&S UK - Public Transport,SMT,Corporate Travel Management (North) Ltd,98315467, 86.00 ,T&S UK - Public Transport
BEIS,UKRI - AHRC,19/10/2018,T&S UK - Public Transport,SMT,Corporate Travel Management (North) Ltd,98315467, 94.70 ,T&S UK - Public Transport
BEIS,UKRI - AHRC,19/10/2018,T&S UK - Public Transport,SMT,Corporate Travel Management (North) Ltd,98315467, 2.00 ,T&S UK - Public Transport
BEIS,UKRI - AHRC,19/10/2018,T&S UK - Public Transport,SMT,Corporate Travel Management (North) Ltd,98315467, 143.00 ,T&S UK - Public Transport
BEIS,UKRI - AHRC,19/10/2018,T&S UK - Public Transport,SMT,Corporate Travel Management (North) Ltd,98315467, 74.40 ,T&S UK - Public Transport
BEIS,UKRI - AHRC,19/10/2018,T&S UK - Public Transport,SMT,Corporate Travel Management (North) Ltd,98315467, 15.20 ,T&S UK - Public Transport
BEIS,UKRI - AHRC,19/10/2018,T&S UK - Public Transport,SMT,Corporate Travel Management (North) Ltd,98315467, 139.30 ,T&S UK - Public Transport
BEIS,UKRI - AHRC,19/10/2018,T&S UK - Public Transport,SMT,Corporate Travel Management (North) Ltd,98315467,-134.60 ,T&S UK - Public Transport
BEIS,UKRI - AHRC,19/10/2018,T&S UK - Public Transport,Skills,Corporate Travel Management (North) Ltd,98315467, 135.30 ,T&S UK - Public Transport
BEIS,UKRI - AHRC,19/10/2018,T&S UK - Public Transport,Skills,Corporate Travel Management (North) Ltd,98315467, 96.40 ,T&S UK - Public Transport
BEIS,UKRI - AHRC,24/10/2018,Training Awards - Postgraduates,Collabrative Doctoral Grants - Block Payment,Courtauld Institute of Art,98305349," 5,374.50 ",Training Awards - Postgraduates
BEIS,UKRI - AHRC,24/10/2018,Training Awards - Postgraduates,Collabrative Doctoral Grants - Block Payment,Courtauld Institute of Art,98305413," 5,473.00 ",Training Awards - Postgraduates
BEIS,UKRI - AHRC,24/10/2018,Training Awards - Postgraduates,Collabrative Doctoral Grants - Block Payment,Coventry University,98305319," 4,874.50 ",Training Awards - Postgraduates
BEIS,UKRI - AHRC,24/10/2018,Training Awards - Postgraduates,Collabrative Doctoral Grants - Block Payment,De Montfort University,98305408," 4,973.00 ",Training Awards - Postgraduates
BEIS,UKRI - AHRC,24/10/2018,Training Awards - Postgraduates,Collabrative Doctoral Grants - Block Payment,De Montfort University,98305418," 4,973.00 ",Training Awards - Postgraduates
BEIS,UKRI - AHRC,24/10/2018,Training Awards - Postgraduates,Collabrative Doctoral Grants - Block Payment,De Montfort University,98305450," 4,946.75 ",Training Awards - Postgraduates
BEIS,UKRI - AHRC,16/10/2018,Nursery Deductions,Balance Sheet,EDENRED (UK GROUP) LTD,98311036," 4,791.52 ",Nursery Deductions
BEIS,UKRI - AHRC,17/10/2018,Other Staff Benefits,Corporate Services,EDENRED (UK GROUP) LTD,98311039, 10.34 ,Other Staff Benefits
BEIS,UKRI - AHRC,23/10/2018,Recharges JRS,Corporate Services,Engineering & Physical Sciences Research Council,98313383," 10,104.84 ",Recharges JRS
BEIS,UKRI - AHRC,23/10/2018,Recharges From Councils - General,Industrial Strategy Challenge Fund (ISCF) - Creative Clusters,Engineering & Physical Sciences Research Council,98314441," 39,430.61 ",Recharges From Councils - General
BEIS,UKRI - AHRC,25/10/2018,Advertising & Promotion,Communications,Firebird Films Ltd,98317181," 3,030.00 ",Advertising & Promotion
BEIS,UKRI - AHRC,17/10/2018,Hospitality,New Programme Development,Future Cities Catapult,98312923," 1,320.00 ",Hospitality
BEIS,UKRI - AHRC,24/10/2018,Training Awards - Postgraduates,Collabrative Doctoral Grants - Block Payment,Glasgow School of Art,98305423," 4,973.00 ",Training Awards - Postgraduates
BEIS,UKRI - AHRC,23/10/2018,Conferences & Seminars,Corporate Services,Great Western Hotel (Swindon) Ltd,98316800, 197.50 ,Conferences & Seminars
BEIS,UKRI - AHRC,24/10/2018,Training Awards - Postgraduates,Collabrative Doctoral Grants - Block Payment,Guildhall School of Music & Drama,98305356," 5,463.75 ",Training Awards - Postgraduates
BEIS,UKRI - AHRC,02/10/2018,Recruitment Costs,Finance,Hays Specialist Recruitment Ltd,98297186," 1,816.50 ",Recruitment Costs
BEIS,UKRI - AHRC,02/10/2018,Recruitment Costs,Finance,Hays Specialist Recruitment Ltd,98299964," 1,816.50 ",Recruitment Costs
BEIS,UKRI - AHRC,03/10/2018,Contract Staff,PSU Project Office,Hays Specialist Recruitment Ltd,98299949," 3,027.78 ",Contract Staff
BEIS,UKRI - AHRC,03/10/2018,Contract Staff,Finance,Hays Specialist Recruitment Ltd,98300427," 1,566.24 ",Contract Staff
BEIS,UKRI - AHRC,04/10/2018,Agency Staff,Finance,Hays Specialist Recruitment Ltd,98303241," 2,672.76 ",Agency Staff
BEIS,UKRI - AHRC,04/10/2018,Recruitment Costs,Finance,Hays Specialist Recruitment Ltd,98303246," 1,816.50 ",Recruitment Costs
BEIS,UKRI - AHRC,05/10/2018,Agency Staff,PSU Project Office,Hays Specialist Recruitment Ltd,98304096, 830.75 ,Agency Staff
BEIS,UKRI - AHRC,08/10/2018,Contract Staff,Finance,Hays Specialist Recruitment Ltd,98304107," 1,566.24 ",Contract Staff
BEIS,UKRI - AHRC,11/10/2018,Recruitment Costs,Finance,Hays Specialist Recruitment Ltd,98309135," 1,816.50 ",Recruitment Costs
BEIS,UKRI - AHRC,12/10/2018,Contract Staff,PSU Project Office,Hays Specialist Recruitment Ltd,98307149," 3,027.78 ",Contract Staff
BEIS,UKRI - AHRC,12/10/2018,Agency Staff,Finance,Hays Specialist Recruitment Ltd,98310214," 2,672.76 ",Agency Staff
BEIS,UKRI - AHRC,16/10/2018,Contract Staff,Finance,Hays Specialist Recruitment Ltd,98311500," 1,566.24 ",Contract Staff
BEIS,UKRI - AHRC,23/10/2018,Agency Staff,Finance,Hays Specialist Recruitment Ltd,98316700," 2,138.21 ",Agency Staff
BEIS,UKRI - AHRC,23/10/2018,Agency Staff,Finance,Hays Specialist Recruitment Ltd,98316702," 2,672.76 ",Agency Staff
BEIS,UKRI - AHRC,25/10/2018,Contract Staff,Finance,Hays Specialist Recruitment Ltd,98316793," 1,252.99 ",Contract Staff
BEIS,UKRI - AHRC,25/10/2018,Contract Staff,Finance,Hays Specialist Recruitment Ltd,98316798," 1,566.24 ",Contract Staff
BEIS,UKRI - AHRC,29/10/2018,Contract Staff,PSU Project Office,Hays Specialist Recruitment Ltd,98315556," 3,027.78 ",Contract Staff
BEIS,UKRI - AHRC,29/10/2018,Contract Staff,PSU Project Office,Hays Specialist Recruitment Ltd,98319515," 3,027.78 ",Contract Staff
BEIS,UKRI - AHRC,31/10/2018,Agency Staff,Finance,Hays Specialist Recruitment Ltd,98322236, 534.55 ,Agency Staff
BEIS,UKRI - AHRC,31/10/2018,Agency Staff,Finance,Hays Specialist Recruitment Ltd,98322252," 2,672.76 ",Agency Staff
BEIS,UKRI - AHRC,24/10/2018,Training Awards - Postgraduates,Collabrative Doctoral Grants - Block Payment,Heriot Watt University,98305362," 4,963.75 ",Training Awards - Postgraduates
BEIS,UKRI - AHRC,12/10/2018,NI Payable Salaries,Balance Sheet,HM Revenue & Customs,98309902," 92,487.92 ",NI Payable Salaries
BEIS,UKRI - AHRC,12/10/2018,PAYE Payable Salaries,Balance Sheet,HM Revenue & Customs,98309903," 69,776.24 ",PAYE Payable Salaries
BEIS,UKRI - AHRC,12/10/2018,Student Loans,Balance Sheet,HM Revenue & Customs,98309904," 4,198.00 ",Student Loans
BEIS,UKRI - AHRC,12/10/2018,Apprenticeship Levy,Corporate Services,HM Revenue & Customs,98309905," 2,457.00 ",Apprenticeship Levy
BEIS,UKRI - AHRC,10/10/2018,Conferences & Seminars,Communications,House of Commons,98294921,-450.00 ,Conferences & Seminars
BEIS,UKRI - AHRC,10/10/2018,Conferences & Seminars,Communications,House of Commons,98296558," 1,436.25 ",Conferences & Seminars
BEIS,UKRI - AHRC,10/10/2018,Conferences & Seminars,Communications,House of Commons,98296558, 450.00 ,Conferences & Seminars
BEIS,UKRI - AHRC,26/10/2018,Conferences & Seminars,SMT,Institute for Government,98319107," 1,065.30 ",Conferences & Seminars
BEIS,UKRI - AHRC,25/10/2018,Research Grant Expenditure,HERA Joint Research Programme,Irish Research Council,98317343," 646,157.47 ",Research Grant Expenditure
BEIS,UKRI - AHRC,17/10/2018,Data Storage & Recovery,Corporate Services,Iron Mountain (UK) PLC,98313668, 154.92 ,Data Storage & Recovery
BEIS,UKRI - AHRC,17/10/2018,Data Storage & Recovery,Corporate Services,Iron Mountain (UK) PLC,98313687, 154.92 ,Data Storage & Recovery
BEIS,UKRI - AHRC,05/10/2018,Contract Staff,IS,JC Web Services Ltd,98304792," 9,600.00 ",Contract Staff
BEIS,UKRI - AHRC,23/10/2018,Contract Staff,IS,JC Web Services Ltd,98317320," 2,400.00 ",Contract Staff
BEIS,UKRI - AHRC,24/10/2018,Training Awards - Postgraduates,Collabrative Doctoral Grants - Block Payment,Keele University,98305449," 4,946.75 ",Training Awards - Postgraduates
BEIS,UKRI - AHRC,24/10/2018,Training Awards - Postgraduates,Collabrative Doctoral Grants - Block Payment,King's College London,98305406," 5,473.00 ",Training Awards - Postgraduates
BEIS,UKRI - AHRC,24/10/2018,Training Awards - Postgraduates,International Placement Scheme,King's College London,98305469," 4,470.00 ",Training Awards - Postgraduates
BEIS,UKRI - AHRC,24/10/2018,Training Awards - Postgraduates,International Placement Scheme,King's College London,98305471," 4,470.00 ",Training Awards - Postgraduates
BEIS,UKRI - AHRC,24/10/2018,Training Awards - Postgraduates,International Placement Scheme,King's College London,98305475," 4,470.00 ",Training Awards - Postgraduates
BEIS,UKRI - AHRC,24/10/2018,Training Awards - Postgraduates,Collabrative Doctoral Grants - Block Payment,Lancaster University,98305375," 5,015.21 ",Training Awards - Postgraduates
BEIS,UKRI - AHRC,24/10/2018,Training Awards - Postgraduates,Collabrative Doctoral Grants - Block Payment,Lancaster University,98305456," 10,794.50 ",Training Awards - Postgraduates
BEIS,UKRI - AHRC,22/10/2018,Legal & Professional Services,Industrial Strategy Challenge Fund (ISCF) - Creative Clusters,Lilley Associates Ltd,98315145," 9,000.00 ",Legal & Professional Services
BEIS,UKRI - AHRC,23/10/2018,Legal & Professional Services,Industrial Strategy Challenge Fund (ISCF) - Creative Clusters,Lilley Associates Ltd,98315147," 11,250.00 ",Legal & Professional Services
BEIS,UKRI - AHRC,24/10/2018,Training Awards - Postgraduates,Collabrative Doctoral Grants - Block Payment,London South Bank University,98305326," 5,463.75 ",Training Awards - Postgraduates
BEIS,UKRI - AHRC,24/10/2018,Training Awards - Postgraduates,International Placement Scheme,Loughborough University,98305472," 5,475.68 ",Training Awards - Postgraduates
BEIS,UKRI - AHRC,24/10/2018,Training Awards - Postgraduates,Collabrative Doctoral Grants - Block Payment,Manchester Metropolitan University,98305347," 4,963.75 ",Training Awards - Postgraduates
BEIS,UKRI - AHRC,09/10/2018,Research Grant Expenditure,Global Challenges Research Fund (GCRF),Medical Research Council,98299277," 10,258.19 ",Research Grant Expenditure
BEIS,UKRI - AHRC,09/10/2018,Nursery Deductions,Balance Sheet,Medical Research Council,98300911, 243.00 ,Nursery Deductions
BEIS,UKRI - AHRC,16/10/2018,Research Grant Expenditure,RCUK Global Challenges Research Fund (RCUK GCRF),Medical Research Council,98310882," 13,235.74 ",Research Grant Expenditure
BEIS,UKRI - AHRC,30/10/2018,Research Grant Expenditure,Newton Programme Delivery,Medical Research Council,98321773," 8,489.57 ",Research Grant Expenditure
BEIS,UKRI - AHRC,02/10/2018,Secondments,PSU JRS,Natural Environment Research Council,98299250," 9,968.74 ",Secondments
BEIS,UKRI - AHRC,02/10/2018,Non-staff travel and subsistance,Communications,Non Employee Expenses Supplier,98300445, 180.60 ,Non-staff travel and subsistance
BEIS,UKRI - AHRC,02/10/2018,Non-staff travel and subsistance,"Histories,Culture & Heritage",Non Employee Expenses Supplier,98300446, 499.35 ,Non-staff travel and subsistance
BEIS,UKRI - AHRC,02/10/2018,Non-staff travel and subsistance,Newton Programme,Non Employee Expenses Supplier,98300447, 195.12 ,Non-staff travel and subsistance
BEIS,UKRI - AHRC,02/10/2018,Non-staff travel and subsistance,"Histories,Culture & Heritage",Non Employee Expenses Supplier,98300448, 150.50 ,Non-staff travel and subsistance
BEIS,UKRI - AHRC,02/10/2018,Non-staff travel and subsistance,GCRF - Programme Delivery,Non Employee Expenses Supplier,98300449, 76.40 ,Non-staff travel and subsistance
BEIS,UKRI - AHRC,10/10/2018,Non-staff travel and subsistance,GCRF - Programme Delivery,Non Employee Expenses Supplier,98306530, 148.50 ,Non-staff travel and subsistance
BEIS,UKRI - AHRC,10/10/2018,Non-staff travel and subsistance,GCRF - Programme Delivery,Non Employee Expenses Supplier,98306532, 181.60 ,Non-staff travel and subsistance
BEIS,UKRI - AHRC,10/10/2018,Non-staff travel and subsistance,GCRF - Programme Delivery,Non Employee Expenses Supplier,98306533, 83.80 ,Non-staff travel and subsistance
BEIS,UKRI - AHRC,10/10/2018,Non-staff travel and subsistance,GCRF - Programme Delivery,Non Employee Expenses Supplier,98306534, 319.60 ,Non-staff travel and subsistance
BEIS,UKRI - AHRC,10/10/2018,Non-staff travel and subsistance,GCRF - Programme Delivery,Non Employee Expenses Supplier,98306535, 116.30 ,Non-staff travel and subsistance
BEIS,UKRI - AHRC,10/10/2018,Non-staff travel and subsistance,GCRF - Programme Delivery,Non Employee Expenses Supplier,98306536, 132.90 ,Non-staff travel and subsistance
BEIS,UKRI - AHRC,10/10/2018,Non-staff travel and subsistance,GCRF - Programme Delivery,Non Employee Expenses Supplier,98306537, 265.09 ,Non-staff travel and subsistance
BEIS,UKRI - AHRC,10/10/2018,Non-staff travel and subsistance,GCRF - Programme Delivery,Non Employee Expenses Supplier,98306538, 64.60 ,Non-staff travel and subsistance
BEIS,UKRI - AHRC,22/10/2018,Non-staff travel and subsistance,HR,Non Employee Expenses Supplier,98316108, 935.57 ,Non-staff travel and subsistance
BEIS,UKRI - AHRC,22/10/2018,Non-staff travel and subsistance,SMT,Non Employee Expenses Supplier,98316109, 63.73 ,Non-staff travel and subsistance
BEIS,UKRI - AHRC,22/10/2018,Non-staff travel and subsistance,SMT,Non Employee Expenses Supplier,98316110, 171.25 ,Non-staff travel and subsistance
BEIS,UKRI - AHRC,22/10/2018,Non-staff travel and subsistance,SMT,Non Employee Expenses Supplier,98316111, 216.69 ,Non-staff travel and subsistance
BEIS,UKRI - AHRC,22/10/2018,Non-staff travel and subsistance,SMT,Non Employee Expenses Supplier,98316112, 62.35 ,Non-staff travel and subsistance
BEIS,UKRI - AHRC,22/10/2018,Non-staff travel and subsistance,SMT,Non Employee Expenses Supplier,98316113, 67.19 ,Non-staff travel and subsistance
BEIS,UKRI - AHRC,24/10/2018,Non-staff travel and subsistance,"Research Careers,Training & Peer Review",Non Employee Expenses Supplier,98315976, 810.84 ,Non-staff travel and subsistance
BEIS,UKRI - AHRC,30/10/2018,Non-staff travel and subsistance,"AHRC - Strategic Planning, Evidence & Impact",Non Employee Expenses Supplier,98322314, 55.60 ,Non-staff travel and subsistance
BEIS,UKRI - AHRC,30/10/2018,Non-staff travel and subsistance,"Languages,Literature & International Engagement",Non Employee Expenses Supplier,98322315, 121.90 ,Non-staff travel and subsistance
BEIS,UKRI - AHRC,30/10/2018,Non-staff travel and subsistance,"Languages,Literature & International Engagement",Non Employee Expenses Supplier,98322316, 117.50 ,Non-staff travel and subsistance
BEIS,UKRI - AHRC,30/10/2018,Non-staff travel and subsistance,"Languages,Literature & International Engagement",Non Employee Expenses Supplier,98322317, 184.80 ,Non-staff travel and subsistance
BEIS,UKRI - AHRC,30/10/2018,Non-staff travel and subsistance,"Languages,Literature & International Engagement",Non Employee Expenses Supplier,98322318, 66.50 ,Non-staff travel and subsistance
BEIS,UKRI - AHRC,30/10/2018,Non-staff travel and subsistance,"Languages,Literature & International Engagement",Non Employee Expenses Supplier,98322319, 57.35 ,Non-staff travel and subsistance
BEIS,UKRI - AHRC,30/10/2018,Non-staff travel and subsistance,Creative Arts & Digital Humanities,Non Employee Expenses Supplier,98322320, 189.65 ,Non-staff travel and subsistance
BEIS,UKRI - AHRC,30/10/2018,Non-staff travel and subsistance,Creative Arts & Digital Humanities,Non Employee Expenses Supplier,98322321, 23.85 ,Non-staff travel and subsistance
BEIS,UKRI - AHRC,30/10/2018,Non-staff travel and subsistance,Creative Arts & Digital Humanities,Non Employee Expenses Supplier,98322322, 29.50 ,Non-staff travel and subsistance
BEIS,UKRI - AHRC,30/10/2018,Non-staff travel and subsistance,GCRF - Programme Delivery,Non Employee Expenses Supplier,98322323, 143.60 ,Non-staff travel and subsistance
BEIS,UKRI - AHRC,30/10/2018,Non-staff travel and subsistance,"Languages,Literature & International Engagement",Non Employee Expenses Supplier,98322324, 83.55 ,Non-staff travel and subsistance
BEIS,UKRI - AHRC,30/10/2018,Non-staff travel and subsistance,Creative Arts & Digital Humanities,Non Employee Expenses Supplier,98322325, 297.05 ,Non-staff travel and subsistance
BEIS,UKRI - AHRC,30/10/2018,Non-staff travel and subsistance,NPIF Research Talent (RCUK Innovation Fellowships),Non Employee Expenses Supplier,98322326, 154.79 ,Non-staff travel and subsistance
BEIS,UKRI - AHRC,30/10/2018,Non-staff travel and subsistance,GCRF - Programme Delivery,Non Employee Expenses Supplier,98322327, 100.50 ,Non-staff travel and subsistance
BEIS,UKRI - AHRC,30/10/2018,Non-staff travel and subsistance,"Histories,Culture & Heritage",Non Employee Expenses Supplier,98322328, 167.70 ,Non-staff travel and subsistance
BEIS,UKRI - AHRC,30/10/2018,Non-staff travel and subsistance,Communications,Non Employee Expenses Supplier,98322329, 13.95 ,Non-staff travel and subsistance
BEIS,UKRI - AHRC,30/10/2018,Non-staff travel and subsistance,NPIF Research Talent (RCUK Innovation Fellowships),Non Employee Expenses Supplier,98322330, 141.80 ,Non-staff travel and subsistance
BEIS,UKRI - AHRC,24/10/2018,Training Awards - Postgraduates,BGP Award,Northumbria University,98305298," 58,394.22 ",Training Awards - Postgraduates
BEIS,UKRI - AHRC,24/10/2018,Training Awards - Postgraduates,Collabrative Doctoral Grants - Block Payment,Northumbria University,98305422," 4,973.00 ",Training Awards - Postgraduates
BEIS,UKRI - AHRC,24/10/2018,Training Awards - Postgraduates,Collabrative Doctoral Grants - Block Payment,Nottingham Trent University,98305378," 4,973.00 ",Training Awards - Postgraduates
BEIS,UKRI - AHRC,24/10/2018,Training Awards - Postgraduates,Collabrative Doctoral Grants - Block Payment,Nottingham Trent University,98305380," 4,973.00 ",Training Awards - Postgraduates
BEIS,UKRI - AHRC,26/10/2018,Catering Contracts,HR,Officedrop Ltd,98317310, 192.00 ,Catering Contracts
BEIS,UKRI - AHRC,26/10/2018,Catering Contracts,HR,Officedrop Ltd,98317364, 144.00 ,Catering Contracts
BEIS,UKRI - AHRC,01/10/2018,Recruitment Costs,Communications,Onefix Recruitment Ltd,98297705, 648.00 ,Recruitment Costs
BEIS,UKRI - AHRC,05/10/2018,Recruitment Costs,Corporate Services,Onefix Recruitment Ltd,98303465, 909.00 ,Recruitment Costs
BEIS,UKRI - AHRC,09/10/2018,Recruitment Costs,Creative Arts & Digital Humanities,Onefix Recruitment Ltd,98303467, 166.50 ,Recruitment Costs
BEIS,UKRI - AHRC,18/10/2018,Recruitment Costs,Finance,Onefix Recruitment Ltd,98314065, 111.00 ,Recruitment Costs
BEIS,UKRI - AHRC,18/10/2018,Recruitment Costs,Communications,Onefix Recruitment Ltd,98314119, 648.00 ,Recruitment Costs
BEIS,UKRI - AHRC,23/10/2018,Recruitment Costs,Corporate Services,Onefix Recruitment Ltd,98315954, 111.00 ,Recruitment Costs
BEIS,UKRI - AHRC,26/10/2018,Staff Training,Corporate Services,Open University,98319111," 1,464.00 ",Staff Training
BEIS,UKRI - AHRC,26/10/2018,Staff Training,Corporate Services,Open University,98319111," 1,464.00 ",Staff Training
BEIS,UKRI - AHRC,15/10/2018,Union Deductions,Balance Sheet,PCS Union,98309911, 177.57 ,Union Deductions
BEIS,UKRI - AHRC,25/10/2018,Health & Safety (inc. Medicals & Opticians),Corporate Services,Posturite Ltd,98318964, 68.34 ,Health & Safety (inc. Medicals & Opticians)
BEIS,UKRI - AHRC,09/10/2018,Health & Safety (inc. Medicals & Opticians),Corporate Services,Premier Farnell UK Ltd T/A Farnell Onecall,98306409, 128.94 ,Health & Safety (inc. Medicals & Opticians)
BEIS,UKRI - AHRC,18/10/2018,Health & Safety (inc. Medicals & Opticians),HR,Premier Farnell UK Ltd T/A Farnell Onecall,98313442, 37.51 ,Health & Safety (inc. Medicals & Opticians)
BEIS,UKRI - AHRC,22/10/2018,Provisions ( Food etc),HR,Premier Farnell UK Ltd T/A Farnell Onecall,98316085, 73.90 ,Provisions ( Food etc)
BEIS,UKRI - AHRC,22/10/2018,Provisions ( Food etc),HR,Premier Farnell UK Ltd T/A Farnell Onecall,98316225, 147.79 ,Provisions ( Food etc)
BEIS,UKRI - AHRC,23/10/2018,Health & Safety (inc. Medicals & Opticians),HR,Premier Farnell UK Ltd T/A Farnell Onecall,98316181, 37.51 ,Health & Safety (inc. Medicals & Opticians)
BEIS,UKRI - AHRC,31/10/2018,Provisions ( Food etc),HR,Premier Farnell UK Ltd T/A Farnell Onecall,98323395, 108.83 ,Provisions ( Food etc)
BEIS,UKRI - AHRC,24/10/2018,Training Awards - Postgraduates,Collabrative Doctoral Grants - Block Payment,Queen Mary University of London,98305328," 5,463.75 ",Training Awards - Postgraduates
BEIS,UKRI - AHRC,24/10/2018,Training Awards - Postgraduates,Collabrative Doctoral Grants - Block Payment,Queen Mary University of London,98305331," 5,463.75 ",Training Awards - Postgraduates
BEIS,UKRI - AHRC,24/10/2018,Training Awards - Postgraduates,Collabrative Doctoral Grants - Block Payment,Queen Mary University of London,98305365," 5,463.75 ",Training Awards - Postgraduates
BEIS,UKRI - AHRC,24/10/2018,Training Awards - Postgraduates,Collabrative Doctoral Grants - Block Payment,Queen Mary University of London,98305371," 5,463.75 ",Training Awards - Postgraduates
BEIS,UKRI - AHRC,24/10/2018,Training Awards - Postgraduates,Collabrative Doctoral Grants - Block Payment,Queen Mary University of London,98305442," 5,446.75 ",Training Awards - Postgraduates
BEIS,UKRI - AHRC,24/10/2018,Training Awards - Postgraduates,BGP Award,Royal College of Art,98305305," 117,678.49 ",Training Awards - Postgraduates
BEIS,UKRI - AHRC,24/10/2018,Training Awards - Postgraduates,BGP Award,Royal College of Art,98305305," 7,671.21 ",Training Awards - Postgraduates
BEIS,UKRI - AHRC,24/10/2018,Training Awards - Postgraduates,Collabrative Doctoral Grants - Block Payment,Royal College of Art,98305353," 5,463.75 ",Training Awards - Postgraduates
BEIS,UKRI - AHRC,24/10/2018,Training Awards - Postgraduates,Collabrative Doctoral Grants - Block Payment,Royal College of Art,98305421," 5,473.00 ",Training Awards - Postgraduates
BEIS,UKRI - AHRC,24/10/2018,Training Awards - Postgraduates,Collabrative Doctoral Grants - Block Payment,Royal College of Art,98305424," 4,720.08 ",Training Awards - Postgraduates
BEIS,UKRI - AHRC,24/10/2018,Training Awards - Postgraduates,BGP Award,"Royal Holloway, University of London",98305288," 673,870.98 ",Training Awards - Postgraduates
BEIS,UKRI - AHRC,24/10/2018,Training Awards - Postgraduates,Collabrative Doctoral Grants - Block Payment,"Royal Holloway, University of London",98305330," 5,463.75 ",Training Awards - Postgraduates
BEIS,UKRI - AHRC,24/10/2018,Training Awards - Postgraduates,Collabrative Doctoral Grants - Block Payment,"Royal Holloway, University of London",98305332," 5,463.75 ",Training Awards - Postgraduates
BEIS,UKRI - AHRC,24/10/2018,Training Awards - Postgraduates,Collabrative Doctoral Grants - Block Payment,"Royal Holloway, University of London",98305379," 5,473.00 ",Training Awards - Postgraduates
BEIS,UKRI - AHRC,24/10/2018,Training Awards - Postgraduates,BGP Award,"Royal Holloway, University of London",98305430," 69,209.70 ",Training Awards - Postgraduates
BEIS,UKRI - AHRC,24/10/2018,Training Awards - Postgraduates,BGP Award: Capacity Building,Royal Northern College of Music,98305459," 3,877.00 ",Training Awards - Postgraduates
BEIS,UKRI - AHRC,09/10/2018,Nursery Deductions,Balance Sheet,Science & Technology Facilities Council,98300910, 120.00 ,Nursery Deductions
BEIS,UKRI - AHRC,24/10/2018,Training Awards - Postgraduates,Collabrative Doctoral Grants - Block Payment,Sheffield Hallam University,98305451," 4,946.75 ",Training Awards - Postgraduates
BEIS,UKRI - AHRC,24/10/2018,Training Awards - Postgraduates,Collabrative Doctoral Grants - Block Payment,"SOAS, University of London",98305373," 5,463.75 ",Training Awards - Postgraduates
BEIS,UKRI - AHRC,24/10/2018,Training Awards - Postgraduates,Collabrative Doctoral Grants - Block Payment,Swansea University,98305341," 4,963.75 ",Training Awards - Postgraduates
BEIS,UKRI - AHRC,03/10/2018,Health & Safety (inc. Medicals & Opticians),Corporate Services,Swindon Occupational Medical Services Ltd,98302269," 1,350.00 ",Health & Safety (inc. Medicals & Opticians)
BEIS,UKRI - AHRC,18/10/2018,Health & Safety (inc. Medicals & Opticians),Corporate Services,Swindon Occupational Medical Services Ltd,98302271, 300.00 ,Health & Safety (inc. Medicals & Opticians)
BEIS,UKRI - AHRC,19/10/2018,Health & Safety (inc. Medicals & Opticians),Corporate Services,Swindon Occupational Medical Services Ltd,98315579, 600.00 ,Health & Safety (inc. Medicals & Opticians)
BEIS,UKRI - AHRC,25/10/2018,Voluntary Deductions,Balance Sheet,Swindon Office Sports and Social Club,98309910, 94.00 ,Voluntary Deductions
BEIS,UKRI - AHRC,25/10/2018,Legal & Professional Services,Communications,Tamasine McCaig T/A Mighty Oaks Digital,98319410, 600.00 ,Legal & Professional Services
BEIS,UKRI - AHRC,25/10/2018,Staff Training,Communications,Tamasine McCaig T/A Mighty Oaks Digital,98319583," 1,400.00 ",Staff Training
BEIS,UKRI - AHRC,05/10/2018,Conferences & Seminars,SMT,The Athenaeum,98302215, 734.18 ,Conferences & Seminars
BEIS,UKRI - AHRC,05/10/2018,Conferences & Seminars,SMT,The Athenaeum,98302216, 430.17 ,Conferences & Seminars
BEIS,UKRI - AHRC,12/10/2018,T&S Overseas - Accommodation,Creative Arts & Digital Humanities,The Portman Ritz-Carlton Shanghai,98310190," 7,908.34 ",T&S Overseas - Accommodation
BEIS,UKRI - AHRC,24/10/2018,Training Awards - Postgraduates,BGP Award,The University of Manchester,98305299," 711,023.25 ",Training Awards - Postgraduates
BEIS,UKRI - AHRC,24/10/2018,Training Awards - Postgraduates,Collabrative Doctoral Grants - Block Payment,The University of Manchester,98305357," 4,963.75 ",Training Awards - Postgraduates
BEIS,UKRI - AHRC,24/10/2018,Training Awards - Postgraduates,Collabrative Doctoral Grants - Block Payment,The University of Manchester,98305361," 4,963.75 ",Training Awards - Postgraduates
BEIS,UKRI - AHRC,24/10/2018,Training Awards - Postgraduates,Collabrative Doctoral Grants - Block Payment,The University of Manchester,98305415," 4,973.00 ",Training Awards - Postgraduates
BEIS,UKRI - AHRC,24/10/2018,Training Awards - Postgraduates,Collabrative Doctoral Grants - Block Payment,The University of Manchester,98305420," 4,973.00 ",Training Awards - Postgraduates
BEIS,UKRI - AHRC,24/10/2018,Training Awards - Postgraduates,BGP Award,The University of Manchester,98305427," 59,676.00 ",Training Awards - Postgraduates
BEIS,UKRI - AHRC,24/10/2018,Training Awards - Postgraduates,BGP Award,The University of Manchester,98305457,"-34,567.06 ",Training Awards - Postgraduates
BEIS,UKRI - AHRC,24/10/2018,Training Awards - Postgraduates,BGP Award,The University of Manchester,98305461,"-59,534.20 ",Training Awards - Postgraduates
BEIS,UKRI - AHRC,24/10/2018,Training Awards - Postgraduates,Collabrative Doctoral Grants - Block Payment,The University of Manchester,98305463,-958.54 ,Training Awards - Postgraduates
BEIS,UKRI - AHRC,24/10/2018,Training Awards - Postgraduates,International Placement Scheme,The University of Manchester,98305470," 4,470.00 ",Training Awards - Postgraduates
BEIS,UKRI - AHRC,02/10/2018,Computing Consumables,Corporate Services,UK Shared Business Services Ltd,98296586," 2,855.56 ",Computing Consumables
BEIS,UKRI - AHRC,16/10/2018,Computing Consumables,Corporate Services,UK Shared Business Services Ltd,98309880," 9,359.21 ",Computing Consumables
BEIS,UKRI - AHRC,24/10/2018,Computing Consumables,Corporate Services,UK Shared Business Services Ltd,98317130," 6,253.50 ",Computing Consumables
BEIS,UKRI - AHRC,30/10/2018,Recruitment Costs,Corporate Services,UK Shared Business Services Ltd,98318880, 32.43 ,Recruitment Costs
BEIS,UKRI - AHRC,24/10/2018,Training Awards - Postgraduates,BGP Award,University College London,98305291," 125,993.18 ",Training Awards - Postgraduates
BEIS,UKRI - AHRC,24/10/2018,Training Awards - Postgraduates,BGP Award,University College London,98305292," 942,087.90 ",Training Awards - Postgraduates
BEIS,UKRI - AHRC,24/10/2018,Training Awards - Postgraduates,Collabrative Doctoral Grants - Block Payment,University College London,98305317," 5,463.75 ",Training Awards - Postgraduates
BEIS,UKRI - AHRC,24/10/2018,Training Awards - Postgraduates,Collabrative Doctoral Grants - Block Payment,University College London,98305323," 5,463.75 ",Training Awards - Postgraduates
BEIS,UKRI - AHRC,24/10/2018,Training Awards - Postgraduates,Collabrative Doctoral Grants - Block Payment,University College London,98305359," 5,463.75 ",Training Awards - Postgraduates
BEIS,UKRI - AHRC,24/10/2018,Training Awards - Postgraduates,Collabrative Doctoral Grants - Block Payment,University College London,98305374," 5,463.75 ",Training Awards - Postgraduates
BEIS,UKRI - AHRC,24/10/2018,Training Awards - Postgraduates,Collabrative Doctoral Grants - Block Payment,University College London,98305400," 5,473.00 ",Training Awards - Postgraduates
BEIS,UKRI - AHRC,24/10/2018,Training Awards - Postgraduates,Collabrative Doctoral Grants - Block Payment,University College London,98305432," 5,446.75 ",Training Awards - Postgraduates
BEIS,UKRI - AHRC,24/10/2018,Training Awards - Postgraduates,Collabrative Doctoral Grants - Block Payment,University College London,98305444," 5,446.75 ",Training Awards - Postgraduates
BEIS,UKRI - AHRC,24/10/2018,Training Awards - Postgraduates,International Placement Scheme,University College London,98305468," 3,270.00 ",Training Awards - Postgraduates
BEIS,UKRI - AHRC,24/10/2018,Training Awards - Postgraduates,Collabrative Doctoral Grants - Block Payment,University of Aberdeen,98305350," 4,963.75 ",Training Awards - Postgraduates
BEIS,UKRI - AHRC,24/10/2018,Training Awards - Postgraduates,Collabrative Doctoral Grants - Block Payment,University of Aberdeen,98305443," 4,946.75 ",Training Awards - Postgraduates
BEIS,UKRI - AHRC,24/10/2018,Training Awards - Postgraduates,Collabrative Doctoral Grants - Block Payment,University of Bedfordshire,98305355," 4,963.75 ",Training Awards - Postgraduates
BEIS,UKRI - AHRC,24/10/2018,Training Awards - Postgraduates,Collabrative Doctoral Grants - Block Payment,University of Birmingham GRANT,98305401," 4,973.00 ",Training Awards - Postgraduates
BEIS,UKRI - AHRC,24/10/2018,Training Awards - Postgraduates,BGP Award,University of Birmingham GRANT,98305462," 26,359.74 ",Training Awards - Postgraduates
BEIS,UKRI - AHRC,24/10/2018,Training Awards - Postgraduates,International Placement Scheme,University of Birmingham GRANT,98305473," 6,870.00 ",Training Awards - Postgraduates
BEIS,UKRI - AHRC,24/10/2018,Training Awards - Postgraduates,Collabrative Doctoral Grants - Block Payment,University of Bradford,98305368," 4,874.50 ",Training Awards - Postgraduates
BEIS,UKRI - AHRC,24/10/2018,Training Awards - Postgraduates,Collabrative Doctoral Grants - Block Payment,University of Brighton,98305340," 4,963.75 ",Training Awards - Postgraduates
BEIS,UKRI - AHRC,24/10/2018,Training Awards - Postgraduates,Collabrative Doctoral Grants - Block Payment,University of Brighton,98305344," 4,963.75 ",Training Awards - Postgraduates
BEIS,UKRI - AHRC,24/10/2018,Training Awards - Postgraduates,BGP Award,University of Bristol GRANT,98305296," 725,504.18 ",Training Awards - Postgraduates
BEIS,UKRI - AHRC,24/10/2018,Training Awards - Postgraduates,Collabrative Doctoral Grants - Block Payment,University of Bristol GRANT,98305352," 4,963.75 ",Training Awards - Postgraduates
BEIS,UKRI - AHRC,24/10/2018,Training Awards - Postgraduates,Collabrative Doctoral Grants - Block Payment,University of Bristol GRANT,98305370," 4,963.75 ",Training Awards - Postgraduates
BEIS,UKRI - AHRC,24/10/2018,Training Awards - Postgraduates,Collabrative Doctoral Grants - Block Payment,University of Bristol GRANT,98305385," 4,973.00 ",Training Awards - Postgraduates
BEIS,UKRI - AHRC,24/10/2018,Training Awards - Postgraduates,BGP Award,University of Cambridge,98305300," 711,023.25 ",Training Awards - Postgraduates
BEIS,UKRI - AHRC,24/10/2018,Training Awards - Postgraduates,Collabrative Doctoral Grants - Block Payment,University of Cambridge,98305336," 4,963.75 ",Training Awards - Postgraduates
BEIS,UKRI - AHRC,24/10/2018,Training Awards - Postgraduates,Collabrative Doctoral Grants - Block Payment,University of Cambridge,98305363," 4,963.75 ",Training Awards - Postgraduates
BEIS,UKRI - AHRC,24/10/2018,Training Awards - Postgraduates,Collabrative Doctoral Grants - Block Payment,University of Central Lancashire,98305310," 9,927.50 ",Training Awards - Postgraduates
BEIS,UKRI - AHRC,24/10/2018,Training Awards - Postgraduates,Collabrative Doctoral Grants - Block Payment,University of Central Lancashire,98305394," 4,973.00 ",Training Awards - Postgraduates
BEIS,UKRI - AHRC,24/10/2018,Training Awards - Postgraduates,Collabrative Doctoral Grants - Block Payment,University of Durham,98305324," 4,963.75 ",Training Awards - Postgraduates
BEIS,UKRI - AHRC,24/10/2018,Training Awards - Postgraduates,Collabrative Doctoral Grants - Block Payment,University of Durham,98305346," 4,963.75 ",Training Awards - Postgraduates
BEIS,UKRI - AHRC,24/10/2018,Training Awards - Postgraduates,Collabrative Doctoral Grants - Block Payment,University of Durham,98305348," 4,963.75 ",Training Awards - Postgraduates
BEIS,UKRI - AHRC,24/10/2018,Training Awards - Postgraduates,Collabrative Doctoral Grants - Block Payment,University of Durham,98305387," 4,973.00 ",Training Awards - Postgraduates
BEIS,UKRI - AHRC,02/10/2018,T&S Overseas - Flights,Newton Programme,University of Edinburgh,98301757," 1,645.57 ",T&S Overseas - Flights
BEIS,UKRI - AHRC,24/10/2018,Training Awards - Postgraduates,Collabrative Doctoral Grants - Block Payment,University of Edinburgh,98305372," 4,963.75 ",Training Awards - Postgraduates
BEIS,UKRI - AHRC,24/10/2018,Training Awards - Postgraduates,Collabrative Doctoral Grants - Block Payment,University of Edinburgh,98305376," 4,966.75 ",Training Awards - Postgraduates
BEIS,UKRI - AHRC,24/10/2018,Training Awards - Postgraduates,Collabrative Doctoral Grants - Block Payment,University of Edinburgh,98305384," 4,973.00 ",Training Awards - Postgraduates
BEIS,UKRI - AHRC,24/10/2018,Training Awards - Postgraduates,Collabrative Doctoral Grants - Block Payment,University of Edinburgh,98305386," 4,973.00 ",Training Awards - Postgraduates
BEIS,UKRI - AHRC,24/10/2018,Training Awards - Postgraduates,Collabrative Doctoral Grants - Block Payment,University of Edinburgh,98305397," 4,973.00 ",Training Awards - Postgraduates
BEIS,UKRI - AHRC,24/10/2018,Training Awards - Postgraduates,Collabrative Doctoral Grants - Block Payment,University of Edinburgh,98305435," 4,946.75 ",Training Awards - Postgraduates
BEIS,UKRI - AHRC,24/10/2018,Training Awards - Postgraduates,International Placement Scheme,University of Edinburgh,98305454," 5,670.00 ",Training Awards - Postgraduates
BEIS,UKRI - AHRC,24/10/2018,Training Awards - Postgraduates,Collabrative Doctoral Grants - Block Payment,University of Exeter,98305396," 4,973.00 ",Training Awards - Postgraduates
BEIS,UKRI - AHRC,24/10/2018,Training Awards - Postgraduates,BGP Award,University of Glasgow,98305294," 711,023.25 ",Training Awards - Postgraduates
BEIS,UKRI - AHRC,24/10/2018,Training Awards - Postgraduates,BGP Award,University of Glasgow,98305297," 88,877.91 ",Training Awards - Postgraduates
BEIS,UKRI - AHRC,24/10/2018,Training Awards - Postgraduates,Collabrative Doctoral Grants - Block Payment,University of Glasgow,98305312," 4,963.75 ",Training Awards - Postgraduates
BEIS,UKRI - AHRC,24/10/2018,Training Awards - Postgraduates,Collabrative Doctoral Grants - Block Payment,University of Glasgow,98305313," 4,963.75 ",Training Awards - Postgraduates
BEIS,UKRI - AHRC,24/10/2018,Training Awards - Postgraduates,Collabrative Doctoral Grants - Block Payment,University of Glasgow,98305358," 4,963.75 ",Training Awards - Postgraduates
BEIS,UKRI - AHRC,24/10/2018,Training Awards - Postgraduates,Collabrative Doctoral Grants - Block Payment,University of Glasgow,98305399," 4,973.00 ",Training Awards - Postgraduates
BEIS,UKRI - AHRC,24/10/2018,Training Awards - Postgraduates,BGP Award,University of Glasgow,98305425," 59,676.00 ",Training Awards - Postgraduates
BEIS,UKRI - AHRC,24/10/2018,Training Awards - Postgraduates,Collabrative Doctoral Grants - Block Payment,University of Glasgow,98305438," 4,946.75 ",Training Awards - Postgraduates
BEIS,UKRI - AHRC,24/10/2018,Training Awards - Postgraduates,Collabrative Doctoral Grants - Block Payment,University of Huddersfield,98305316," 4,963.75 ",Training Awards - Postgraduates
BEIS,UKRI - AHRC,24/10/2018,Training Awards - Postgraduates,BGP Award,University of Hull,98305290," 88,877.91 ",Training Awards - Postgraduates
BEIS,UKRI - AHRC,24/10/2018,Training Awards - Postgraduates,Collabrative Doctoral Grants - Block Payment,University of Kent,98305338," 4,963.75 ",Training Awards - Postgraduates
BEIS,UKRI - AHRC,24/10/2018,Training Awards - Postgraduates,Collabrative Doctoral Grants - Block Payment,University of Kent,98305382," 4,973.00 ",Training Awards - Postgraduates
BEIS,UKRI - AHRC,24/10/2018,Training Awards - Postgraduates,Collabrative Doctoral Grants - Block Payment,University of Kent,98305441," 4,946.75 ",Training Awards - Postgraduates
BEIS,UKRI - AHRC,24/10/2018,Training Awards - Postgraduates,Collabrative Doctoral Grants - Block Payment,University of Kent,98305445," 4,946.75 ",Training Awards - Postgraduates
BEIS,UKRI - AHRC,24/10/2018,Training Awards - Postgraduates,Collabrative Doctoral Grants - Block Payment,University of Leeds,98305343," 4,963.75 ",Training Awards - Postgraduates
BEIS,UKRI - AHRC,24/10/2018,Training Awards - Postgraduates,Collabrative Doctoral Grants - Block Payment,University of Leeds,98305345," 4,963.75 ",Training Awards - Postgraduates
BEIS,UKRI - AHRC,24/10/2018,Training Awards - Postgraduates,Collabrative Doctoral Grants - Block Payment,University of Leeds,98305367," 4,963.75 ",Training Awards - Postgraduates
BEIS,UKRI - AHRC,24/10/2018,Training Awards - Postgraduates,Collabrative Doctoral Grants - Block Payment,University of Leeds,98305388," 4,973.00 ",Training Awards - Postgraduates
BEIS,UKRI - AHRC,24/10/2018,Training Awards - Postgraduates,Collabrative Doctoral Grants - Block Payment,University of Leeds,98305391," 4,973.00 ",Training Awards - Postgraduates
BEIS,UKRI - AHRC,24/10/2018,Training Awards - Postgraduates,Collabrative Doctoral Grants - Block Payment,University of Leeds,98305407," 4,874.50 ",Training Awards - Postgraduates
BEIS,UKRI - AHRC,24/10/2018,Training Awards - Postgraduates,Collabrative Doctoral Grants - Block Payment,University of Leeds,98305437," 4,946.75 ",Training Awards - Postgraduates
BEIS,UKRI - AHRC,24/10/2018,Training Awards - Postgraduates,Collabrative Doctoral Grants - Block Payment,University of Leeds,98305439," 4,946.75 ",Training Awards - Postgraduates
BEIS,UKRI - AHRC,24/10/2018,Training Awards - Postgraduates,Collabrative Doctoral Grants - Block Payment,University of Leeds,98305446," 4,946.75 ",Training Awards - Postgraduates
BEIS,UKRI - AHRC,24/10/2018,Training Awards - Postgraduates,Collabrative Doctoral Grants - Block Payment,University of Leeds,98305447," 4,946.75 ",Training Awards - Postgraduates
BEIS,UKRI - AHRC,17/10/2018,Secondments,SMT,University of Leicester,98259972," 31,165.72 ",Secondments
BEIS,UKRI - AHRC,17/10/2018,T&S UK - Other Charges,SMT,University of Leicester,98259972," 2,921.26 ",T&S UK - Other Charges
BEIS,UKRI - AHRC,22/10/2018,Secondments,SMT,University of Leicester,98270480," 31,165.72 ",Secondments
BEIS,UKRI - AHRC,22/10/2018,T&S UK - Other Charges,SMT,University of Leicester,98270480," 2,921.26 ",T&S UK - Other Charges
BEIS,UKRI - AHRC,22/10/2018,Secondments,SMT,University of Leicester,98314132,"-31,165.73 ",Secondments
BEIS,UKRI - AHRC,22/10/2018,T&S UK - Other Charges,SMT,University of Leicester,98314132,"-2,921.25 ",T&S UK - Other Charges
BEIS,UKRI - AHRC,24/10/2018,Training Awards - Postgraduates,Collabrative Doctoral Grants - Block Payment,University of Leicester,98305307," 4,879.50 ",Training Awards - Postgraduates
BEIS,UKRI - AHRC,24/10/2018,Training Awards - Postgraduates,Collabrative Doctoral Grants - Block Payment,University of Leicester,98305360," 4,963.75 ",Training Awards - Postgraduates
BEIS,UKRI - AHRC,24/10/2018,Training Awards - Postgraduates,Collabrative Doctoral Grants - Block Payment,University of Leicester,98305389," 4,973.00 ",Training Awards - Postgraduates
BEIS,UKRI - AHRC,24/10/2018,Training Awards - Postgraduates,Collabrative Doctoral Grants - Block Payment,University of Leicester,98305393," 4,973.00 ",Training Awards - Postgraduates
BEIS,UKRI - AHRC,24/10/2018,Training Awards - Postgraduates,Collabrative Doctoral Grants - Block Payment,University of Leicester,98305405," 4,973.00 ",Training Awards - Postgraduates
BEIS,UKRI - AHRC,24/10/2018,Training Awards - Postgraduates,Collabrative Doctoral Grants - Block Payment,University of Leicester,98305409," 4,973.00 ",Training Awards - Postgraduates
BEIS,UKRI - AHRC,24/10/2018,Training Awards - Postgraduates,Collabrative Doctoral Grants - Block Payment,University of Lincoln,98305339," 4,963.75 ",Training Awards - Postgraduates
BEIS,UKRI - AHRC,24/10/2018,Training Awards - Postgraduates,Collabrative Doctoral Grants - Block Payment,University of Liverpool,98305306," 14,638.50 ",Training Awards - Postgraduates
BEIS,UKRI - AHRC,24/10/2018,Training Awards - Postgraduates,Collabrative Doctoral Grants - Block Payment,University of Liverpool,98305314," 9,927.50 ",Training Awards - Postgraduates
BEIS,UKRI - AHRC,24/10/2018,Training Awards - Postgraduates,Collabrative Doctoral Grants - Block Payment,University of Liverpool,98305320," 9,927.50 ",Training Awards - Postgraduates
BEIS,UKRI - AHRC,24/10/2018,Training Awards - Postgraduates,Collabrative Doctoral Grants - Block Payment,University of Liverpool,98305325," 9,927.50 ",Training Awards - Postgraduates
BEIS,UKRI - AHRC,24/10/2018,Training Awards - Postgraduates,Collabrative Doctoral Grants - Block Payment,University of Liverpool,98305434," 4,946.75 ",Training Awards - Postgraduates
BEIS,UKRI - AHRC,24/10/2018,Training Awards - Postgraduates,International Placement Scheme,University of Liverpool,98305452," 4,470.00 ",Training Awards - Postgraduates
BEIS,UKRI - AHRC,23/10/2018,Conferences & Seminars,Communications,University of London,98301480," 35,000.00 ",Conferences & Seminars
BEIS,UKRI - AHRC,24/10/2018,Training Awards - Postgraduates,Collabrative Doctoral Grants - Block Payment,University of London,98305404," 5,473.00 ",Training Awards - Postgraduates
BEIS,UKRI - AHRC,24/10/2018,Training Awards - Postgraduates,Collabrative Doctoral Grants - Block Payment,University of London,98305431," 5,446.75 ",Training Awards - Postgraduates
BEIS,UKRI - AHRC,24/10/2018,Training Awards - Postgraduates,Collabrative Doctoral Grants - Block Payment,University of London,98305448," 4,342.97 ",Training Awards - Postgraduates
BEIS,UKRI - AHRC,24/10/2018,Training Awards - Postgraduates,BGP Award,University of Newcastle Upon Tyne,98305295," 556,110.59 ",Training Awards - Postgraduates
BEIS,UKRI - AHRC,24/10/2018,Training Awards - Postgraduates,Collabrative Doctoral Grants - Block Payment,University of Newcastle Upon Tyne,98305354," 4,963.75 ",Training Awards - Postgraduates
BEIS,UKRI - AHRC,24/10/2018,Training Awards - Postgraduates,BGP Award,University of Newcastle Upon Tyne,98305426," 59,676.00 ",Training Awards - Postgraduates
BEIS,UKRI - AHRC,24/10/2018,Training Awards - Postgraduates,Collabrative Doctoral Grants - Block Payment,University of Northampton,98305364," 4,963.75 ",Training Awards - Postgraduates
BEIS,UKRI - AHRC,24/10/2018,Training Awards - Postgraduates,BGP Award,University of Nottingham,98305303," 728,798.84 ",Training Awards - Postgraduates
BEIS,UKRI - AHRC,24/10/2018,Training Awards - Postgraduates,Collabrative Doctoral Grants - Block Payment,University of Nottingham,98305321," 4,963.75 ",Training Awards - Postgraduates
BEIS,UKRI - AHRC,24/10/2018,Training Awards - Postgraduates,Collabrative Doctoral Grants - Block Payment,University of Nottingham,98305327," 4,963.75 ",Training Awards - Postgraduates
BEIS,UKRI - AHRC,24/10/2018,Training Awards - Postgraduates,Collabrative Doctoral Grants - Block Payment,University of Nottingham,98305398," 4,973.00 ",Training Awards - Postgraduates
BEIS,UKRI - AHRC,24/10/2018,Training Awards - Postgraduates,BGP Award,University of Nottingham,98305429," 49,731.00 ",Training Awards - Postgraduates
BEIS,UKRI - AHRC,24/10/2018,Training Awards - Postgraduates,International Placement Scheme,University of Nottingham,98305453," 4,470.00 ",Training Awards - Postgraduates
BEIS,UKRI - AHRC,24/10/2018,Training Awards - Postgraduates,Collabrative Doctoral Grants - Block Payment,University of Nottingham,98305467,"-57,597.00 ",Training Awards - Postgraduates
BEIS,UKRI - AHRC,24/10/2018,Training Awards - Postgraduates,International Placement Scheme,University of Nottingham,98305474,-259.43 ,Training Awards - Postgraduates
BEIS,UKRI - AHRC,24/10/2018,Training Awards - Postgraduates,BGP Award,University of Oxford,98305293," 711,023.27 ",Training Awards - Postgraduates
BEIS,UKRI - AHRC,24/10/2018,Training Awards - Postgraduates,Collabrative Doctoral Grants - Block Payment,University of Oxford,98305377," 4,973.00 ",Training Awards - Postgraduates
BEIS,UKRI - AHRC,24/10/2018,Training Awards - Postgraduates,Collabrative Doctoral Grants - Block Payment,University of Oxford,98305403," 4,973.00 ",Training Awards - Postgraduates
BEIS,UKRI - AHRC,24/10/2018,Training Awards - Postgraduates,Collabrative Doctoral Grants - Block Payment,University of Oxford,98305440," 4,946.75 ",Training Awards - Postgraduates
BEIS,UKRI - AHRC,24/10/2018,Training Awards - Postgraduates,Collabrative Doctoral Grants - Block Payment,University of Oxford,98305464, 808.00 ,Training Awards - Postgraduates
BEIS,UKRI - AHRC,24/10/2018,Training Awards - Postgraduates,BGP Award,University of Reading,98305301," 109,207.62 ",Training Awards - Postgraduates
BEIS,UKRI - AHRC,24/10/2018,Training Awards - Postgraduates,BGP Award,University of Reading,98305301," 107,654.66 ",Training Awards - Postgraduates
BEIS,UKRI - AHRC,24/10/2018,Training Awards - Postgraduates,Collabrative Doctoral Grants - Block Payment,University of Reading,98305351," 4,963.75 ",Training Awards - Postgraduates
BEIS,UKRI - AHRC,24/10/2018,Training Awards - Postgraduates,Collabrative Doctoral Grants - Block Payment,University of Reading,98305351," 4,874.50 ",Training Awards - Postgraduates
BEIS,UKRI - AHRC,24/10/2018,Training Awards - Postgraduates,Collabrative Doctoral Grants - Block Payment,University of Reading,98305411," 4,973.00 ",Training Awards - Postgraduates
BEIS,UKRI - AHRC,24/10/2018,Training Awards - Postgraduates,Collabrative Doctoral Grants - Block Payment,University of Reading,98305411," 4,874.50 ",Training Awards - Postgraduates
BEIS,UKRI - AHRC,24/10/2018,Training Awards - Postgraduates,Collabrative Doctoral Grants - Block Payment,University of Reading,98305417," 4,973.00 ",Training Awards - Postgraduates
BEIS,UKRI - AHRC,24/10/2018,Training Awards - Postgraduates,Collabrative Doctoral Grants - Block Payment,University of Reading,98305417," 4,874.50 ",Training Awards - Postgraduates
BEIS,UKRI - AHRC,24/10/2018,Training Awards - Postgraduates,Collabrative Doctoral Grants - Block Payment,University of Sheffield,98305315," 4,963.75 ",Training Awards - Postgraduates
BEIS,UKRI - AHRC,24/10/2018,Training Awards - Postgraduates,Collabrative Doctoral Grants - Block Payment,University of Sheffield,98305381," 4,973.00 ",Training Awards - Postgraduates
BEIS,UKRI - AHRC,24/10/2018,Training Awards - Postgraduates,Collabrative Doctoral Grants - Block Payment,University of Sheffield,98305433," 4,946.75 ",Training Awards - Postgraduates
BEIS,UKRI - AHRC,24/10/2018,Training Awards - Postgraduates,Collabrative Doctoral Grants - Block Payment,University of St Andrews,98305311," 4,963.75 ",Training Awards - Postgraduates
BEIS,UKRI - AHRC,24/10/2018,Training Awards - Postgraduates,Collabrative Doctoral Grants - Block Payment,University of St Andrews,98305392," 4,973.00 ",Training Awards - Postgraduates
BEIS,UKRI - AHRC,24/10/2018,Training Awards - Postgraduates,Collabrative Doctoral Grants - Block Payment,University of Stirling,98305390," 4,973.00 ",Training Awards - Postgraduates
BEIS,UKRI - AHRC,24/10/2018,Training Awards - Postgraduates,Collabrative Doctoral Grants - Block Payment,University of Strathclyde,98305337," 4,963.75 ",Training Awards - Postgraduates
BEIS,UKRI - AHRC,24/10/2018,Training Awards - Postgraduates,Collabrative Doctoral Grants - Block Payment,University of Strathclyde,98305436," 4,792.13 ",Training Awards - Postgraduates
BEIS,UKRI - AHRC,24/10/2018,Training Awards - Postgraduates,BGP Award,University of Sussex,98305302," 846,925.80 ",Training Awards - Postgraduates
BEIS,UKRI - AHRC,24/10/2018,Training Awards - Postgraduates,Collabrative Doctoral Grants - Block Payment,University of Sussex,98305395," 4,973.00 ",Training Awards - Postgraduates
BEIS,UKRI - AHRC,24/10/2018,Training Awards - Postgraduates,Collabrative Doctoral Grants - Block Payment,University of the Highlands and Islands,98305322," 4,963.75 ",Training Awards - Postgraduates
BEIS,UKRI - AHRC,10/10/2018,Research Grant Expenditure,Connected Communities Programme,University of the West of England,98307869," 25,000.00 ",Research Grant Expenditure
BEIS,UKRI - AHRC,24/10/2018,Training Awards - Postgraduates,BGP Award,University of the West of England,98305289," 116,788.61 ",Training Awards - Postgraduates
BEIS,UKRI - AHRC,24/10/2018,Training Awards - Postgraduates,BGP Award,University of the West of England,98305428," 59,676.00 ",Training Awards - Postgraduates
BEIS,UKRI - AHRC,24/10/2018,Training Awards - Postgraduates,Collabrative Doctoral Grants - Block Payment,University of Warwick,98305334," 4,963.75 ",Training Awards - Postgraduates
BEIS,UKRI - AHRC,24/10/2018,Training Awards - Postgraduates,Collabrative Doctoral Grants - Block Payment,University of Westminster,98305419," 5,473.00 ",Training Awards - Postgraduates
BEIS,UKRI - AHRC,24/10/2018,Training Awards - Postgraduates,BGP Award,University of York,98305304," 956,519.89 ",Training Awards - Postgraduates
BEIS,UKRI - AHRC,24/10/2018,Training Awards - Postgraduates,Collabrative Doctoral Grants - Block Payment,University of York,98305308," 4,879.50 ",Training Awards - Postgraduates
BEIS,UKRI - AHRC,24/10/2018,Training Awards - Postgraduates,Collabrative Doctoral Grants - Block Payment,University of York,98305318," 9,927.50 ",Training Awards - Postgraduates
BEIS,UKRI - AHRC,24/10/2018,Training Awards - Postgraduates,Collabrative Doctoral Grants - Block Payment,University of York,98305333," 4,963.75 ",Training Awards - Postgraduates
BEIS,UKRI - AHRC,24/10/2018,Training Awards - Postgraduates,Collabrative Doctoral Grants - Block Payment,University of York,98305366," 4,963.75 ",Training Awards - Postgraduates
BEIS,UKRI - AHRC,24/10/2018,Training Awards - Postgraduates,Collabrative Doctoral Grants - Block Payment,University of York,98305412," 4,973.00 ",Training Awards - Postgraduates
BEIS,UKRI - AHRC,24/10/2018,Training Awards - Postgraduates,Collabrative Doctoral Grants - Block Payment,University of York,98305414," 4,973.00 ",Training Awards - Postgraduates
BEIS,UKRI - AHRC,24/10/2018,Training Awards - Postgraduates,International Placement Scheme,University of York,98305455," 4,470.00 ",Training Awards - Postgraduates
BEIS,UKRI - AHRC,22/10/2018,Marketing & PR,Communications,Unspecified,98309108," 3,600.00 ",Marketing & PR
BEIS,UKRI - AHRC,19/10/2018,Advertising & Promotion,Communications,Unspecified,98294619," 2,797.90 ",Advertising & Promotion
BEIS,UKRI - AHRC,29/10/2018,Marketing & PR,Communications,Unspecified,98320806," 3,013.40 ",Marketing & PR
BEIS,UKRI - AHRC,22/10/2018,Consultancy Services,Communications,Unspecified,98314987," 3,000.00 ",Consultancy Services
BEIS,UKRI - AHRC,02/10/2018,Conferences & Seminars,PSU Project Office,Unspecified,98289828, 330.00 ,Conferences & Seminars
BEIS,UKRI - AHRC,02/10/2018,T&S UK - Public Transport,Creative Arts & Digital Humanities,Unspecified,98301880, 20.00 ,T&S UK - Public Transport
BEIS,UKRI - AHRC,02/10/2018,T&S UK - Subsistence,Creative Arts & Digital Humanities,Unspecified,98301880, 10.98 ,T&S UK - Subsistence
BEIS,UKRI - AHRC,02/10/2018,T&S UK - Public Transport,Communications,Unspecified,98301881, 8.00 ,T&S UK - Public Transport
BEIS,UKRI - AHRC,02/10/2018,T&S UK - Public Transport,Communications,Unspecified,98301881, 47.00 ,T&S UK - Public Transport
BEIS,UKRI - AHRC,02/10/2018,T&S UK - Public Transport,Communications,Unspecified,98301881, 16.30 ,T&S UK - Public Transport
BEIS,UKRI - AHRC,02/10/2018,T&S UK - Subsistence,Communications,Unspecified,98301881, 21.78 ,T&S UK - Subsistence
BEIS,UKRI - AHRC,02/10/2018,T&S UK - Subsistence,Communications,Unspecified,98301881, 26.33 ,T&S UK - Subsistence
BEIS,UKRI - AHRC,02/10/2018,T&S UK - Subsistence,Communications,Unspecified,98301881, 12.34 ,T&S UK - Subsistence
BEIS,UKRI - AHRC,02/10/2018,T&S UK - Subsistence,Communications,Unspecified,98301881, 20.00 ,T&S UK - Subsistence
BEIS,UKRI - AHRC,04/10/2018,T&S UK - Other Charges,PSU Project Office,Unspecified,98293128, 40.00 ,T&S UK - Other Charges
BEIS,UKRI - AHRC,04/10/2018,T&S UK - Public Transport,"Languages,Literature & International Engagement",Unspecified,98303702, 9.00 ,T&S UK - Public Transport
BEIS,UKRI - AHRC,04/10/2018,T&S UK - Subsistence,"Languages,Literature & International Engagement",Unspecified,98303702, 2.75 ,T&S UK - Subsistence
BEIS,UKRI - AHRC,04/10/2018,T&S UK - Subsistence,"Languages,Literature & International Engagement",Unspecified,98303702, 16.06 ,T&S UK - Subsistence
BEIS,UKRI - AHRC,04/10/2018,T&S UK - Subsistence,IS,Unspecified,98303703, 24.75 ,T&S UK - Subsistence
BEIS,UKRI - AHRC,04/10/2018,T&S UK - Subsistence,IS,Unspecified,98303703, 5.10 ,T&S UK - Subsistence
BEIS,UKRI - AHRC,05/10/2018,T&S UK - Mileage,Communications,Unspecified,98304139, 3.15 ,T&S UK - Mileage
BEIS,UKRI - AHRC,05/10/2018,T&S UK - Other Charges,Communications,Unspecified,98304139, 4.69 ,T&S UK - Other Charges
BEIS,UKRI - AHRC,05/10/2018,T&S UK - Public Transport,Communications,Unspecified,98304139, 15.00 ,T&S UK - Public Transport
BEIS,UKRI - AHRC,05/10/2018,T&S UK - Subsistence,Communications,Unspecified,98304139, 9.75 ,T&S UK - Subsistence
BEIS,UKRI - AHRC,08/10/2018,T&S UK - Subsistence,IS,Unspecified,98305903, 25.00 ,T&S UK - Subsistence
BEIS,UKRI - AHRC,08/10/2018,T&S UK - Subsistence,IS,Unspecified,98305903, 5.99 ,T&S UK - Subsistence
BEIS,UKRI - AHRC,09/10/2018,T&S UK - Other Charges,PSU Project Office,Unspecified,98307595, 9.08 ,T&S UK - Other Charges
BEIS,UKRI - AHRC,09/10/2018,T&S UK - Parking Tolls Congestion Charges,Creative Arts & Digital Humanities,Unspecified,98307596, 18.10 ,T&S UK - Parking Tolls Congestion Charges
BEIS,UKRI - AHRC,09/10/2018,T&S UK - Subsistence,Creative Arts & Digital Humanities,Unspecified,98307596, 25.00 ,T&S UK - Subsistence
BEIS,UKRI - AHRC,09/10/2018,T&S UK - Subsistence,Creative Arts & Digital Humanities,Unspecified,98307596, 13.35 ,T&S UK - Subsistence
BEIS,UKRI - AHRC,10/10/2018,T&S UK - Public Transport,HR,Unspecified,98308483, 27.90 ,T&S UK - Public Transport
BEIS,UKRI - AHRC,10/10/2018,T&S UK - Vehicle Hire,HR,Unspecified,98308483, 31.50 ,T&S UK - Vehicle Hire
BEIS,UKRI - AHRC,12/10/2018,T&S UK - Mileage,Creative Arts & Digital Humanities,Unspecified,98310144, 11.70 ,T&S UK - Mileage
BEIS,UKRI - AHRC,12/10/2018,T&S UK - Mileage,Creative Arts & Digital Humanities,Unspecified,98310145, 162.68 ,T&S UK - Mileage
BEIS,UKRI - AHRC,12/10/2018,T&S UK - Subsistence,PSU Project Office,Unspecified,98310146, 117.59 ,T&S UK - Subsistence
BEIS,UKRI - AHRC,12/10/2018,T&S UK - Subsistence,PSU Project Office,Unspecified,98310146, 29.69 ,T&S UK - Subsistence
BEIS,UKRI - AHRC,15/10/2018,Health & Safety (inc. Medicals & Opticians),HR,Unspecified,98311857, 69.00 ,Health & Safety (inc. Medicals & Opticians)
BEIS,UKRI - AHRC,17/10/2018,T&S UK - Parking Tolls Congestion Charges,Creative Arts & Digital Humanities,Unspecified,98313345, 8.00 ,T&S UK - Parking Tolls Congestion Charges
BEIS,UKRI - AHRC,17/10/2018,T&S UK - Subsistence,Creative Arts & Digital Humanities,Unspecified,98313345, 2.50 ,T&S UK - Subsistence
BEIS,UKRI - AHRC,17/10/2018,T&S UK - Mileage,Creative Arts & Digital Humanities,Unspecified,98313346, 84.60 ,T&S UK - Mileage
BEIS,UKRI - AHRC,17/10/2018,T&S UK - Subsistence,IS,Unspecified,98313347, 24.75 ,T&S UK - Subsistence
BEIS,UKRI - AHRC,17/10/2018,T&S UK - Subsistence,IS,Unspecified,98313347, 4.20 ,T&S UK - Subsistence
BEIS,UKRI - AHRC,17/10/2018,T&S UK - Subsistence,Business Process & Analysis,Unspecified,98313348, 37.20 ,T&S UK - Subsistence
BEIS,UKRI - AHRC,17/10/2018,T&S UK - Subsistence,Business Process & Analysis,Unspecified,98313348, 10.00 ,T&S UK - Subsistence
BEIS,UKRI - AHRC,18/10/2018,T&S UK - Public Transport,Creative Arts & Digital Humanities,Unspecified,98315253, 2.40 ,T&S UK - Public Transport
BEIS,UKRI - AHRC,18/10/2018,T&S UK - Subsistence,Creative Arts & Digital Humanities,Unspecified,98315253, 10.10 ,T&S UK - Subsistence
BEIS,UKRI - AHRC,19/10/2018,Health & Safety (inc. Medicals & Opticians),HR,Unspecified,98314615, 100.00 ,Health & Safety (inc. Medicals & Opticians)
BEIS,UKRI - AHRC,19/10/2018,T&S UK - Parking Tolls Congestion Charges,HR,Unspecified,98314615, 6.90 ,T&S UK - Parking Tolls Congestion Charges
BEIS,UKRI - AHRC,22/10/2018,T&S UK - Accommodation,PSU JRS,Unspecified,98316296, 573.96 ,T&S UK - Accommodation
BEIS,UKRI - AHRC,22/10/2018,T&S UK - Mileage,PSU JRS,Unspecified,98316296, 37.80 ,T&S UK - Mileage
BEIS,UKRI - AHRC,22/10/2018,T&S UK - Public Transport,PSU JRS,Unspecified,98316296, 294.02 ,T&S UK - Public Transport
BEIS,UKRI - AHRC,22/10/2018,T&S UK - Subsistence,PSU JRS,Unspecified,98316296, 79.71 ,T&S UK - Subsistence
BEIS,UKRI - AHRC,22/10/2018,T&S UK - Subsistence,PSU JRS,Unspecified,98316296, 22.85 ,T&S UK - Subsistence
BEIS,UKRI - AHRC,22/10/2018,T&S UK - Subsistence,PSU JRS,Unspecified,98316296, 30.00 ,T&S UK - Subsistence
BEIS,UKRI - AHRC,23/10/2018,T&S UK - Mileage,SMT,Unspecified,98317532, 45.00 ,T&S UK - Mileage
BEIS,UKRI - AHRC,23/10/2018,T&S UK - Parking Tolls Congestion Charges,SMT,Unspecified,98317532, 49.20 ,T&S UK - Parking Tolls Congestion Charges
BEIS,UKRI - AHRC,23/10/2018,T&S UK - Subsistence,SMT,Unspecified,98317532, 31.53 ,T&S UK - Subsistence
BEIS,UKRI - AHRC,23/10/2018,T&S UK - Subsistence,SMT,Unspecified,98317532, 24.05 ,T&S UK - Subsistence
BEIS,UKRI - AHRC,23/10/2018,T&S UK - Subsistence,SMT,Unspecified,98317532, 19.00 ,T&S UK - Subsistence
BEIS,UKRI - AHRC,23/10/2018,T&S UK - Subsistence,SMT,Unspecified,98317532, 10.00 ,T&S UK - Subsistence
BEIS,UKRI - AHRC,23/10/2018,T&S UK - Parking Tolls Congestion Charges,PSU Project Office,Unspecified,98317533, 6.00 ,T&S UK - Parking Tolls Congestion Charges
BEIS,UKRI - AHRC,23/10/2018,T&S UK - Public Transport,PSU Project Office,Unspecified,98317533, 13.40 ,T&S UK - Public Transport
BEIS,UKRI - AHRC,23/10/2018,T&S UK - Subsistence,PSU Project Office,Unspecified,98317533, 20.45 ,T&S UK - Subsistence
BEIS,UKRI - AHRC,23/10/2018,T&S UK - Subsistence,PSU Project Office,Unspecified,98317533, 2.85 ,T&S UK - Subsistence
BEIS,UKRI - AHRC,23/10/2018,T&S UK - Mileage,Creative Arts & Digital Humanities,Unspecified,98317534, 12.15 ,T&S UK - Mileage
BEIS,UKRI - AHRC,23/10/2018,T&S UK - Subsistence,"Histories,Culture & Heritage",Unspecified,98317535, 25.64 ,T&S UK - Subsistence
BEIS,UKRI - AHRC,24/10/2018,T&S UK - Mileage,PSU Project Office,Unspecified,98318665, 40.50 ,T&S UK - Mileage
BEIS,UKRI - AHRC,24/10/2018,T&S UK - Public Transport,PSU Project Office,Unspecified,98318665, 34.90 ,T&S UK - Public Transport
BEIS,UKRI - AHRC,24/10/2018,T&S UK - Parking Tolls Congestion Charges,Creative Arts & Digital Humanities,Unspecified,98318666, 8.00 ,T&S UK - Parking Tolls Congestion Charges
BEIS,UKRI - AHRC,24/10/2018,T&S UK - Subsistence,Creative Arts & Digital Humanities,Unspecified,98318666, 2.84 ,T&S UK - Subsistence
BEIS,UKRI - AHRC,29/10/2018,T&S Overseas - Subsistence,International,Unspecified,98320874, 22.62 ,T&S Overseas - Subsistence
BEIS,UKRI - AHRC,29/10/2018,T&S UK - Public Transport,International,Unspecified,98320875, 10.50 ,T&S UK - Public Transport
BEIS,UKRI - AHRC,29/10/2018,T&S UK - Public Transport,International,Unspecified,98320875, 13.10 ,T&S UK - Public Transport
BEIS,UKRI - AHRC,29/10/2018,T&S UK - Subsistence,International,Unspecified,98320875, 6.65 ,T&S UK - Subsistence
BEIS,UKRI - AHRC,29/10/2018,T&S UK - Subsistence,International,Unspecified,98320875, 8.95 ,T&S UK - Subsistence
BEIS,UKRI - AHRC,29/10/2018,T&S UK - Subsistence,International,Unspecified,98320875, 10.00 ,T&S UK - Subsistence
BEIS,UKRI - AHRC,31/10/2018,T&S UK - Other Charges,Corporate Services,Unspecified,98323529, 50.00 ,T&S UK - Other Charges
BEIS,UKRI - AHRC,29/10/2018,Council & Committee Honoraria,New Programme Development,Unspecified,98321273, 690.00 ,Council & Committee Honoraria
BEIS,UKRI - AHRC,24/10/2018,Training Awards - Postgraduates,Collabrative Doctoral Grants - Block Payment,Victoria and Albert Museum,98305309," 21,079.75 ",Training Awards - Postgraduates
BEIS,UKRI - AHRC,11/10/2018,Recruitment Costs,Corporate Services,Warwick University Services Ltd,98308114, 245.00 ,Recruitment Costs
BEIS,UKRI - AHRC,11/10/2018,Recruitment Costs,Creative Arts & Digital Humanities,Warwick University Services Ltd,98308120, 245.00 ,Recruitment Costs
BEIS,UKRI - AHRC,29/10/2018,Recruitment Costs,Communications,Warwick University Services Ltd,98320262, 245.00 ,Recruitment Costs
BEIS,UKRI - AHRC,08/10/2018,Mobile Phone Costs,Corporate Services,West UC Ltd,98274221,-431.76 ,Mobile Phone Costs
BEIS,UKRI - AHRC,08/10/2018,Mobile Phone Costs,Corporate Services,West UC Ltd,98304085, 638.77 ,Mobile Phone Costs
BEIS,UKRI - AHRC,01/10/2018,Conferences & Seminars,SMT,Westminster Forum Projects Ltd,98300227, 276.00 ,Conferences & Seminars
BEIS,UKRI - BBSRC,02/10/2018,PDG - Director,Staff Training,A POSITIVE MIND MATTERS,98301576,"5,635.00",PDG - Director
BEIS,UKRI - BBSRC,02/10/2018,PDG - Director,Staff Training,A POSITIVE MIND MATTERS,98301577,"7,200.00",PDG - Director
BEIS,UKRI - BBSRC,02/10/2018,JBOS - Maintenance,Purchase of non capital equipment,Abbey Business Equipment Ltd,98301464,622.75,JBOS - Maintenance
BEIS,UKRI - BBSRC,11/10/2018,JBOS Health and Safety,Health & Safety (inc. Medicals & Opticians),Abbey Business Equipment Ltd,98308662,60.00,JBOS Health and Safety
BEIS,UKRI - BBSRC,26/10/2018,IBERS,Research Institutes - Capital Grants: Major Works,ABERYSTWYTH INNOVATION AND ENTERPRISE CAMPUS LTD (AIEC),98319300,"615,891.99",IBERS
BEIS,UKRI - BBSRC,10/10/2018,FG - Accounts & Business Planning,Training Awards - Postgraduates,Aberystwyth University,98302665,"3,719.55",FG - Accounts & Business Planning
BEIS,UKRI - BBSRC,10/10/2018,FG - Accounts & Business Planning,Training Awards - Postgraduates,Aberystwyth University,98302722,"5,940.12",FG - Accounts & Business Planning
BEIS,UKRI - BBSRC,10/10/2018,FG - Accounts & Business Planning,Training Awards - Postgraduates,Aberystwyth University,98302724,"5,940.12",FG - Accounts & Business Planning
BEIS,UKRI - BBSRC,10/10/2018,FG - Accounts & Business Planning,Training Awards - Postgraduates,Aberystwyth University,98302774,"5,940.12",FG - Accounts & Business Planning
BEIS,UKRI - BBSRC,10/10/2018,FG - Accounts & Business Planning,Training Awards - Postgraduates,Aberystwyth University,98302782,"5,940.12",FG - Accounts & Business Planning
BEIS,UKRI - BBSRC,10/10/2018,FG - Accounts & Business Planning,Training Awards - Postgraduates,Aberystwyth University,98302784,"5,940.12",FG - Accounts & Business Planning
BEIS,UKRI - BBSRC,10/10/2018,FG - Accounts & Business Planning,Training Awards - Postgraduates,Aberystwyth University,98303132,"10,320.00",FG - Accounts & Business Planning
BEIS,UKRI - BBSRC,04/10/2018,PDG - Director,Recruitment Costs,Agenda Resource Management Ltd,98302638,155.91,PDG - Director
BEIS,UKRI - BBSRC,02/10/2018,JBOS Health and Safety,Health & Safety (inc. Medicals & Opticians),AM Health & Safety Ltd,98289144,225.00,JBOS Health and Safety
BEIS,UKRI - BBSRC,02/10/2018,JBOS Health and Safety,Health & Safety (inc. Medicals & Opticians),AM Health & Safety Ltd,98300454,-45.00,JBOS Health and Safety
BEIS,UKRI - BBSRC,02/10/2018,JBOS Health and Safety,Health & Safety (inc. Medicals & Opticians),AM Health & Safety Ltd,98301336,45.00,JBOS Health and Safety
BEIS,UKRI - BBSRC,18/10/2018,PDG - Director,Health & Safety (inc. Medicals & Opticians),AM Health & Safety Ltd,98289135,45.00,PDG - Director
BEIS,UKRI - BBSRC,18/10/2018,PDG - Director,Health & Safety (inc. Medicals & Opticians),AM Health & Safety Ltd,98301332,45.00,PDG - Director
BEIS,UKRI - BBSRC,18/10/2018,PDG - Director,Health & Safety (inc. Medicals & Opticians),AM Health & Safety Ltd,98312055,45.00,PDG - Director
BEIS,UKRI - BBSRC,24/10/2018,JBOS Health and Safety,Health & Safety (inc. Medicals & Opticians),AM Health & Safety Ltd,98312788,108.00,JBOS Health and Safety
BEIS,UKRI - BBSRC,30/10/2018,JBOS Health and Safety,Health & Safety (inc. Medicals & Opticians),AM Health & Safety Ltd,98320932,144.00,JBOS Health and Safety
BEIS,UKRI - BBSRC,25/10/2018,JBOS - Maintenance,Mechanical & Electrical Maintenance,AR Electrical (Swindon) Ltd,98318030,"2,330.40",JBOS - Maintenance
BEIS,UKRI - BBSRC,25/10/2018,JBOS - Maintenance,Mechanical & Electrical Maintenance,AR Electrical (Swindon) Ltd,98318031,"2,176.80",JBOS - Maintenance
BEIS,UKRI - BBSRC,25/10/2018,JBOS - Maintenance,Mechanical & Electrical Maintenance,AR Electrical (Swindon) Ltd,98318032,294.00,JBOS - Maintenance
BEIS,UKRI - BBSRC,26/10/2018,JBOS - Maintenance,Non-Capital Building Construction,AR Electrical (Swindon) Ltd,98295256,"3,600.00",JBOS - Maintenance
BEIS,UKRI - BBSRC,29/10/2018,JBOS - Maintenance,Mechanical & Electrical Maintenance,AR Electrical (Swindon) Ltd,98320722,"1,800.00",JBOS - Maintenance
BEIS,UKRI - BBSRC,30/10/2018,JBOS - Administration,Printing & Stationery,Arco Limited,98321024,161.93,JBOS - Administration
BEIS,UKRI - BBSRC,02/10/2018,Balance Sheet,Nursery Deductions,Arts & Humanities Research Council,98300300,"6,034.00",Balance Sheet
BEIS,UKRI - BBSRC,10/10/2018,FG - Accounts & Business Planning,Training Awards - Postgraduates,Aston University,98302736,"5,940.12",FG - Accounts & Business Planning
BEIS,UKRI - BBSRC,10/10/2018,FG - Accounts & Business Planning,Training Awards - Postgraduates,Aston University,98302800,"5,940.12",FG - Accounts & Business Planning
BEIS,UKRI - BBSRC,17/10/2018,JBOS - Administration,Printing & Stationery,Banner Group Ltd,98310423,19.68,JBOS - Administration
BEIS,UKRI - BBSRC,17/10/2018,JBOS - Administration,Printing & Stationery,Banner Group Ltd,98310424,95.52,JBOS - Administration
BEIS,UKRI - BBSRC,17/10/2018,JBOS - Administration,Printing & Stationery,Banner Group Ltd,98310424,10.08,JBOS - Administration
BEIS,UKRI - BBSRC,17/10/2018,JBOS - Administration,Printing & Stationery,Banner Group Ltd,98310424,34.20,JBOS - Administration
BEIS,UKRI - BBSRC,17/10/2018,JBOS - Administration,Printing & Stationery,Banner Group Ltd,98310763,50.40,JBOS - Administration
BEIS,UKRI - BBSRC,17/10/2018,JBOS - Administration,Printing & Stationery,Banner Group Ltd,98310763,123.60,JBOS - Administration
BEIS,UKRI - BBSRC,18/10/2018,JBOS - Administration,Printing & Stationery,Banner Group Ltd,98313858,-0.16,JBOS - Administration
BEIS,UKRI - BBSRC,18/10/2018,JBOS - Administration,Printing & Stationery,Banner Group Ltd,98313858,2.05,JBOS - Administration
BEIS,UKRI - BBSRC,18/10/2018,JBOS - Administration,Printing & Stationery,Banner Group Ltd,98313858,-0.82,JBOS - Administration
BEIS,UKRI - BBSRC,22/10/2018,JBOS - Administration,Printing & Stationery,Banner Group Ltd,98313030,136.80,JBOS - Administration
BEIS,UKRI - BBSRC,22/10/2018,CIMG - Director,Printing & Stationery,Banner Group Ltd,98315431,27.52,CIMG - Director
BEIS,UKRI - BBSRC,23/10/2018,JBOS - Administration,Printing & Stationery,Banner Group Ltd,98289440,8.28,JBOS - Administration
BEIS,UKRI - BBSRC,23/10/2018,JBOS - Administration,Printing & Stationery,Banner Group Ltd,98296615,3.91,JBOS - Administration
BEIS,UKRI - BBSRC,23/10/2018,JBOS - Administration,Printing & Stationery,Banner Group Ltd,98302655,16.42,JBOS - Administration
BEIS,UKRI - BBSRC,23/10/2018,JBOS - Administration,Printing & Stationery,Banner Group Ltd,98313844,10.26,JBOS - Administration
BEIS,UKRI - BBSRC,23/10/2018,JBOS - Administration,Printing & Stationery,Banner Group Ltd,98316554,13.25,JBOS - Administration
BEIS,UKRI - BBSRC,24/10/2018,CIMG - Director,Printing & Stationery,Banner Group Ltd,98317640,21.89,CIMG - Director
BEIS,UKRI - BBSRC,31/10/2018,CIMG - Director,Printing & Stationery,Banner Group Ltd,98323239,2.03,CIMG - Director
BEIS,UKRI - BBSRC,04/10/2018,CE - CPS,Meetings & Catering,Baxter Storey Ltd,98303669,160.32,CE - CPS
BEIS,UKRI - BBSRC,04/10/2018,CE - Chief Executive,Meetings & Catering,Baxter Storey Ltd,98303669,16.08,CE - Chief Executive
BEIS,UKRI - BBSRC,04/10/2018,Innovation and Skills Group,Meetings & Catering,Baxter Storey Ltd,98303669,580.50,Innovation and Skills Group
BEIS,UKRI - BBSRC,04/10/2018,RISD - UKRO,Meetings & Catering,Baxter Storey Ltd,98303669,99.12,RISD - UKRO
BEIS,UKRI - BBSRC,30/10/2018,CE - CPS,Meetings & Catering,Baxter Storey Ltd,98321978,3.00,CE - CPS
BEIS,UKRI - BBSRC,30/10/2018,CE - Chief Executive,Meetings & Catering,Baxter Storey Ltd,98321978,44.22,CE - Chief Executive
BEIS,UKRI - BBSRC,30/10/2018,European Initiatives,Meetings & Catering,Baxter Storey Ltd,98321978,136.20,European Initiatives
BEIS,UKRI - BBSRC,30/10/2018,FG - Director,Meetings & Catering,Baxter Storey Ltd,98321978,95.04,FG - Director
BEIS,UKRI - BBSRC,30/10/2018,Innovation and Skills Group,Meetings & Catering,Baxter Storey Ltd,98321978,8.04,Innovation and Skills Group
BEIS,UKRI - BBSRC,30/10/2018,Science Group,Meetings & Catering,Baxter Storey Ltd,98321978,777.78,Science Group
BEIS,UKRI - BBSRC,05/10/2018,PDG - Director,Other Staff Benefits,Benenden Healthcare Society,98304749,"8,794.50",PDG - Director
BEIS,UKRI - BBSRC,05/10/2018,PDG - Director,Staff Training,Bray Leino Ltd,98303976,789.72,PDG - Director
BEIS,UKRI - BBSRC,25/10/2018,PDG - Director,Staff Training,Bray Leino Ltd,98318887,754.99,PDG - Director
BEIS,UKRI - BBSRC,10/10/2018,FG - Accounts & Business Planning,Training Awards - Postgraduates,Brunel University London,98302958,"6,543.50",FG - Accounts & Business Planning
BEIS,UKRI - BBSRC,01/10/2018,CE - CPS,Telecoms - Tele/ Video conferencing,BT Conferencing,98246017,-170.15,CE - CPS
BEIS,UKRI - BBSRC,01/10/2018,CE - CPS,Telecoms - Tele/ Video conferencing,BT Conferencing,98246017,-100.32,CE - CPS
BEIS,UKRI - BBSRC,01/10/2018,FG - Director,Telecoms - Tele/ Video conferencing,BT Conferencing,98246017,-441.68,FG - Director
BEIS,UKRI - BBSRC,01/10/2018,Innovation and Skills Group,Telecoms - Tele/ Video conferencing,BT Conferencing,98246017,-406.46,Innovation and Skills Group
BEIS,UKRI - BBSRC,01/10/2018,PDG - Director,Telecoms - Tele/ Video conferencing,BT Conferencing,98246017,-96.41,PDG - Director
BEIS,UKRI - BBSRC,22/10/2018,CE - CPS,Telecoms - Tele/ Video conferencing,BT Conferencing,98315102,123.70,CE - CPS
BEIS,UKRI - BBSRC,22/10/2018,CE - CPS,Telecoms - Tele/ Video conferencing,BT Conferencing,98315102,71.05,CE - CPS
BEIS,UKRI - BBSRC,22/10/2018,FG - Director,Telecoms - Tele/ Video conferencing,BT Conferencing,98315102,258.74,FG - Director
BEIS,UKRI - BBSRC,22/10/2018,Innovation and Skills Group,Telecoms - Tele/ Video conferencing,BT Conferencing,98315102,919.51,Innovation and Skills Group
BEIS,UKRI - BBSRC,22/10/2018,PDG - Director,Telecoms - Tele/ Video conferencing,BT Conferencing,98315102,37.80,PDG - Director
BEIS,UKRI - BBSRC,03/10/2018,Science Group,Other Programme Costs,Calder Conference Ltd,98301749,"4,961.33",Science Group
BEIS,UKRI - BBSRC,03/10/2018,PDG - Director,Staff Training,Calder Conference Ltd,98302440,114.00,PDG - Director
BEIS,UKRI - BBSRC,04/10/2018,CIMG - Council Secretariat,Corporate Events,Calder Conference Ltd,98302441,"3,651.37",CIMG - Council Secretariat
BEIS,UKRI - BBSRC,05/10/2018,Innovation and Skills Group CDSU,Other Programme Costs,Calder Conference Ltd,98289609,450.00,Innovation and Skills Group CDSU
BEIS,UKRI - BBSRC,05/10/2018,Science Group,Other Programme Costs,Calder Conference Ltd,98289610,630.00,Science Group
BEIS,UKRI - BBSRC,12/10/2018,CE - CPS,Other Programme Costs,Calder Conference Ltd,98306907,"1,014.00",CE - CPS
BEIS,UKRI - BBSRC,22/10/2018,CIMG - Council Secretariat,Corporate Events,Calder Conference Ltd,98304731,936.00,CIMG - Council Secretariat
BEIS,UKRI - BBSRC,22/10/2018,PDG - Director,Staff Training,Calder Conference Ltd,98316124,"1,684.00",PDG - Director
BEIS,UKRI - BBSRC,23/10/2018,CE - IRU,Conferences & Seminars,Calder Conference Ltd,98317373,"5,886.65",CE - IRU
BEIS,UKRI - BBSRC,30/10/2018,Science Group - Delivery Function,Conferences & Seminars,Calder Conference Ltd,98321817,770.00,Science Group - Delivery Function
BEIS,UKRI - BBSRC,10/10/2018,FG - Accounts & Business Planning,Training Awards - Postgraduates,Cambridge Crystallographic Data Centre,98302915,"6,043.50",FG - Accounts & Business Planning
BEIS,UKRI - BBSRC,15/10/2018,JBOS - Administration,Security Services,Capita Secure Information Solutions Ltd T/A Capita Workforce Management,98311732,715.20,JBOS - Administration
BEIS,UKRI - BBSRC,15/10/2018,JBOS - Administration,Security Services,Capita Secure Information Solutions Ltd T/A Capita Workforce Management,98311732,-1.20,JBOS - Administration
BEIS,UKRI - BBSRC,15/10/2018,JBOS - Administration,Security Services,Capita Secure Information Solutions Ltd T/A Capita Workforce Management,98311732,-6.00,JBOS - Administration
BEIS,UKRI - BBSRC,10/10/2018,FG - Accounts & Business Planning,Training Awards - Postgraduates,Cardiff University,98302712,"5,940.12",FG - Accounts & Business Planning
BEIS,UKRI - BBSRC,10/10/2018,FG - Accounts & Business Planning,Training Awards - Postgraduates,Cardiff University,98302832,"5,940.12",FG - Accounts & Business Planning
BEIS,UKRI - BBSRC,10/10/2018,FG - Accounts & Business Planning,Training Awards - Postgraduates,Cardiff University,98302941,"6,043.50",FG - Accounts & Business Planning
BEIS,UKRI - BBSRC,10/10/2018,FG - Accounts & Business Planning,Training Awards - Postgraduates,Cardiff University,98302972,"6,138.25",FG - Accounts & Business Planning
BEIS,UKRI - BBSRC,10/10/2018,FG - Accounts & Business Planning,Training Awards - Postgraduates,Cardiff University,98303120,"4,876.55",FG - Accounts & Business Planning
BEIS,UKRI - BBSRC,09/10/2018,JBOS - Maintenance,Water,Castle Water Ltd,98305807,"2,502.57",JBOS - Maintenance
BEIS,UKRI - BBSRC,15/10/2018,Balance Sheet,Voluntary Deductions,Charities Aid Foundation - GAYE,98299573,"1,568.54",Balance Sheet
BEIS,UKRI - BBSRC,15/10/2018,Balance Sheet,Voluntary Deductions,Civil Service Benevolent Fund,98309939,2.00,Balance Sheet
BEIS,UKRI - BBSRC,25/10/2018,JBOS - Maintenance,Gas,Corona Energy,98313447,"1,444.32",JBOS - Maintenance
BEIS,UKRI - BBSRC,02/10/2018,CE - IRU,T&S UK - Vehicle Hire,Corporate Airport Transfers,98292619,398.40,CE - IRU
BEIS,UKRI - BBSRC,02/10/2018,CE - Chief Executive,T&S UK - Vehicle Hire,Corporate Airport Transfers,98292974,112.80,CE - Chief Executive
BEIS,UKRI - BBSRC,19/10/2018,Science Group - Delivery Function,T&S UK - Public Transport,Corporate Airport Transfers,98303464,269.40,Science Group - Delivery Function
BEIS,UKRI - BBSRC,19/10/2018,CE - Chief Executive,Non-staff travel and subsistance,Corporate Travel Management (North) Ltd,98315368,0.50,CE - Chief Executive
BEIS,UKRI - BBSRC,19/10/2018,CE - Chief Executive,Non-staff travel and subsistance,Corporate Travel Management (North) Ltd,98315368,1.44,CE - Chief Executive
BEIS,UKRI - BBSRC,19/10/2018,CE - Chief Executive,Non-staff travel and subsistance,Corporate Travel Management (North) Ltd,98315368,67.00,CE - Chief Executive
BEIS,UKRI - BBSRC,19/10/2018,CE - Chief Executive,Non-staff travel and subsistance,Corporate Travel Management (North) Ltd,98315368,0.39,CE - Chief Executive
BEIS,UKRI - BBSRC,19/10/2018,CIMG - External Relations,Non-staff travel and subsistance,Corporate Travel Management (North) Ltd,98315368,3.00,CIMG - External Relations
BEIS,UKRI - BBSRC,19/10/2018,CIMG - External Relations,Non-staff travel and subsistance,Corporate Travel Management (North) Ltd,98315368,402.00,CIMG - External Relations
BEIS,UKRI - BBSRC,19/10/2018,CIMG - External Relations,Non-staff travel and subsistance,Corporate Travel Management (North) Ltd,98315368,0.50,CIMG - External Relations
BEIS,UKRI - BBSRC,19/10/2018,CIMG - External Relations,Non-staff travel and subsistance,Corporate Travel Management (North) Ltd,98315368,0.70,CIMG - External Relations
BEIS,UKRI - BBSRC,19/10/2018,Science Group - Delivery Function,Non-staff travel and subsistance,Corporate Travel Management (North) Ltd,98315368,47.80,Science Group - Delivery Function
BEIS,UKRI - BBSRC,19/10/2018,CE - CPS,T&S Overseas - Accommodation,Corporate Travel Management (North) Ltd,98315368,0.50,CE - CPS
BEIS,UKRI - BBSRC,19/10/2018,CE - CPS,T&S Overseas - Accommodation,Corporate Travel Management (North) Ltd,98315368,1.44,CE - CPS
BEIS,UKRI - BBSRC,19/10/2018,CE - CPS,T&S Overseas - Accommodation,Corporate Travel Management (North) Ltd,98315368,0.39,CE - CPS
BEIS,UKRI - BBSRC,19/10/2018,CE - IRU,T&S Overseas - Accommodation,Corporate Travel Management (North) Ltd,98315368,0.50,CE - IRU
BEIS,UKRI - BBSRC,19/10/2018,CE - IRU,T&S Overseas - Accommodation,Corporate Travel Management (North) Ltd,98315368,0.50,CE - IRU
BEIS,UKRI - BBSRC,19/10/2018,CE - IRU,T&S Overseas - Accommodation,Corporate Travel Management (North) Ltd,98315368,0.50,CE - IRU
BEIS,UKRI - BBSRC,19/10/2018,CE - IRU,T&S Overseas - Accommodation,Corporate Travel Management (North) Ltd,98315368,0.50,CE - IRU
BEIS,UKRI - BBSRC,19/10/2018,CE - IRU,T&S Overseas - Accommodation,Corporate Travel Management (North) Ltd,98315368,219.88,CE - IRU
BEIS,UKRI - BBSRC,19/10/2018,CE - IRU,T&S Overseas - Accommodation,Corporate Travel Management (North) Ltd,98315368,1.44,CE - IRU
BEIS,UKRI - BBSRC,19/10/2018,CE - IRU,T&S Overseas - Accommodation,Corporate Travel Management (North) Ltd,98315368,0.39,CE - IRU
BEIS,UKRI - BBSRC,19/10/2018,CE - IRU,T&S Overseas - Accommodation,Corporate Travel Management (North) Ltd,98315368,0.30,CE - IRU
BEIS,UKRI - BBSRC,19/10/2018,European Initiatives,T&S Overseas - Accommodation,Corporate Travel Management (North) Ltd,98315368,0.50,European Initiatives
BEIS,UKRI - BBSRC,19/10/2018,European Initiatives,T&S Overseas - Accommodation,Corporate Travel Management (North) Ltd,98315368,0.10,European Initiatives
BEIS,UKRI - BBSRC,19/10/2018,Science Group,T&S Overseas - Accommodation,Corporate Travel Management (North) Ltd,98315368,0.50,Science Group
BEIS,UKRI - BBSRC,19/10/2018,Science Group,T&S Overseas - Accommodation,Corporate Travel Management (North) Ltd,98315368,0.10,Science Group
BEIS,UKRI - BBSRC,19/10/2018,Science Group � Admin Function,T&S Overseas - Accommodation,Corporate Travel Management (North) Ltd,98315368,0.50,Science Group � Admin Function
BEIS,UKRI - BBSRC,19/10/2018,Science Group � Admin Function,T&S Overseas - Accommodation,Corporate Travel Management (North) Ltd,98315368,1.44,Science Group � Admin Function
BEIS,UKRI - BBSRC,19/10/2018,Science Group � Admin Function,T&S Overseas - Accommodation,Corporate Travel Management (North) Ltd,98315368,0.39,Science Group � Admin Function
BEIS,UKRI - BBSRC,19/10/2018,CE - Chief Executive,T&S Overseas - Flights,Corporate Travel Management (North) Ltd,98315368,"3,713.71",CE - Chief Executive
BEIS,UKRI - BBSRC,19/10/2018,CE - IRU,T&S Overseas - Flights,Corporate Travel Management (North) Ltd,98315368,"4,155.71",CE - IRU
BEIS,UKRI - BBSRC,19/10/2018,CE - IRU,T&S Overseas - Flights,Corporate Travel Management (North) Ltd,98315368,2.16,CE - IRU
BEIS,UKRI - BBSRC,19/10/2018,CE - IRU,T&S Overseas - Flights,Corporate Travel Management (North) Ltd,98315368,375.00,CE - IRU
BEIS,UKRI - BBSRC,19/10/2018,CE - IRU,T&S Overseas - Flights,Corporate Travel Management (North) Ltd,98315368,60.00,CE - IRU
BEIS,UKRI - BBSRC,19/10/2018,FG - RCUK Assurance,T&S Overseas - Flights,Corporate Travel Management (North) Ltd,98315368,8.64,FG - RCUK Assurance
BEIS,UKRI - BBSRC,19/10/2018,FG - RCUK Assurance,T&S Overseas - Flights,Corporate Travel Management (North) Ltd,98315368,"5,839.64",FG - RCUK Assurance
BEIS,UKRI - BBSRC,19/10/2018,Science Group,T&S Overseas - Flights,Corporate Travel Management (North) Ltd,98315368,163.00,Science Group
BEIS,UKRI - BBSRC,19/10/2018,Science Group,T&S Overseas - Flights,Corporate Travel Management (North) Ltd,98315368,"2,070.31",Science Group
BEIS,UKRI - BBSRC,19/10/2018,Science Group,T&S Overseas - Flights,Corporate Travel Management (North) Ltd,98315368,"1,712.91",Science Group
BEIS,UKRI - BBSRC,19/10/2018,Science Group - Delivery Function,T&S Overseas - Flights,Corporate Travel Management (North) Ltd,98315368,6.75,Science Group - Delivery Function
BEIS,UKRI - BBSRC,19/10/2018,Science Group - Delivery Function,T&S Overseas - Flights,Corporate Travel Management (North) Ltd,98315368,147.50,Science Group - Delivery Function
BEIS,UKRI - BBSRC,19/10/2018,Science Group - Delivery Function,T&S Overseas - Flights,Corporate Travel Management (North) Ltd,98315368,85.00,Science Group - Delivery Function
BEIS,UKRI - BBSRC,19/10/2018,Science Group - Delivery Function,T&S Overseas - Flights,Corporate Travel Management (North) Ltd,98315368,30.85,Science Group - Delivery Function
BEIS,UKRI - BBSRC,19/10/2018,CE - IRU,T&S Overseas - Public Transport,Corporate Travel Management (North) Ltd,98315368,193.00,CE - IRU
BEIS,UKRI - BBSRC,19/10/2018,Innovation and Skills Group,T&S Overseas - Public Transport,Corporate Travel Management (North) Ltd,98315368,69.00,Innovation and Skills Group
BEIS,UKRI - BBSRC,19/10/2018,RISD - UKRO,T&S Overseas - Public Transport,Corporate Travel Management (North) Ltd,98315368,107.00,RISD - UKRO
BEIS,UKRI - BBSRC,19/10/2018,RISD - UKRO,T&S Overseas - Public Transport,Corporate Travel Management (North) Ltd,98315368,80.00,RISD - UKRO
BEIS,UKRI - BBSRC,19/10/2018,RISD - UKRO,T&S Overseas - Public Transport,Corporate Travel Management (North) Ltd,98315368,97.00,RISD - UKRO
BEIS,UKRI - BBSRC,19/10/2018,RISD - UKRO,T&S Overseas - Public Transport,Corporate Travel Management (North) Ltd,98315368,159.00,RISD - UKRO
BEIS,UKRI - BBSRC,19/10/2018,RISD - UKRO,T&S Overseas - Public Transport,Corporate Travel Management (North) Ltd,98315368,163.00,RISD - UKRO
BEIS,UKRI - BBSRC,19/10/2018,RISD - UKRO,T&S Overseas - Public Transport,Corporate Travel Management (North) Ltd,98315368,101.00,RISD - UKRO
BEIS,UKRI - BBSRC,19/10/2018,RISD - UKRO,T&S Overseas - Public Transport,Corporate Travel Management (North) Ltd,98315368,203.00,RISD - UKRO
BEIS,UKRI - BBSRC,19/10/2018,RISD - UKRO,T&S Overseas - Public Transport,Corporate Travel Management (North) Ltd,98315368,2.16,RISD - UKRO
BEIS,UKRI - BBSRC,19/10/2018,RISD - UKRO,T&S Overseas - Public Transport,Corporate Travel Management (North) Ltd,98315368,185.00,RISD - UKRO
BEIS,UKRI - BBSRC,19/10/2018,RISD - UKRO,T&S Overseas - Public Transport,Corporate Travel Management (North) Ltd,98315368,158.00,RISD - UKRO
BEIS,UKRI - BBSRC,19/10/2018,CE - CPS,T&S UK - Accommodation,Corporate Travel Management (North) Ltd,98315368,0.50,CE - CPS
BEIS,UKRI - BBSRC,19/10/2018,CE - CPS,T&S UK - Accommodation,Corporate Travel Management (North) Ltd,98315368,0.50,CE - CPS
BEIS,UKRI - BBSRC,19/10/2018,CE - CPS,T&S UK - Accommodation,Corporate Travel Management (North) Ltd,98315368,105.00,CE - CPS
BEIS,UKRI - BBSRC,19/10/2018,CE - CPS,T&S UK - Accommodation,Corporate Travel Management (North) Ltd,98315368,0.50,CE - CPS
BEIS,UKRI - BBSRC,19/10/2018,CE - CPS,T&S UK - Accommodation,Corporate Travel Management (North) Ltd,98315368,93.99,CE - CPS
BEIS,UKRI - BBSRC,19/10/2018,CE - CPS,T&S UK - Accommodation,Corporate Travel Management (North) Ltd,98315368,0.30,CE - CPS
BEIS,UKRI - BBSRC,19/10/2018,CE - Chief Executive,T&S UK - Accommodation,Corporate Travel Management (North) Ltd,98315368,0.50,CE - Chief Executive
BEIS,UKRI - BBSRC,19/10/2018,CE - Chief Executive,T&S UK - Accommodation,Corporate Travel Management (North) Ltd,98315368,175.00,CE - Chief Executive
BEIS,UKRI - BBSRC,19/10/2018,CE - Chief Executive,T&S UK - Accommodation,Corporate Travel Management (North) Ltd,98315368,0.50,CE - Chief Executive
BEIS,UKRI - BBSRC,19/10/2018,CE - Chief Executive,T&S UK - Accommodation,Corporate Travel Management (North) Ltd,98315368,96.00,CE - Chief Executive
BEIS,UKRI - BBSRC,19/10/2018,CE - Chief Executive,T&S UK - Accommodation,Corporate Travel Management (North) Ltd,98315368,0.50,CE - Chief Executive
BEIS,UKRI - BBSRC,19/10/2018,CE - Chief Executive,T&S UK - Accommodation,Corporate Travel Management (North) Ltd,98315368,296.00,CE - Chief Executive
BEIS,UKRI - BBSRC,19/10/2018,CE - Chief Executive,T&S UK - Accommodation,Corporate Travel Management (North) Ltd,98315368,0.50,CE - Chief Executive
BEIS,UKRI - BBSRC,19/10/2018,CE - Chief Executive,T&S UK - Accommodation,Corporate Travel Management (North) Ltd,98315368,164.00,CE - Chief Executive
BEIS,UKRI - BBSRC,19/10/2018,CE - Chief Executive,T&S UK - Accommodation,Corporate Travel Management (North) Ltd,98315368,0.40,CE - Chief Executive
BEIS,UKRI - BBSRC,19/10/2018,CE - IRU,T&S UK - Accommodation,Corporate Travel Management (North) Ltd,98315368,0.50,CE - IRU
BEIS,UKRI - BBSRC,19/10/2018,CE - IRU,T&S UK - Accommodation,Corporate Travel Management (North) Ltd,98315368,175.00,CE - IRU
BEIS,UKRI - BBSRC,19/10/2018,CE - IRU,T&S UK - Accommodation,Corporate Travel Management (North) Ltd,98315368,0.50,CE - IRU
BEIS,UKRI - BBSRC,19/10/2018,CE - IRU,T&S UK - Accommodation,Corporate Travel Management (North) Ltd,98315368,0.50,CE - IRU
BEIS,UKRI - BBSRC,19/10/2018,CE - IRU,T&S UK - Accommodation,Corporate Travel Management (North) Ltd,98315368,329.00,CE - IRU
BEIS,UKRI - BBSRC,19/10/2018,CE - IRU,T&S UK - Accommodation,Corporate Travel Management (North) Ltd,98315368,0.10,CE - IRU
BEIS,UKRI - BBSRC,19/10/2018,CE - IRU,T&S UK - Accommodation,Corporate Travel Management (North) Ltd,98315368,0.20,CE - IRU
BEIS,UKRI - BBSRC,19/10/2018,CIMG - External Relations,T&S UK - Accommodation,Corporate Travel Management (North) Ltd,98315368,0.50,CIMG - External Relations
BEIS,UKRI - BBSRC,19/10/2018,CIMG - External Relations,T&S UK - Accommodation,Corporate Travel Management (North) Ltd,98315368,155.00,CIMG - External Relations
BEIS,UKRI - BBSRC,19/10/2018,CIMG - External Relations,T&S UK - Accommodation,Corporate Travel Management (North) Ltd,98315368,1.00,CIMG - External Relations
BEIS,UKRI - BBSRC,19/10/2018,CIMG - External Relations,T&S UK - Accommodation,Corporate Travel Management (North) Ltd,98315368,137.00,CIMG - External Relations
BEIS,UKRI - BBSRC,19/10/2018,CIMG - External Relations,T&S UK - Accommodation,Corporate Travel Management (North) Ltd,98315368,0.50,CIMG - External Relations
BEIS,UKRI - BBSRC,19/10/2018,CIMG - External Relations,T&S UK - Accommodation,Corporate Travel Management (North) Ltd,98315368,0.40,CIMG - External Relations
BEIS,UKRI - BBSRC,19/10/2018,CIMG - Programme Office,T&S UK - Accommodation,Corporate Travel Management (North) Ltd,98315368,0.50,CIMG - Programme Office
BEIS,UKRI - BBSRC,19/10/2018,CIMG - Programme Office,T&S UK - Accommodation,Corporate Travel Management (North) Ltd,98315368,70.00,CIMG - Programme Office
BEIS,UKRI - BBSRC,19/10/2018,CIMG - Programme Office,T&S UK - Accommodation,Corporate Travel Management (North) Ltd,98315368,0.10,CIMG - Programme Office
BEIS,UKRI - BBSRC,19/10/2018,FG - Director,T&S UK - Accommodation,Corporate Travel Management (North) Ltd,98315368,0.50,FG - Director
BEIS,UKRI - BBSRC,19/10/2018,FG - Director,T&S UK - Accommodation,Corporate Travel Management (North) Ltd,98315368,175.00,FG - Director
BEIS,UKRI - BBSRC,19/10/2018,FG - Director,T&S UK - Accommodation,Corporate Travel Management (North) Ltd,98315368,0.50,FG - Director
BEIS,UKRI - BBSRC,19/10/2018,FG - Director,T&S UK - Accommodation,Corporate Travel Management (North) Ltd,98315368,238.00,FG - Director
BEIS,UKRI - BBSRC,19/10/2018,FG - Director,T&S UK - Accommodation,Corporate Travel Management (North) Ltd,98315368,0.20,FG - Director
BEIS,UKRI - BBSRC,19/10/2018,FG - Estates,T&S UK - Accommodation,Corporate Travel Management (North) Ltd,98315368,0.50,FG - Estates
BEIS,UKRI - BBSRC,19/10/2018,FG - Estates,T&S UK - Accommodation,Corporate Travel Management (North) Ltd,98315368,130.00,FG - Estates
BEIS,UKRI - BBSRC,19/10/2018,FG - Estates,T&S UK - Accommodation,Corporate Travel Management (North) Ltd,98315368,0.50,FG - Estates
BEIS,UKRI - BBSRC,19/10/2018,FG - Estates,T&S UK - Accommodation,Corporate Travel Management (North) Ltd,98315368,94.94,FG - Estates
BEIS,UKRI - BBSRC,19/10/2018,FG - Estates,T&S UK - Accommodation,Corporate Travel Management (North) Ltd,98315368,-73.50,FG - Estates
BEIS,UKRI - BBSRC,19/10/2018,FG - Estates,T&S UK - Accommodation,Corporate Travel Management (North) Ltd,98315368,0.50,FG - Estates
BEIS,UKRI - BBSRC,19/10/2018,FG - Estates,T&S UK - Accommodation,Corporate Travel Management (North) Ltd,98315368,73.50,FG - Estates
BEIS,UKRI - BBSRC,19/10/2018,FG - Estates,T&S UK - Accommodation,Corporate Travel Management (North) Ltd,98315368,0.20,FG - Estates
BEIS,UKRI - BBSRC,19/10/2018,FG - Estates,T&S UK - Accommodation,Corporate Travel Management (North) Ltd,98315368,0.10,FG - Estates
BEIS,UKRI - BBSRC,19/10/2018,FG - RCUK Assurance,T&S UK - Accommodation,Corporate Travel Management (North) Ltd,98315368,1.00,FG - RCUK Assurance
BEIS,UKRI - BBSRC,19/10/2018,FG - RCUK Assurance,T&S UK - Accommodation,Corporate Travel Management (North) Ltd,98315368,356.00,FG - RCUK Assurance
BEIS,UKRI - BBSRC,19/10/2018,FG - RCUK Assurance,T&S UK - Accommodation,Corporate Travel Management (North) Ltd,98315368,1.50,FG - RCUK Assurance
BEIS,UKRI - BBSRC,19/10/2018,FG - RCUK Assurance,T&S UK - Accommodation,Corporate Travel Management (North) Ltd,98315368,714.00,FG - RCUK Assurance
BEIS,UKRI - BBSRC,19/10/2018,FG - RCUK Assurance,T&S UK - Accommodation,Corporate Travel Management (North) Ltd,98315368,0.50,FG - RCUK Assurance
BEIS,UKRI - BBSRC,19/10/2018,Innovation and Skills Group,T&S UK - Accommodation,Corporate Travel Management (North) Ltd,98315368,0.50,Innovation and Skills Group
BEIS,UKRI - BBSRC,19/10/2018,Innovation and Skills Group,T&S UK - Accommodation,Corporate Travel Management (North) Ltd,98315368,286.20,Innovation and Skills Group
BEIS,UKRI - BBSRC,19/10/2018,Innovation and Skills Group,T&S UK - Accommodation,Corporate Travel Management (North) Ltd,98315368,0.50,Innovation and Skills Group
BEIS,UKRI - BBSRC,19/10/2018,Innovation and Skills Group,T&S UK - Accommodation,Corporate Travel Management (North) Ltd,98315368,0.50,Innovation and Skills Group
BEIS,UKRI - BBSRC,19/10/2018,Innovation and Skills Group,T&S UK - Accommodation,Corporate Travel Management (North) Ltd,98315368,95.00,Innovation and Skills Group
BEIS,UKRI - BBSRC,19/10/2018,Innovation and Skills Group,T&S UK - Accommodation,Corporate Travel Management (North) Ltd,98315368,86.25,Innovation and Skills Group
BEIS,UKRI - BBSRC,19/10/2018,Innovation and Skills Group,T&S UK - Accommodation,Corporate Travel Management (North) Ltd,98315368,0.50,Innovation and Skills Group
BEIS,UKRI - BBSRC,19/10/2018,Innovation and Skills Group,T&S UK - Accommodation,Corporate Travel Management (North) Ltd,98315368,0.50,Innovation and Skills Group
BEIS,UKRI - BBSRC,19/10/2018,Innovation and Skills Group,T&S UK - Accommodation,Corporate Travel Management (North) Ltd,98315368,80.75,Innovation and Skills Group
BEIS,UKRI - BBSRC,19/10/2018,Innovation and Skills Group,T&S UK - Accommodation,Corporate Travel Management (North) Ltd,98315368,0.50,Innovation and Skills Group
BEIS,UKRI - BBSRC,19/10/2018,Innovation and Skills Group,T&S UK - Accommodation,Corporate Travel Management (North) Ltd,98315368,73.50,Innovation and Skills Group
BEIS,UKRI - BBSRC,19/10/2018,Innovation and Skills Group,T&S UK - Accommodation,Corporate Travel Management (North) Ltd,98315368,0.50,Innovation and Skills Group
BEIS,UKRI - BBSRC,19/10/2018,Innovation and Skills Group,T&S UK - Accommodation,Corporate Travel Management (North) Ltd,98315368,0.50,Innovation and Skills Group
BEIS,UKRI - BBSRC,19/10/2018,Innovation and Skills Group,T&S UK - Accommodation,Corporate Travel Management (North) Ltd,98315368,378.00,Innovation and Skills Group
BEIS,UKRI - BBSRC,19/10/2018,Innovation and Skills Group,T&S UK - Accommodation,Corporate Travel Management (North) Ltd,98315368,0.80,Innovation and Skills Group
BEIS,UKRI - BBSRC,19/10/2018,Innovation and Skills Group CDSU,T&S UK - Accommodation,Corporate Travel Management (North) Ltd,98315368,0.50,Innovation and Skills Group CDSU
BEIS,UKRI - BBSRC,19/10/2018,Innovation and Skills Group CDSU,T&S UK - Accommodation,Corporate Travel Management (North) Ltd,98315368,81.70,Innovation and Skills Group CDSU
BEIS,UKRI - BBSRC,19/10/2018,Innovation and Skills Group CDSU,T&S UK - Accommodation,Corporate Travel Management (North) Ltd,98315368,0.10,Innovation and Skills Group CDSU
BEIS,UKRI - BBSRC,19/10/2018,PDG - Director,T&S UK - Accommodation,Corporate Travel Management (North) Ltd,98315368,0.50,PDG - Director
BEIS,UKRI - BBSRC,19/10/2018,PDG - Director,T&S UK - Accommodation,Corporate Travel Management (North) Ltd,98315368,0.10,PDG - Director
BEIS,UKRI - BBSRC,19/10/2018,RISD - UKRO,T&S UK - Accommodation,Corporate Travel Management (North) Ltd,98315368,0.50,RISD - UKRO
BEIS,UKRI - BBSRC,19/10/2018,RISD - UKRO,T&S UK - Accommodation,Corporate Travel Management (North) Ltd,98315368,154.50,RISD - UKRO
BEIS,UKRI - BBSRC,19/10/2018,RISD - UKRO,T&S UK - Accommodation,Corporate Travel Management (North) Ltd,98315368,0.50,RISD - UKRO
BEIS,UKRI - BBSRC,19/10/2018,RISD - UKRO,T&S UK - Accommodation,Corporate Travel Management (North) Ltd,98315368,99.00,RISD - UKRO
BEIS,UKRI - BBSRC,19/10/2018,RISD - UKRO,T&S UK - Accommodation,Corporate Travel Management (North) Ltd,98315368,0.50,RISD - UKRO
BEIS,UKRI - BBSRC,19/10/2018,RISD - UKRO,T&S UK - Accommodation,Corporate Travel Management (North) Ltd,98315368,0.50,RISD - UKRO
BEIS,UKRI - BBSRC,19/10/2018,RISD - UKRO,T&S UK - Accommodation,Corporate Travel Management (North) Ltd,98315368,158.34,RISD - UKRO
BEIS,UKRI - BBSRC,19/10/2018,RISD - UKRO,T&S UK - Accommodation,Corporate Travel Management (North) Ltd,98315368,75.00,RISD - UKRO
BEIS,UKRI - BBSRC,19/10/2018,RISD - UKRO,T&S UK - Accommodation,Corporate Travel Management (North) Ltd,98315368,0.50,RISD - UKRO
BEIS,UKRI - BBSRC,19/10/2018,RISD - UKRO,T&S UK - Accommodation,Corporate Travel Management (North) Ltd,98315368,0.50,RISD - UKRO
BEIS,UKRI - BBSRC,19/10/2018,RISD - UKRO,T&S UK - Accommodation,Corporate Travel Management (North) Ltd,98315368,75.00,RISD - UKRO
BEIS,UKRI - BBSRC,19/10/2018,RISD - UKRO,T&S UK - Accommodation,Corporate Travel Management (North) Ltd,98315368,0.50,RISD - UKRO
BEIS,UKRI - BBSRC,19/10/2018,RISD - UKRO,T&S UK - Accommodation,Corporate Travel Management (North) Ltd,98315368,166.00,RISD - UKRO
BEIS,UKRI - BBSRC,19/10/2018,RISD - UKRO,T&S UK - Accommodation,Corporate Travel Management (North) Ltd,98315368,0.50,RISD - UKRO
BEIS,UKRI - BBSRC,19/10/2018,RISD - UKRO,T&S UK - Accommodation,Corporate Travel Management (North) Ltd,98315368,151.62,RISD - UKRO
BEIS,UKRI - BBSRC,19/10/2018,RISD - UKRO,T&S UK - Accommodation,Corporate Travel Management (North) Ltd,98315368,0.50,RISD - UKRO
BEIS,UKRI - BBSRC,19/10/2018,RISD - UKRO,T&S UK - Accommodation,Corporate Travel Management (North) Ltd,98315368,0.50,RISD - UKRO
BEIS,UKRI - BBSRC,19/10/2018,RISD - UKRO,T&S UK - Accommodation,Corporate Travel Management (North) Ltd,98315368,0.50,RISD - UKRO
BEIS,UKRI - BBSRC,19/10/2018,RISD - UKRO,T&S UK - Accommodation,Corporate Travel Management (North) Ltd,98315368,0.50,RISD - UKRO
BEIS,UKRI - BBSRC,19/10/2018,RISD - UKRO,T&S UK - Accommodation,Corporate Travel Management (North) Ltd,98315368,1.44,RISD - UKRO
BEIS,UKRI - BBSRC,19/10/2018,RISD - UKRO,T&S UK - Accommodation,Corporate Travel Management (North) Ltd,98315368,69.00,RISD - UKRO
BEIS,UKRI - BBSRC,19/10/2018,RISD - UKRO,T&S UK - Accommodation,Corporate Travel Management (North) Ltd,98315368,105.00,RISD - UKRO
BEIS,UKRI - BBSRC,19/10/2018,RISD - UKRO,T&S UK - Accommodation,Corporate Travel Management (North) Ltd,98315368,70.00,RISD - UKRO
BEIS,UKRI - BBSRC,19/10/2018,RISD - UKRO,T&S UK - Accommodation,Corporate Travel Management (North) Ltd,98315368,99.10,RISD - UKRO
BEIS,UKRI - BBSRC,19/10/2018,RISD - UKRO,T&S UK - Accommodation,Corporate Travel Management (North) Ltd,98315368,0.50,RISD - UKRO
BEIS,UKRI - BBSRC,19/10/2018,RISD - UKRO,T&S UK - Accommodation,Corporate Travel Management (North) Ltd,98315368,1.49,RISD - UKRO
BEIS,UKRI - BBSRC,19/10/2018,RISD - UKRO,T&S UK - Accommodation,Corporate Travel Management (North) Ltd,98315368,0.10,RISD - UKRO
BEIS,UKRI - BBSRC,19/10/2018,Science Group,T&S UK - Accommodation,Corporate Travel Management (North) Ltd,98315368,0.50,Science Group
BEIS,UKRI - BBSRC,19/10/2018,Science Group,T&S UK - Accommodation,Corporate Travel Management (North) Ltd,98315368,0.50,Science Group
BEIS,UKRI - BBSRC,19/10/2018,Science Group,T&S UK - Accommodation,Corporate Travel Management (North) Ltd,98315368,286.20,Science Group
BEIS,UKRI - BBSRC,19/10/2018,Science Group,T&S UK - Accommodation,Corporate Travel Management (North) Ltd,98315368,96.00,Science Group
BEIS,UKRI - BBSRC,19/10/2018,Science Group,T&S UK - Accommodation,Corporate Travel Management (North) Ltd,98315368,0.50,Science Group
BEIS,UKRI - BBSRC,19/10/2018,Science Group,T&S UK - Accommodation,Corporate Travel Management (North) Ltd,98315368,84.50,Science Group
BEIS,UKRI - BBSRC,19/10/2018,Science Group,T&S UK - Accommodation,Corporate Travel Management (North) Ltd,98315368,0.50,Science Group
BEIS,UKRI - BBSRC,19/10/2018,Science Group,T&S UK - Accommodation,Corporate Travel Management (North) Ltd,98315368,178.00,Science Group
BEIS,UKRI - BBSRC,19/10/2018,Science Group,T&S UK - Accommodation,Corporate Travel Management (North) Ltd,98315368,1.00,Science Group
BEIS,UKRI - BBSRC,19/10/2018,Science Group,T&S UK - Accommodation,Corporate Travel Management (North) Ltd,98315368,165.00,Science Group
BEIS,UKRI - BBSRC,19/10/2018,Science Group,T&S UK - Accommodation,Corporate Travel Management (North) Ltd,98315368,93.50,Science Group
BEIS,UKRI - BBSRC,19/10/2018,Science Group,T&S UK - Accommodation,Corporate Travel Management (North) Ltd,98315368,0.50,Science Group
BEIS,UKRI - BBSRC,19/10/2018,Science Group,T&S UK - Accommodation,Corporate Travel Management (North) Ltd,98315368,43.50,Science Group
BEIS,UKRI - BBSRC,19/10/2018,Science Group,T&S UK - Accommodation,Corporate Travel Management (North) Ltd,98315368,0.50,Science Group
BEIS,UKRI - BBSRC,19/10/2018,Science Group,T&S UK - Accommodation,Corporate Travel Management (North) Ltd,98315368,196.74,Science Group
BEIS,UKRI - BBSRC,19/10/2018,Science Group,T&S UK - Accommodation,Corporate Travel Management (North) Ltd,98315368,-84.50,Science Group
BEIS,UKRI - BBSRC,19/10/2018,Science Group,T&S UK - Accommodation,Corporate Travel Management (North) Ltd,98315368,0.10,Science Group
BEIS,UKRI - BBSRC,19/10/2018,Science Group,T&S UK - Accommodation,Corporate Travel Management (North) Ltd,98315368,0.10,Science Group
BEIS,UKRI - BBSRC,19/10/2018,Science Group,T&S UK - Accommodation,Corporate Travel Management (North) Ltd,98315368,0.20,Science Group
BEIS,UKRI - BBSRC,19/10/2018,Science Group,T&S UK - Accommodation,Corporate Travel Management (North) Ltd,98315368,0.40,Science Group
BEIS,UKRI - BBSRC,19/10/2018,CE - CPS,T&S UK - Flights,Corporate Travel Management (North) Ltd,98315368,136.11,CE - CPS
BEIS,UKRI - BBSRC,19/10/2018,CIMG - Director,T&S UK - Flights,Corporate Travel Management (North) Ltd,98315368,128.03,CIMG - Director
BEIS,UKRI - BBSRC,19/10/2018,FG - Estates,T&S UK - Flights,Corporate Travel Management (North) Ltd,98315368,62.38,FG - Estates
BEIS,UKRI - BBSRC,19/10/2018,FG - RCUK Assurance,T&S UK - Flights,Corporate Travel Management (North) Ltd,98315368,109.57,FG - RCUK Assurance
BEIS,UKRI - BBSRC,19/10/2018,FG - RCUK Assurance,T&S UK - Flights,Corporate Travel Management (North) Ltd,98315368,255.66,FG - RCUK Assurance
BEIS,UKRI - BBSRC,19/10/2018,Grants Finance Management Team,T&S UK - Flights,Corporate Travel Management (North) Ltd,98315368,127.83,Grants Finance Management Team
BEIS,UKRI - BBSRC,19/10/2018,Innovation and Skills Group,T&S UK - Flights,Corporate Travel Management (North) Ltd,98315368,2.16,Innovation and Skills Group
BEIS,UKRI - BBSRC,19/10/2018,Innovation and Skills Group,T&S UK - Flights,Corporate Travel Management (North) Ltd,98315368,202.00,Innovation and Skills Group
BEIS,UKRI - BBSRC,19/10/2018,Innovation and Skills Group,T&S UK - Flights,Corporate Travel Management (North) Ltd,98315368,243.82,Innovation and Skills Group
BEIS,UKRI - BBSRC,19/10/2018,Innovation and Skills Group,T&S UK - Flights,Corporate Travel Management (North) Ltd,98315368,259.24,Innovation and Skills Group
BEIS,UKRI - BBSRC,19/10/2018,Science Group,T&S UK - Flights,Corporate Travel Management (North) Ltd,98315368,78.54,Science Group
BEIS,UKRI - BBSRC,19/10/2018,Science Group,T&S UK - Flights,Corporate Travel Management (North) Ltd,98315368,76.52,Science Group
BEIS,UKRI - BBSRC,19/10/2018,Science Group,T&S UK - Flights,Corporate Travel Management (North) Ltd,98315368,112.80,Science Group
BEIS,UKRI - BBSRC,19/10/2018,Science Group,T&S UK - Flights,Corporate Travel Management (North) Ltd,98315368,179.54,Science Group
BEIS,UKRI - BBSRC,19/10/2018,CE - CPS,T&S UK - Other Charges,Corporate Travel Management (North) Ltd,98315368,6.75,CE - CPS
BEIS,UKRI - BBSRC,19/10/2018,CE - CPS,T&S UK - Other Charges,Corporate Travel Management (North) Ltd,98315368,54.78,CE - CPS
BEIS,UKRI - BBSRC,19/10/2018,CE - CPS,T&S UK - Other Charges,Corporate Travel Management (North) Ltd,98315368,1.35,CE - CPS
BEIS,UKRI - BBSRC,19/10/2018,CE - IRU,T&S UK - Other Charges,Corporate Travel Management (North) Ltd,98315368,6.75,CE - IRU
BEIS,UKRI - BBSRC,19/10/2018,CE - IRU,T&S UK - Other Charges,Corporate Travel Management (North) Ltd,98315368,193.45,CE - IRU
BEIS,UKRI - BBSRC,19/10/2018,CE - IRU,T&S UK - Other Charges,Corporate Travel Management (North) Ltd,98315368,85.00,CE - IRU
BEIS,UKRI - BBSRC,19/10/2018,CE - IRU,T&S UK - Other Charges,Corporate Travel Management (North) Ltd,98315368,40.04,CE - IRU
BEIS,UKRI - BBSRC,19/10/2018,CE - CPS,T&S UK - Public Transport,Corporate Travel Management (North) Ltd,98315368,100.70,CE - CPS
BEIS,UKRI - BBSRC,19/10/2018,CE - CPS,T&S UK - Public Transport,Corporate Travel Management (North) Ltd,98315368,133.60,CE - CPS
BEIS,UKRI - BBSRC,19/10/2018,CE - CPS,T&S UK - Public Transport,Corporate Travel Management (North) Ltd,98315368,67.90,CE - CPS
BEIS,UKRI - BBSRC,19/10/2018,CE - CPS,T&S UK - Public Transport,Corporate Travel Management (North) Ltd,98315368,-7.70,CE - CPS
BEIS,UKRI - BBSRC,19/10/2018,CE - CPS,T&S UK - Public Transport,Corporate Travel Management (North) Ltd,98315368,67.90,CE - CPS
BEIS,UKRI - BBSRC,19/10/2018,CE - CPS,T&S UK - Public Transport,Corporate Travel Management (North) Ltd,98315368,11.60,CE - CPS
BEIS,UKRI - BBSRC,19/10/2018,CE - CPS,T&S UK - Public Transport,Corporate Travel Management (North) Ltd,98315368,201.40,CE - CPS
BEIS,UKRI - BBSRC,19/10/2018,CE - CPS,T&S UK - Public Transport,Corporate Travel Management (North) Ltd,98315368,100.70,CE - CPS
BEIS,UKRI - BBSRC,19/10/2018,CE - CPS,T&S UK - Public Transport,Corporate Travel Management (North) Ltd,98315368,17.70,CE - CPS
BEIS,UKRI - BBSRC,19/10/2018,CE - CPS,T&S UK - Public Transport,Corporate Travel Management (North) Ltd,98315368,11.50,CE - CPS
BEIS,UKRI - BBSRC,19/10/2018,CE - CPS,T&S UK - Public Transport,Corporate Travel Management (North) Ltd,98315368,29.20,CE - CPS
BEIS,UKRI - BBSRC,19/10/2018,CE - CPS,T&S UK - Public Transport,Corporate Travel Management (North) Ltd,98315368,69.20,CE - CPS
BEIS,UKRI - BBSRC,19/10/2018,CE - Chief Executive,T&S UK - Public Transport,Corporate Travel Management (North) Ltd,98315368,92.50,CE - Chief Executive
BEIS,UKRI - BBSRC,19/10/2018,CE - Chief Executive,T&S UK - Public Transport,Corporate Travel Management (North) Ltd,98315368,13.40,CE - Chief Executive
BEIS,UKRI - BBSRC,19/10/2018,CE - Chief Executive,T&S UK - Public Transport,Corporate Travel Management (North) Ltd,98315368,73.00,CE - Chief Executive
BEIS,UKRI - BBSRC,19/10/2018,CE - Chief Executive,T&S UK - Public Transport,Corporate Travel Management (North) Ltd,98315368,161.00,CE - Chief Executive
BEIS,UKRI - BBSRC,19/10/2018,CE - Chief Executive,T&S UK - Public Transport,Corporate Travel Management (North) Ltd,98315368,172.00,CE - Chief Executive
BEIS,UKRI - BBSRC,19/10/2018,CE - Chief Executive,T&S UK - Public Transport,Corporate Travel Management (North) Ltd,98315368,13.40,CE - Chief Executive
BEIS,UKRI - BBSRC,19/10/2018,CE - Chief Executive,T&S UK - Public Transport,Corporate Travel Management (North) Ltd,98315368,162.00,CE - Chief Executive
BEIS,UKRI - BBSRC,19/10/2018,CE - Chief Executive,T&S UK - Public Transport,Corporate Travel Management (North) Ltd,98315368,172.00,CE - Chief Executive
BEIS,UKRI - BBSRC,19/10/2018,CE - Chief Executive,T&S UK - Public Transport,Corporate Travel Management (North) Ltd,98315368,139.60,CE - Chief Executive
BEIS,UKRI - BBSRC,19/10/2018,CE - Chief Executive,T&S UK - Public Transport,Corporate Travel Management (North) Ltd,98315368,86.00,CE - Chief Executive
BEIS,UKRI - BBSRC,19/10/2018,CE - Chief Executive,T&S UK - Public Transport,Corporate Travel Management (North) Ltd,98315368,86.00,CE - Chief Executive
BEIS,UKRI - BBSRC,19/10/2018,CE - Chief Executive,T&S UK - Public Transport,Corporate Travel Management (North) Ltd,98315368,178.00,CE - Chief Executive
BEIS,UKRI - BBSRC,19/10/2018,CE - Chief Executive,T&S UK - Public Transport,Corporate Travel Management (North) Ltd,98315368,-173.00,CE - Chief Executive
BEIS,UKRI - BBSRC,19/10/2018,CE - IRU,T&S UK - Public Transport,Corporate Travel Management (North) Ltd,98315368,133.60,CE - IRU
BEIS,UKRI - BBSRC,19/10/2018,CE - IRU,T&S UK - Public Transport,Corporate Travel Management (North) Ltd,98315368,52.90,CE - IRU
BEIS,UKRI - BBSRC,19/10/2018,CE - IRU,T&S UK - Public Transport,Corporate Travel Management (North) Ltd,98315368,198.80,CE - IRU
BEIS,UKRI - BBSRC,19/10/2018,CE - IRU,T&S UK - Public Transport,Corporate Travel Management (North) Ltd,98315368,139.60,CE - IRU
BEIS,UKRI - BBSRC,19/10/2018,CE - IRU,T&S UK - Public Transport,Corporate Travel Management (North) Ltd,98315368,139.60,CE - IRU
BEIS,UKRI - BBSRC,19/10/2018,CE - IRU,T&S UK - Public Transport,Corporate Travel Management (North) Ltd,98315368,-19.90,CE - IRU
BEIS,UKRI - BBSRC,19/10/2018,CE - IRU,T&S UK - Public Transport,Corporate Travel Management (North) Ltd,98315368,14.40,CE - IRU
BEIS,UKRI - BBSRC,19/10/2018,CE - IRU,T&S UK - Public Transport,Corporate Travel Management (North) Ltd,98315368,25.95,CE - IRU
BEIS,UKRI - BBSRC,19/10/2018,CE - IRU,T&S UK - Public Transport,Corporate Travel Management (North) Ltd,98315368,52.90,CE - IRU
BEIS,UKRI - BBSRC,19/10/2018,CE - IRU,T&S UK - Public Transport,Corporate Travel Management (North) Ltd,98315368,30.90,CE - IRU
BEIS,UKRI - BBSRC,19/10/2018,CE - IRU,T&S UK - Public Transport,Corporate Travel Management (North) Ltd,98315368,69.80,CE - IRU
BEIS,UKRI - BBSRC,19/10/2018,CE - IRU,T&S UK - Public Transport,Corporate Travel Management (North) Ltd,98315368,27.90,CE - IRU
BEIS,UKRI - BBSRC,19/10/2018,CE - IRU,T&S UK - Public Transport,Corporate Travel Management (North) Ltd,98315368,66.80,CE - IRU
BEIS,UKRI - BBSRC,19/10/2018,CE - IRU,T&S UK - Public Transport,Corporate Travel Management (North) Ltd,98315368,66.80,CE - IRU
BEIS,UKRI - BBSRC,19/10/2018,CE - IRU,T&S UK - Public Transport,Corporate Travel Management (North) Ltd,98315368,27.00,CE - IRU
BEIS,UKRI - BBSRC,19/10/2018,CE - IRU,T&S UK - Public Transport,Corporate Travel Management (North) Ltd,98315368,69.80,CE - IRU
BEIS,UKRI - BBSRC,19/10/2018,CE - IRU,T&S UK - Public Transport,Corporate Travel Management (North) Ltd,98315368,69.80,CE - IRU
BEIS,UKRI - BBSRC,19/10/2018,CE - IRU,T&S UK - Public Transport,Corporate Travel Management (North) Ltd,98315368,139.60,CE - IRU
BEIS,UKRI - BBSRC,19/10/2018,CE - IRU,T&S UK - Public Transport,Corporate Travel Management (North) Ltd,98315368,201.40,CE - IRU
BEIS,UKRI - BBSRC,19/10/2018,CE - IRU,T&S UK - Public Transport,Corporate Travel Management (North) Ltd,98315368,75.80,CE - IRU
BEIS,UKRI - BBSRC,19/10/2018,CIMG - Council Secretariat,T&S UK - Public Transport,Corporate Travel Management (North) Ltd,98315368,100.70,CIMG - Council Secretariat
BEIS,UKRI - BBSRC,19/10/2018,CIMG - Council Secretariat,T&S UK - Public Transport,Corporate Travel Management (North) Ltd,98315368,100.70,CIMG - Council Secretariat
BEIS,UKRI - BBSRC,19/10/2018,CIMG - Director,T&S UK - Public Transport,Corporate Travel Management (North) Ltd,98315368,41.20,CIMG - Director
BEIS,UKRI - BBSRC,19/10/2018,CIMG - Director,T&S UK - Public Transport,Corporate Travel Management (North) Ltd,98315368,69.80,CIMG - Director
BEIS,UKRI - BBSRC,19/10/2018,CIMG - External Relations,T&S UK - Public Transport,Corporate Travel Management (North) Ltd,98315368,67.90,CIMG - External Relations
BEIS,UKRI - BBSRC,19/10/2018,CIMG - External Relations,T&S UK - Public Transport,Corporate Travel Management (North) Ltd,98315368,16.90,CIMG - External Relations
BEIS,UKRI - BBSRC,19/10/2018,CIMG - External Relations,T&S UK - Public Transport,Corporate Travel Management (North) Ltd,98315368,16.90,CIMG - External Relations
BEIS,UKRI - BBSRC,19/10/2018,CIMG - External Relations,T&S UK - Public Transport,Corporate Travel Management (North) Ltd,98315368,66.80,CIMG - External Relations
BEIS,UKRI - BBSRC,19/10/2018,CIMG - External Relations,T&S UK - Public Transport,Corporate Travel Management (North) Ltd,98315368,30.90,CIMG - External Relations
BEIS,UKRI - BBSRC,19/10/2018,CIMG - External Relations,T&S UK - Public Transport,Corporate Travel Management (North) Ltd,98315368,100.70,CIMG - External Relations
BEIS,UKRI - BBSRC,19/10/2018,CIMG - External Relations,T&S UK - Public Transport,Corporate Travel Management (North) Ltd,98315368,21.90,CIMG - External Relations
BEIS,UKRI - BBSRC,19/10/2018,CIMG - External Relations,T&S UK - Public Transport,Corporate Travel Management (North) Ltd,98315368,12.70,CIMG - External Relations
BEIS,UKRI - BBSRC,19/10/2018,CIMG - Information Management,T&S UK - Public Transport,Corporate Travel Management (North) Ltd,98315368,57.50,CIMG - Information Management
BEIS,UKRI - BBSRC,19/10/2018,CIMG - Information Systems,T&S UK - Public Transport,Corporate Travel Management (North) Ltd,98315368,111.00,CIMG - Information Systems
BEIS,UKRI - BBSRC,19/10/2018,CIMG - Information Systems,T&S UK - Public Transport,Corporate Travel Management (North) Ltd,98315368,105.80,CIMG - Information Systems
BEIS,UKRI - BBSRC,19/10/2018,CIMG - Programme Office,T&S UK - Public Transport,Corporate Travel Management (North) Ltd,98315368,-101.00,CIMG - Programme Office
BEIS,UKRI - BBSRC,19/10/2018,CIMG - Programme Office,T&S UK - Public Transport,Corporate Travel Management (North) Ltd,98315368,73.25,CIMG - Programme Office
BEIS,UKRI - BBSRC,19/10/2018,CIMG - Programme Office,T&S UK - Public Transport,Corporate Travel Management (North) Ltd,98315368,65.20,CIMG - Programme Office
BEIS,UKRI - BBSRC,19/10/2018,CIMG - Programme Office,T&S UK - Public Transport,Corporate Travel Management (North) Ltd,98315368,12.70,CIMG - Programme Office
BEIS,UKRI - BBSRC,19/10/2018,CIMG - Programme Office,T&S UK - Public Transport,Corporate Travel Management (North) Ltd,98315368,94.70,CIMG - Programme Office
BEIS,UKRI - BBSRC,19/10/2018,CIMG - Programme Office,T&S UK - Public Transport,Corporate Travel Management (North) Ltd,98315368,12.70,CIMG - Programme Office
BEIS,UKRI - BBSRC,19/10/2018,CIMG - Programme Office,T&S UK - Public Transport,Corporate Travel Management (North) Ltd,98315368,25.40,CIMG - Programme Office
BEIS,UKRI - BBSRC,19/10/2018,CIMG - Programme Office,T&S UK - Public Transport,Corporate Travel Management (North) Ltd,98315368,12.70,CIMG - Programme Office
BEIS,UKRI - BBSRC,19/10/2018,CIMG - Programme Office,T&S UK - Public Transport,Corporate Travel Management (North) Ltd,98315368,65.20,CIMG - Programme Office
BEIS,UKRI - BBSRC,19/10/2018,CIMG - Programme Office,T&S UK - Public Transport,Corporate Travel Management (North) Ltd,98315368,12.70,CIMG - Programme Office
BEIS,UKRI - BBSRC,19/10/2018,European Initiatives,T&S UK - Public Transport,Corporate Travel Management (North) Ltd,98315368,111.00,European Initiatives
BEIS,UKRI - BBSRC,19/10/2018,European Initiatives,T&S UK - Public Transport,Corporate Travel Management (North) Ltd,98315368,111.00,European Initiatives
BEIS,UKRI - BBSRC,19/10/2018,European Initiatives,T&S UK - Public Transport,Corporate Travel Management (North) Ltd,98315368,111.00,European Initiatives
BEIS,UKRI - BBSRC,19/10/2018,FG - Accounts & Business Planning,T&S UK - Public Transport,Corporate Travel Management (North) Ltd,98315368,50.40,FG - Accounts & Business Planning
BEIS,UKRI - BBSRC,19/10/2018,FG - Director,T&S UK - Public Transport,Corporate Travel Management (North) Ltd,98315368,-181.60,FG - Director
BEIS,UKRI - BBSRC,19/10/2018,FG - Director,T&S UK - Public Transport,Corporate Travel Management (North) Ltd,98315368,255.45,FG - Director
BEIS,UKRI - BBSRC,19/10/2018,FG - Director,T&S UK - Public Transport,Corporate Travel Management (North) Ltd,98315368,-166.60,FG - Director
BEIS,UKRI - BBSRC,19/10/2018,FG - Estates,T&S UK - Public Transport,Corporate Travel Management (North) Ltd,98315368,95.50,FG - Estates
BEIS,UKRI - BBSRC,19/10/2018,FG - Estates,T&S UK - Public Transport,Corporate Travel Management (North) Ltd,98315368,44.00,FG - Estates
BEIS,UKRI - BBSRC,19/10/2018,FG - Estates,T&S UK - Public Transport,Corporate Travel Management (North) Ltd,98315368,37.50,FG - Estates
BEIS,UKRI - BBSRC,19/10/2018,FG - Estates,T&S UK - Public Transport,Corporate Travel Management (North) Ltd,98315368,26.50,FG - Estates
BEIS,UKRI - BBSRC,19/10/2018,FG - Estates,T&S UK - Public Transport,Corporate Travel Management (North) Ltd,98315368,27.80,FG - Estates
BEIS,UKRI - BBSRC,19/10/2018,FG - Estates,T&S UK - Public Transport,Corporate Travel Management (North) Ltd,98315368,85.80,FG - Estates
BEIS,UKRI - BBSRC,19/10/2018,FG - Estates,T&S UK - Public Transport,Corporate Travel Management (North) Ltd,98315368,46.40,FG - Estates
BEIS,UKRI - BBSRC,19/10/2018,FG - Estates,T&S UK - Public Transport,Corporate Travel Management (North) Ltd,98315368,46.40,FG - Estates
BEIS,UKRI - BBSRC,19/10/2018,FG - Estates,T&S UK - Public Transport,Corporate Travel Management (North) Ltd,98315368,46.40,FG - Estates
BEIS,UKRI - BBSRC,19/10/2018,FG - Estates,T&S UK - Public Transport,Corporate Travel Management (North) Ltd,98315368,-213.10,FG - Estates
BEIS,UKRI - BBSRC,19/10/2018,FG - RCUK Assurance,T&S UK - Public Transport,Corporate Travel Management (North) Ltd,98315368,110.80,FG - RCUK Assurance
BEIS,UKRI - BBSRC,19/10/2018,FG - RCUK Assurance,T&S UK - Public Transport,Corporate Travel Management (North) Ltd,98315368,139.60,FG - RCUK Assurance
BEIS,UKRI - BBSRC,19/10/2018,Innovation and Skills Group,T&S UK - Public Transport,Corporate Travel Management (North) Ltd,98315368,46.40,Innovation and Skills Group
BEIS,UKRI - BBSRC,19/10/2018,Innovation and Skills Group,T&S UK - Public Transport,Corporate Travel Management (North) Ltd,98315368,49.50,Innovation and Skills Group
BEIS,UKRI - BBSRC,19/10/2018,Innovation and Skills Group,T&S UK - Public Transport,Corporate Travel Management (North) Ltd,98315368,53.70,Innovation and Skills Group
BEIS,UKRI - BBSRC,19/10/2018,Innovation and Skills Group,T&S UK - Public Transport,Corporate Travel Management (North) Ltd,98315368,53.70,Innovation and Skills Group
BEIS,UKRI - BBSRC,19/10/2018,Innovation and Skills Group,T&S UK - Public Transport,Corporate Travel Management (North) Ltd,98315368,53.70,Innovation and Skills Group
BEIS,UKRI - BBSRC,19/10/2018,Innovation and Skills Group,T&S UK - Public Transport,Corporate Travel Management (North) Ltd,98315368,140.30,Innovation and Skills Group
BEIS,UKRI - BBSRC,19/10/2018,Innovation and Skills Group,T&S UK - Public Transport,Corporate Travel Management (North) Ltd,98315368,139.60,Innovation and Skills Group
BEIS,UKRI - BBSRC,19/10/2018,Innovation and Skills Group,T&S UK - Public Transport,Corporate Travel Management (North) Ltd,98315368,203.50,Innovation and Skills Group
BEIS,UKRI - BBSRC,19/10/2018,Innovation and Skills Group,T&S UK - Public Transport,Corporate Travel Management (North) Ltd,98315368,140.30,Innovation and Skills Group
BEIS,UKRI - BBSRC,19/10/2018,Innovation and Skills Group,T&S UK - Public Transport,Corporate Travel Management (North) Ltd,98315368,46.40,Innovation and Skills Group
BEIS,UKRI - BBSRC,19/10/2018,Innovation and Skills Group,T&S UK - Public Transport,Corporate Travel Management (North) Ltd,98315368,111.00,Innovation and Skills Group
BEIS,UKRI - BBSRC,19/10/2018,Innovation and Skills Group,T&S UK - Public Transport,Corporate Travel Management (North) Ltd,98315368,53.70,Innovation and Skills Group
BEIS,UKRI - BBSRC,19/10/2018,Innovation and Skills Group,T&S UK - Public Transport,Corporate Travel Management (North) Ltd,98315368,46.80,Innovation and Skills Group
BEIS,UKRI - BBSRC,19/10/2018,Innovation and Skills Group,T&S UK - Public Transport,Corporate Travel Management (North) Ltd,98315368,100.70,Innovation and Skills Group
BEIS,UKRI - BBSRC,19/10/2018,Innovation and Skills Group,T&S UK - Public Transport,Corporate Travel Management (North) Ltd,98315368,171.60,Innovation and Skills Group
BEIS,UKRI - BBSRC,19/10/2018,Innovation and Skills Group,T&S UK - Public Transport,Corporate Travel Management (North) Ltd,98315368,139.60,Innovation and Skills Group
BEIS,UKRI - BBSRC,19/10/2018,Innovation and Skills Group,T&S UK - Public Transport,Corporate Travel Management (North) Ltd,98315368,69.20,Innovation and Skills Group
BEIS,UKRI - BBSRC,19/10/2018,Innovation and Skills Group,T&S UK - Public Transport,Corporate Travel Management (North) Ltd,98315368,171.60,Innovation and Skills Group
BEIS,UKRI - BBSRC,19/10/2018,Innovation and Skills Group,T&S UK - Public Transport,Corporate Travel Management (North) Ltd,98315368,140.30,Innovation and Skills Group
BEIS,UKRI - BBSRC,19/10/2018,Innovation and Skills Group,T&S UK - Public Transport,Corporate Travel Management (North) Ltd,98315368,12.70,Innovation and Skills Group
BEIS,UKRI - BBSRC,19/10/2018,Innovation and Skills Group,T&S UK - Public Transport,Corporate Travel Management (North) Ltd,98315368,139.60,Innovation and Skills Group
BEIS,UKRI - BBSRC,19/10/2018,Innovation and Skills Group,T&S UK - Public Transport,Corporate Travel Management (North) Ltd,98315368,48.40,Innovation and Skills Group
BEIS,UKRI - BBSRC,19/10/2018,Innovation and Skills Group,T&S UK - Public Transport,Corporate Travel Management (North) Ltd,98315368,140.30,Innovation and Skills Group
BEIS,UKRI - BBSRC,19/10/2018,Innovation and Skills Group,T&S UK - Public Transport,Corporate Travel Management (North) Ltd,98315368,46.80,Innovation and Skills Group
BEIS,UKRI - BBSRC,19/10/2018,Innovation and Skills Group,T&S UK - Public Transport,Corporate Travel Management (North) Ltd,98315368,100.70,Innovation and Skills Group
BEIS,UKRI - BBSRC,19/10/2018,Innovation and Skills Group,T&S UK - Public Transport,Corporate Travel Management (North) Ltd,98315368,94.70,Innovation and Skills Group
BEIS,UKRI - BBSRC,19/10/2018,Innovation and Skills Group,T&S UK - Public Transport,Corporate Travel Management (North) Ltd,98315368,12.70,Innovation and Skills Group
BEIS,UKRI - BBSRC,19/10/2018,Innovation and Skills Group,T&S UK - Public Transport,Corporate Travel Management (North) Ltd,98315368,17.70,Innovation and Skills Group
BEIS,UKRI - BBSRC,19/10/2018,Innovation and Skills Group,T&S UK - Public Transport,Corporate Travel Management (North) Ltd,98315368,30.90,Innovation and Skills Group
BEIS,UKRI - BBSRC,19/10/2018,Innovation and Skills Group,T&S UK - Public Transport,Corporate Travel Management (North) Ltd,98315368,66.80,Innovation and Skills Group
BEIS,UKRI - BBSRC,19/10/2018,Innovation and Skills Group,T&S UK - Public Transport,Corporate Travel Management (North) Ltd,98315368,70.20,Innovation and Skills Group
BEIS,UKRI - BBSRC,19/10/2018,Innovation and Skills Group,T&S UK - Public Transport,Corporate Travel Management (North) Ltd,98315368,139.60,Innovation and Skills Group
BEIS,UKRI - BBSRC,19/10/2018,Innovation and Skills Group,T&S UK - Public Transport,Corporate Travel Management (North) Ltd,98315368,65.10,Innovation and Skills Group
BEIS,UKRI - BBSRC,19/10/2018,Innovation and Skills Group,T&S UK - Public Transport,Corporate Travel Management (North) Ltd,98315368,-84.70,Innovation and Skills Group
BEIS,UKRI - BBSRC,19/10/2018,Innovation and Skills Group,T&S UK - Public Transport,Corporate Travel Management (North) Ltd,98315368,30.00,Innovation and Skills Group
BEIS,UKRI - BBSRC,19/10/2018,Innovation and Skills Group,T&S UK - Public Transport,Corporate Travel Management (North) Ltd,98315368,25.00,Innovation and Skills Group
BEIS,UKRI - BBSRC,19/10/2018,Innovation and Skills Group,T&S UK - Public Transport,Corporate Travel Management (North) Ltd,98315368,52.60,Innovation and Skills Group
BEIS,UKRI - BBSRC,19/10/2018,Innovation and Skills Group,T&S UK - Public Transport,Corporate Travel Management (North) Ltd,98315368,100.70,Innovation and Skills Group
BEIS,UKRI - BBSRC,19/10/2018,Innovation and Skills Group,T&S UK - Public Transport,Corporate Travel Management (North) Ltd,98315368,100.80,Innovation and Skills Group
BEIS,UKRI - BBSRC,19/10/2018,Innovation and Skills Group,T&S UK - Public Transport,Corporate Travel Management (North) Ltd,98315368,21.00,Innovation and Skills Group
BEIS,UKRI - BBSRC,19/10/2018,Innovation and Skills Group,T&S UK - Public Transport,Corporate Travel Management (North) Ltd,98315368,186.60,Innovation and Skills Group
BEIS,UKRI - BBSRC,19/10/2018,Innovation and Skills Group,T&S UK - Public Transport,Corporate Travel Management (North) Ltd,98315368,162.20,Innovation and Skills Group
BEIS,UKRI - BBSRC,19/10/2018,Innovation and Skills Group,T&S UK - Public Transport,Corporate Travel Management (North) Ltd,98315368,103.00,Innovation and Skills Group
BEIS,UKRI - BBSRC,19/10/2018,Innovation and Skills Group,T&S UK - Public Transport,Corporate Travel Management (North) Ltd,98315368,66.10,Innovation and Skills Group
BEIS,UKRI - BBSRC,19/10/2018,Innovation and Skills Group,T&S UK - Public Transport,Corporate Travel Management (North) Ltd,98315368,24.40,Innovation and Skills Group
BEIS,UKRI - BBSRC,19/10/2018,Innovation and Skills Group,T&S UK - Public Transport,Corporate Travel Management (North) Ltd,98315368,12.70,Innovation and Skills Group
BEIS,UKRI - BBSRC,19/10/2018,Innovation and Skills Group,T&S UK - Public Transport,Corporate Travel Management (North) Ltd,98315368,66.80,Innovation and Skills Group
BEIS,UKRI - BBSRC,19/10/2018,Innovation and Skills Group,T&S UK - Public Transport,Corporate Travel Management (North) Ltd,98315368,217.40,Innovation and Skills Group
BEIS,UKRI - BBSRC,19/10/2018,Innovation and Skills Group,T&S UK - Public Transport,Corporate Travel Management (North) Ltd,98315368,90.00,Innovation and Skills Group
BEIS,UKRI - BBSRC,19/10/2018,Innovation and Skills Group,T&S UK - Public Transport,Corporate Travel Management (North) Ltd,98315368,21.00,Innovation and Skills Group
BEIS,UKRI - BBSRC,19/10/2018,Innovation and Skills Group,T&S UK - Public Transport,Corporate Travel Management (North) Ltd,98315368,53.70,Innovation and Skills Group
BEIS,UKRI - BBSRC,19/10/2018,Innovation and Skills Group,T&S UK - Public Transport,Corporate Travel Management (North) Ltd,98315368,171.60,Innovation and Skills Group
BEIS,UKRI - BBSRC,19/10/2018,Innovation and Skills Group,T&S UK - Public Transport,Corporate Travel Management (North) Ltd,98315368,30.90,Innovation and Skills Group
BEIS,UKRI - BBSRC,19/10/2018,Innovation and Skills Group,T&S UK - Public Transport,Corporate Travel Management (North) Ltd,98315368,35.60,Innovation and Skills Group
BEIS,UKRI - BBSRC,19/10/2018,Innovation and Skills Group,T&S UK - Public Transport,Corporate Travel Management (North) Ltd,98315368,76.20,Innovation and Skills Group
BEIS,UKRI - BBSRC,19/10/2018,Innovation and Skills Group,T&S UK - Public Transport,Corporate Travel Management (North) Ltd,98315368,26.70,Innovation and Skills Group
BEIS,UKRI - BBSRC,19/10/2018,Innovation and Skills Group,T&S UK - Public Transport,Corporate Travel Management (North) Ltd,98315368,69.80,Innovation and Skills Group
BEIS,UKRI - BBSRC,19/10/2018,Innovation and Skills Group,T&S UK - Public Transport,Corporate Travel Management (North) Ltd,98315368,11.60,Innovation and Skills Group
BEIS,UKRI - BBSRC,19/10/2018,Innovation and Skills Group CDSU,T&S UK - Public Transport,Corporate Travel Management (North) Ltd,98315368,93.20,Innovation and Skills Group CDSU
BEIS,UKRI - BBSRC,19/10/2018,Innovation and Skills Group CDSU,T&S UK - Public Transport,Corporate Travel Management (North) Ltd,98315368,29.80,Innovation and Skills Group CDSU
BEIS,UKRI - BBSRC,19/10/2018,Innovation and Skills Group CDSU,T&S UK - Public Transport,Corporate Travel Management (North) Ltd,98315368,28.00,Innovation and Skills Group CDSU
BEIS,UKRI - BBSRC,19/10/2018,Innovation and Skills Group CDSU,T&S UK - Public Transport,Corporate Travel Management (North) Ltd,98315368,100.70,Innovation and Skills Group CDSU
BEIS,UKRI - BBSRC,19/10/2018,Innovation and Skills Group CDSU,T&S UK - Public Transport,Corporate Travel Management (North) Ltd,98315368,34.90,Innovation and Skills Group CDSU
BEIS,UKRI - BBSRC,19/10/2018,Innovation and Skills Group CDSU,T&S UK - Public Transport,Corporate Travel Management (North) Ltd,98315368,71.30,Innovation and Skills Group CDSU
BEIS,UKRI - BBSRC,19/10/2018,Innovation and Skills Group CDSU,T&S UK - Public Transport,Corporate Travel Management (North) Ltd,98315368,34.90,Innovation and Skills Group CDSU
BEIS,UKRI - BBSRC,19/10/2018,Innovation and Skills Group CDSU,T&S UK - Public Transport,Corporate Travel Management (North) Ltd,98315368,5.00,Innovation and Skills Group CDSU
BEIS,UKRI - BBSRC,19/10/2018,Innovation and Skills Group CDSU,T&S UK - Public Transport,Corporate Travel Management (North) Ltd,98315368,-32.95,Innovation and Skills Group CDSU
BEIS,UKRI - BBSRC,19/10/2018,Innovation and Skills Group CDSU,T&S UK - Public Transport,Corporate Travel Management (North) Ltd,98315368,87.80,Innovation and Skills Group CDSU
BEIS,UKRI - BBSRC,19/10/2018,Innovation and Skills Group CDSU,T&S UK - Public Transport,Corporate Travel Management (North) Ltd,98315368,85.00,Innovation and Skills Group CDSU
BEIS,UKRI - BBSRC,19/10/2018,Innovation and Skills Group CDSU,T&S UK - Public Transport,Corporate Travel Management (North) Ltd,98315368,133.60,Innovation and Skills Group CDSU
BEIS,UKRI - BBSRC,19/10/2018,JBOS - Staff,T&S UK - Public Transport,Corporate Travel Management (North) Ltd,98315368,139.60,JBOS - Staff
BEIS,UKRI - BBSRC,19/10/2018,JBOS - Staff,T&S UK - Public Transport,Corporate Travel Management (North) Ltd,98315368,32.00,JBOS - Staff
BEIS,UKRI - BBSRC,19/10/2018,PDG - Director,T&S UK - Public Transport,Corporate Travel Management (North) Ltd,98315368,63.20,PDG - Director
BEIS,UKRI - BBSRC,19/10/2018,PDG - Director,T&S UK - Public Transport,Corporate Travel Management (North) Ltd,98315368,115.85,PDG - Director
BEIS,UKRI - BBSRC,19/10/2018,PDG - Director,T&S UK - Public Transport,Corporate Travel Management (North) Ltd,98315368,21.20,PDG - Director
BEIS,UKRI - BBSRC,19/10/2018,PDG - Director,T&S UK - Public Transport,Corporate Travel Management (North) Ltd,98315368,147.00,PDG - Director
BEIS,UKRI - BBSRC,19/10/2018,PDG - Director,T&S UK - Public Transport,Corporate Travel Management (North) Ltd,98315368,-166.60,PDG - Director
BEIS,UKRI - BBSRC,19/10/2018,PDG - Director,T&S UK - Public Transport,Corporate Travel Management (North) Ltd,98315368,135.30,PDG - Director
BEIS,UKRI - BBSRC,19/10/2018,RISD - UKRO,T&S UK - Public Transport,Corporate Travel Management (North) Ltd,98315368,1.00,RISD - UKRO
BEIS,UKRI - BBSRC,19/10/2018,RISD - UKRO,T&S UK - Public Transport,Corporate Travel Management (North) Ltd,98315368,100.70,RISD - UKRO
BEIS,UKRI - BBSRC,19/10/2018,RISD - UKRO,T&S UK - Public Transport,Corporate Travel Management (North) Ltd,98315368,1.00,RISD - UKRO
BEIS,UKRI - BBSRC,19/10/2018,RISD - UKRO,T&S UK - Public Transport,Corporate Travel Management (North) Ltd,98315368,27.90,RISD - UKRO
BEIS,UKRI - BBSRC,19/10/2018,RISD - UKRO,T&S UK - Public Transport,Corporate Travel Management (North) Ltd,98315368,1.00,RISD - UKRO
BEIS,UKRI - BBSRC,19/10/2018,RISD - UKRO,T&S UK - Public Transport,Corporate Travel Management (North) Ltd,98315368,1.00,RISD - UKRO
BEIS,UKRI - BBSRC,19/10/2018,RISD - UKRO,T&S UK - Public Transport,Corporate Travel Management (North) Ltd,98315368,69.20,RISD - UKRO
BEIS,UKRI - BBSRC,19/10/2018,RISD - UKRO,T&S UK - Public Transport,Corporate Travel Management (North) Ltd,98315368,37.50,RISD - UKRO
BEIS,UKRI - BBSRC,19/10/2018,RISD - UKRO,T&S UK - Public Transport,Corporate Travel Management (North) Ltd,98315368,1.00,RISD - UKRO
BEIS,UKRI - BBSRC,19/10/2018,RISD - UKRO,T&S UK - Public Transport,Corporate Travel Management (North) Ltd,98315368,69.20,RISD - UKRO
BEIS,UKRI - BBSRC,19/10/2018,RISD - UKRO,T&S UK - Public Transport,Corporate Travel Management (North) Ltd,98315368,1.00,RISD - UKRO
BEIS,UKRI - BBSRC,19/10/2018,RISD - UKRO,T&S UK - Public Transport,Corporate Travel Management (North) Ltd,98315368,13.80,RISD - UKRO
BEIS,UKRI - BBSRC,19/10/2018,RISD - UKRO,T&S UK - Public Transport,Corporate Travel Management (North) Ltd,98315368,1.00,RISD - UKRO
BEIS,UKRI - BBSRC,19/10/2018,RISD - UKRO,T&S UK - Public Transport,Corporate Travel Management (North) Ltd,98315368,74.00,RISD - UKRO
BEIS,UKRI - BBSRC,19/10/2018,RISD - UKRO,T&S UK - Public Transport,Corporate Travel Management (North) Ltd,98315368,1.00,RISD - UKRO
BEIS,UKRI - BBSRC,19/10/2018,RISD - UKRO,T&S UK - Public Transport,Corporate Travel Management (North) Ltd,98315368,1.00,RISD - UKRO
BEIS,UKRI - BBSRC,19/10/2018,RISD - UKRO,T&S UK - Public Transport,Corporate Travel Management (North) Ltd,98315368,18.10,RISD - UKRO
BEIS,UKRI - BBSRC,19/10/2018,RISD - UKRO,T&S UK - Public Transport,Corporate Travel Management (North) Ltd,98315368,18.10,RISD - UKRO
BEIS,UKRI - BBSRC,19/10/2018,Science Group,T&S UK - Public Transport,Corporate Travel Management (North) Ltd,98315368,-22.90,Science Group
BEIS,UKRI - BBSRC,19/10/2018,Science Group,T&S UK - Public Transport,Corporate Travel Management (North) Ltd,98315368,133.60,Science Group
BEIS,UKRI - BBSRC,19/10/2018,Science Group,T&S UK - Public Transport,Corporate Travel Management (North) Ltd,98315368,12.70,Science Group
BEIS,UKRI - BBSRC,19/10/2018,Science Group,T&S UK - Public Transport,Corporate Travel Management (North) Ltd,98315368,46.20,Science Group
BEIS,UKRI - BBSRC,19/10/2018,Science Group,T&S UK - Public Transport,Corporate Travel Management (North) Ltd,98315368,139.60,Science Group
BEIS,UKRI - BBSRC,19/10/2018,Science Group,T&S UK - Public Transport,Corporate Travel Management (North) Ltd,98315368,12.70,Science Group
BEIS,UKRI - BBSRC,19/10/2018,Science Group,T&S UK - Public Transport,Corporate Travel Management (North) Ltd,98315368,163.80,Science Group
BEIS,UKRI - BBSRC,19/10/2018,Science Group,T&S UK - Public Transport,Corporate Travel Management (North) Ltd,98315368,133.60,Science Group
BEIS,UKRI - BBSRC,19/10/2018,Science Group,T&S UK - Public Transport,Corporate Travel Management (North) Ltd,98315368,32.60,Science Group
BEIS,UKRI - BBSRC,19/10/2018,Science Group,T&S UK - Public Transport,Corporate Travel Management (North) Ltd,98315368,172.00,Science Group
BEIS,UKRI - BBSRC,19/10/2018,Science Group,T&S UK - Public Transport,Corporate Travel Management (North) Ltd,98315368,69.20,Science Group
BEIS,UKRI - BBSRC,19/10/2018,Science Group,T&S UK - Public Transport,Corporate Travel Management (North) Ltd,98315368,17.40,Science Group
BEIS,UKRI - BBSRC,19/10/2018,Science Group,T&S UK - Public Transport,Corporate Travel Management (North) Ltd,98315368,113.00,Science Group
BEIS,UKRI - BBSRC,19/10/2018,Science Group,T&S UK - Public Transport,Corporate Travel Management (North) Ltd,98315368,57.00,Science Group
BEIS,UKRI - BBSRC,19/10/2018,Science Group,T&S UK - Public Transport,Corporate Travel Management (North) Ltd,98315368,186.60,Science Group
BEIS,UKRI - BBSRC,19/10/2018,Science Group,T&S UK - Public Transport,Corporate Travel Management (North) Ltd,98315368,178.00,Science Group
BEIS,UKRI - BBSRC,19/10/2018,Science Group,T&S UK - Public Transport,Corporate Travel Management (North) Ltd,98315368,100.40,Science Group
BEIS,UKRI - BBSRC,19/10/2018,Science Group,T&S UK - Public Transport,Corporate Travel Management (North) Ltd,98315368,178.70,Science Group
BEIS,UKRI - BBSRC,19/10/2018,Science Group,T&S UK - Public Transport,Corporate Travel Management (North) Ltd,98315368,31.10,Science Group
BEIS,UKRI - BBSRC,19/10/2018,Science Group,T&S UK - Public Transport,Corporate Travel Management (North) Ltd,98315368,101.20,Science Group
BEIS,UKRI - BBSRC,19/10/2018,Science Group,T&S UK - Public Transport,Corporate Travel Management (North) Ltd,98315368,-115.90,Science Group
BEIS,UKRI - BBSRC,19/10/2018,Science Group,T&S UK - Public Transport,Corporate Travel Management (North) Ltd,98315368,153.20,Science Group
BEIS,UKRI - BBSRC,19/10/2018,Science Group,T&S UK - Public Transport,Corporate Travel Management (North) Ltd,98315368,78.80,Science Group
BEIS,UKRI - BBSRC,19/10/2018,Science Group,T&S UK - Public Transport,Corporate Travel Management (North) Ltd,98315368,78.80,Science Group
BEIS,UKRI - BBSRC,19/10/2018,Science Group,T&S UK - Public Transport,Corporate Travel Management (North) Ltd,98315368,69.20,Science Group
BEIS,UKRI - BBSRC,19/10/2018,Science Group,T&S UK - Public Transport,Corporate Travel Management (North) Ltd,98315368,67.90,Science Group
BEIS,UKRI - BBSRC,19/10/2018,Science Group,T&S UK - Public Transport,Corporate Travel Management (North) Ltd,98315368,20.90,Science Group
BEIS,UKRI - BBSRC,19/10/2018,Science Group,T&S UK - Public Transport,Corporate Travel Management (North) Ltd,98315368,139.60,Science Group
BEIS,UKRI - BBSRC,19/10/2018,Science Group,T&S UK - Public Transport,Corporate Travel Management (North) Ltd,98315368,202.80,Science Group
BEIS,UKRI - BBSRC,19/10/2018,Science Group,T&S UK - Public Transport,Corporate Travel Management (North) Ltd,98315368,280.60,Science Group
BEIS,UKRI - BBSRC,19/10/2018,Science Group,T&S UK - Public Transport,Corporate Travel Management (North) Ltd,98315368,34.90,Science Group
BEIS,UKRI - BBSRC,19/10/2018,Science Group,T&S UK - Public Transport,Corporate Travel Management (North) Ltd,98315368,53.90,Science Group
BEIS,UKRI - BBSRC,19/10/2018,Science Group,T&S UK - Public Transport,Corporate Travel Management (North) Ltd,98315368,70.70,Science Group
BEIS,UKRI - BBSRC,19/10/2018,Science Group,T&S UK - Public Transport,Corporate Travel Management (North) Ltd,98315368,100.70,Science Group
BEIS,UKRI - BBSRC,19/10/2018,Science Group,T&S UK - Public Transport,Corporate Travel Management (North) Ltd,98315368,139.60,Science Group
BEIS,UKRI - BBSRC,19/10/2018,Science Group,T&S UK - Public Transport,Corporate Travel Management (North) Ltd,98315368,139.60,Science Group
BEIS,UKRI - BBSRC,19/10/2018,Science Group,T&S UK - Public Transport,Corporate Travel Management (North) Ltd,98315368,84.90,Science Group
BEIS,UKRI - BBSRC,19/10/2018,Science Group,T&S UK - Public Transport,Corporate Travel Management (North) Ltd,98315368,140.30,Science Group
BEIS,UKRI - BBSRC,19/10/2018,Science Group,T&S UK - Public Transport,Corporate Travel Management (North) Ltd,98315368,99.40,Science Group
BEIS,UKRI - BBSRC,19/10/2018,Science Group,T&S UK - Public Transport,Corporate Travel Management (North) Ltd,98315368,140.30,Science Group
BEIS,UKRI - BBSRC,19/10/2018,Science Group,T&S UK - Public Transport,Corporate Travel Management (North) Ltd,98315368,203.50,Science Group
BEIS,UKRI - BBSRC,19/10/2018,Science Group,T&S UK - Public Transport,Corporate Travel Management (North) Ltd,98315368,233.80,Science Group
BEIS,UKRI - BBSRC,19/10/2018,Science Group,T&S UK - Public Transport,Corporate Travel Management (North) Ltd,98315368,57.00,Science Group
BEIS,UKRI - BBSRC,19/10/2018,Science Group,T&S UK - Public Transport,Corporate Travel Management (North) Ltd,98315368,71.30,Science Group
BEIS,UKRI - BBSRC,19/10/2018,Science Group,T&S UK - Public Transport,Corporate Travel Management (North) Ltd,98315368,38.20,Science Group
BEIS,UKRI - BBSRC,19/10/2018,Science Group,T&S UK - Public Transport,Corporate Travel Management (North) Ltd,98315368,203.50,Science Group
BEIS,UKRI - BBSRC,19/10/2018,Science Group,T&S UK - Public Transport,Corporate Travel Management (North) Ltd,98315368,71.30,Science Group
BEIS,UKRI - BBSRC,19/10/2018,Science Group,T&S UK - Public Transport,Corporate Travel Management (North) Ltd,98315368,139.60,Science Group
BEIS,UKRI - BBSRC,19/10/2018,Science Group,T&S UK - Public Transport,Corporate Travel Management (North) Ltd,98315368,139.60,Science Group
BEIS,UKRI - BBSRC,19/10/2018,Science Group,T&S UK - Public Transport,Corporate Travel Management (North) Ltd,98315368,71.30,Science Group
BEIS,UKRI - BBSRC,19/10/2018,Science Group,T&S UK - Public Transport,Corporate Travel Management (North) Ltd,98315368,71.30,Science Group
BEIS,UKRI - BBSRC,19/10/2018,Science Group,T&S UK - Public Transport,Corporate Travel Management (North) Ltd,98315368,-212.40,Science Group
BEIS,UKRI - BBSRC,19/10/2018,Science Group,T&S UK - Public Transport,Corporate Travel Management (North) Ltd,98315368,-86.80,Science Group
BEIS,UKRI - BBSRC,19/10/2018,Science Group,T&S UK - Public Transport,Corporate Travel Management (North) Ltd,98315368,84.90,Science Group
BEIS,UKRI - BBSRC,19/10/2018,Science Group,T&S UK - Public Transport,Corporate Travel Management (North) Ltd,98315368,52.70,Science Group
BEIS,UKRI - BBSRC,19/10/2018,Science Group,T&S UK - Public Transport,Corporate Travel Management (North) Ltd,98315368,100.70,Science Group
BEIS,UKRI - BBSRC,19/10/2018,Science Group,T&S UK - Public Transport,Corporate Travel Management (North) Ltd,98315368,75.70,Science Group
BEIS,UKRI - BBSRC,19/10/2018,Science Group,T&S UK - Public Transport,Corporate Travel Management (North) Ltd,98315368,105.00,Science Group
BEIS,UKRI - BBSRC,19/10/2018,Science Group,T&S UK - Public Transport,Corporate Travel Management (North) Ltd,98315368,140.30,Science Group
BEIS,UKRI - BBSRC,19/10/2018,Science Group,T&S UK - Public Transport,Corporate Travel Management (North) Ltd,98315368,17.70,Science Group
BEIS,UKRI - BBSRC,19/10/2018,Science Group,T&S UK - Public Transport,Corporate Travel Management (North) Ltd,98315368,54.40,Science Group
BEIS,UKRI - BBSRC,19/10/2018,Science Group,T&S UK - Public Transport,Corporate Travel Management (North) Ltd,98315368,186.60,Science Group
BEIS,UKRI - BBSRC,19/10/2018,Science Group,T&S UK - Public Transport,Corporate Travel Management (North) Ltd,98315368,73.20,Science Group
BEIS,UKRI - BBSRC,19/10/2018,Science Group,T&S UK - Public Transport,Corporate Travel Management (North) Ltd,98315368,61.40,Science Group
BEIS,UKRI - BBSRC,19/10/2018,Science Group,T&S UK - Public Transport,Corporate Travel Management (North) Ltd,98315368,75.40,Science Group
BEIS,UKRI - BBSRC,19/10/2018,Science Group,T&S UK - Public Transport,Corporate Travel Management (North) Ltd,98315368,140.30,Science Group
BEIS,UKRI - BBSRC,19/10/2018,Science Group,T&S UK - Public Transport,Corporate Travel Management (North) Ltd,98315368,67.90,Science Group
BEIS,UKRI - BBSRC,19/10/2018,Science Group,T&S UK - Public Transport,Corporate Travel Management (North) Ltd,98315368,140.30,Science Group
BEIS,UKRI - BBSRC,19/10/2018,Science Group,T&S UK - Public Transport,Corporate Travel Management (North) Ltd,98315368,-86.80,Science Group
BEIS,UKRI - BBSRC,19/10/2018,Science Group - Delivery Function,T&S UK - Public Transport,Corporate Travel Management (North) Ltd,98315368,140.40,Science Group - Delivery Function
BEIS,UKRI - BBSRC,19/10/2018,Science Group - Delivery Function,T&S UK - Public Transport,Corporate Travel Management (North) Ltd,98315368,23.00,Science Group - Delivery Function
BEIS,UKRI - BBSRC,19/10/2018,Science Group - Delivery Function,T&S UK - Public Transport,Corporate Travel Management (North) Ltd,98315368,174.50,Science Group - Delivery Function
BEIS,UKRI - BBSRC,19/10/2018,Science Group - Delivery Function,T&S UK - Public Transport,Corporate Travel Management (North) Ltd,98315368,191.60,Science Group - Delivery Function
BEIS,UKRI - BBSRC,19/10/2018,Science Group - Delivery Function,T&S UK - Public Transport,Corporate Travel Management (North) Ltd,98315368,34.90,Science Group - Delivery Function
BEIS,UKRI - BBSRC,19/10/2018,Science Group - Delivery Function,T&S UK - Public Transport,Corporate Travel Management (North) Ltd,98315368,92.55,Science Group - Delivery Function
BEIS,UKRI - BBSRC,19/10/2018,Science Group - Delivery Function,T&S UK - Public Transport,Corporate Travel Management (North) Ltd,98315368,140.30,Science Group - Delivery Function
BEIS,UKRI - BBSRC,19/10/2018,Science Group,T&S UK - Vehicle Hire,Corporate Travel Management (North) Ltd,98315368,75.13,Science Group
BEIS,UKRI - BBSRC,22/10/2018,Science Group,Other Programme Costs,Coworking Bath C.I.C,98316244,30.00,Science Group
BEIS,UKRI - BBSRC,04/10/2018,PDG - Director,T&S UK - Vehicle Hire,Cross Street Cars,98301103,19.20,PDG - Director
BEIS,UKRI - BBSRC,04/10/2018,JBOS Health and Safety,T&S UK - Vehicle Hire,Cross Street Cars,98301104,42.00,JBOS Health and Safety
BEIS,UKRI - BBSRC,17/10/2018,CE - IRU,Meetings & Catering,Delijious SA T/A Bon,98311771,229.34,CE - IRU
BEIS,UKRI - BBSRC,18/10/2018,CE - IRU,Contract Research,Department for Business Energy & Industrial Strategy,98314028,"197,935.87",CE - IRU
BEIS,UKRI - BBSRC,18/10/2018,CE - IRU,Contract Research,Department for Business Energy & Industrial Strategy,98314028,"11,022.90",CE - IRU
BEIS,UKRI - BBSRC,15/10/2018,CIMG - External Relations,Legal & Professional Services,DUNFORD CONSULTING LTD,98305897,96.00,CIMG - External Relations
BEIS,UKRI - BBSRC,17/10/2018,TGAC,Research Institutes - Competitive Strategic Grant,Earlham Institute,98303440,"175,152.14",TGAC
BEIS,UKRI - BBSRC,17/10/2018,TGAC,Research Institutes - Competitive Strategic Grant,Earlham Institute,98303440,"72,565.05",TGAC
BEIS,UKRI - BBSRC,17/10/2018,TGAC,Research Institutes - Competitive Strategic Grant,Earlham Institute,98303440,"46,166.70",TGAC
BEIS,UKRI - BBSRC,17/10/2018,TGAC,Research Institutes - Competitive Strategic Grant,Earlham Institute,98303440,"33,333.36",TGAC
BEIS,UKRI - BBSRC,17/10/2018,TGAC,Research Institutes - Competitive Strategic Grant,Earlham Institute,98303440,"111,533.08",TGAC
BEIS,UKRI - BBSRC,17/10/2018,TGAC,Research Institutes - Competitive Strategic Grant,Earlham Institute,98303440,"2,916.67",TGAC
BEIS,UKRI - BBSRC,02/10/2018,FG - Accounts & Business Planning,Research Grant Expenditure,Economic & Social Research Council,98296580,"4,892.73",FG - Accounts & Business Planning
BEIS,UKRI - BBSRC,09/10/2018,Innovation and Skills Group,Training Awards - Postgraduates,Economic & Social Research Council,98304974,"20,342.00",Innovation and Skills Group
BEIS,UKRI - BBSRC,08/10/2018,Balance Sheet,Reward & Recognition Team Advances,EDENRED (UK GROUP) LTD,98305491,760.00,Balance Sheet
BEIS,UKRI - BBSRC,16/10/2018,Balance Sheet,Nursery Deductions,EDENRED (UK GROUP) LTD,98310994,"5,305.00",Balance Sheet
BEIS,UKRI - BBSRC,16/10/2018,PDG - Director,Other Staff Benefits,EDENRED (UK GROUP) LTD,98310996,11.46,PDG - Director
BEIS,UKRI - BBSRC,29/10/2018,JBOS - Maintenance,Electricity,EDF Energy,98321599,"34,348.58",JBOS - Maintenance
BEIS,UKRI - BBSRC,23/10/2018,Estates - Projects,Research Institutes - Capital Grants: Major Works,EMBL (European Molecular Biology Laboratory),98308397,"12,832.75",Estates - Projects
BEIS,UKRI - BBSRC,23/10/2018,Estates - Projects,Research Institutes - Capital Grants: Major Works,EMBL (European Molecular Biology Laboratory),98308403,"76,843.37",Estates - Projects
BEIS,UKRI - BBSRC,31/10/2018,Estates - Projects,Research Institutes - Capital Grants: Major Works,EMBL (European Molecular Biology Laboratory),98321587,"1,685.00",Estates - Projects
BEIS,UKRI - BBSRC,02/10/2018,RISD - UKRO,Secondments,Engineering & Physical Sciences Research Council,98297165,"11,616.00",RISD - UKRO
BEIS,UKRI - BBSRC,02/10/2018,RISD - UKRO,Secondments,Engineering & Physical Sciences Research Council,98297168,"11,788.50",RISD - UKRO
BEIS,UKRI - BBSRC,09/10/2018,Science Group,Research Grant Expenditure,Engineering & Physical Sciences Research Council,98303199,"7,720.56",Science Group
BEIS,UKRI - BBSRC,16/10/2018,Science Group,Research Grant Expenditure,Engineering & Physical Sciences Research Council,98309820,"8,805.93",Science Group
BEIS,UKRI - BBSRC,16/10/2018,FG - Accounts & Business Planning,Photocopy Costs,Engineering & Physical Sciences Research Council,98311439,"6,165.92",FG - Accounts & Business Planning
BEIS,UKRI - BBSRC,23/10/2018,FG - Accounts & Business Planning,Doctoral Training Accounts,Engineering & Physical Sciences Research Council,98314484,"99,145.76",FG - Accounts & Business Planning
BEIS,UKRI - BBSRC,30/10/2018,FG - RCUK Assurance,Secondments,Engineering & Physical Sciences Research Council,98321776,"2,721.63",FG - RCUK Assurance
BEIS,UKRI - BBSRC,03/10/2018,FG - Director,T&S UK - Vehicle Hire,Enterprise Rent-A-Car UK Ltd,98302446,120.37,FG - Director
